Service Area,Service Division,Expense Type,Expense Code,Detailed Expense Type,Payment Date,Transaction Number,Amount Exc VAT,Supplier Name
Neighbourhoods and Climate Change,Environmental Services,Supplies and Services,304221,Equipment and Materials,01/10/2021,3918657-011808,698.25,A HILL & SONS LTD.
Neighbourhoods and Climate Change,Technical Services CM0300,Third Party Payments,430100,Rendered by Private Contractors,01/10/2021,3918658-9015,720.00,A19 DRILLING LTD.
Resources BK0010,Legal & Democratic Services,Supplies and Services,332029,Printing Stationery and Gen Off Exps,01/10/2021,3918660-PSI0173204,"1,400.00",ADARE SEC LTD.
Children and Young Peoples Services,Head of Education and Skills,Transport,230008,Contract Hire,01/10/2021,3918661-13/21,"3,024.00",ADVANCE TRAVEL.
Neighbourhoods and Climate Change,Technical Services CM0300,Supplies and Services,304221,Equipment and Materials,01/10/2021,3918662-32055856,961.14,AGGREGATE INDUSTRIES UK LTD.
Children and Young Peoples Services,Head of Education and Skills,Supplies and Services,352001,Conference Expenses,01/10/2021,3918664-DURHAM/10/2021,"4,000.00",ALISON DAGG T/A TURN IT AROUND TRAINING.
Adult and Health Services,Commissioning inc Supporting People,Third Party Payments,470103,Purchase of Care,01/10/2021,3918665-BROVOID190921,"1,922.13",ALLIANCE CARE (TRENDLEWOOD) LTD.
Neighbourhoods and Climate Change,Environmental Services,Supplies and Services,338066,Services,01/10/2021,3918669-BURSARYSEP21,761.38,ANNA HOLLIDAY (NATURE RESTORATION TRAINEE).
"Regeneration, Economy and Growth",Corporate Property and Land,Third Party Payments,430100,Rendered by Private Contractors,01/10/2021,3918672-4975,"4,950.00",APEX ROOFING SPECIALISTS LTD.
Neighbourhoods and Climate Change,Environmental Services,Third Party Payments,430100,Rendered by Private Contractors,01/10/2021,3918677-INV001326,670.00,ASSOCIATED MAINTENANCE SERVICES LTD.
Neighbourhoods and Climate Change,Environmental Services,Construction work A908,908105,Construction work,01/10/2021,3918682-40912,"1,550.00",BGP CONSULTING LTD T/A BILLINGHURST GEORGE & PARTNERS.
Adult and Health Services,Head of Adults,Third Party Payments,478151,Purchase of Care,01/10/2021,3918686-CB33,"2,337.43",BONDCARE WILLINGTON LTD.
Adult and Health Services,Head of Adults,Debtors,930186,Sustainability Funded Nursing Care,01/10/2021,3918685-SUSTAINABILITYPAYMENT-2,"9,893.49",BONDCARE WILLINGTON LTD.
Adult and Health Services,Head of Adults,Debtors,930186,Sustainability Funded Nursing Care,01/10/2021,3918686-SUSTAINABILITYPAYMENT-8B,"1,915.75",BONDCARE WILLINGTON LTD.
Neighbourhoods and Climate Change,Environmental Services,Premises,120037,Energy Costs,01/10/2021,3918691-34039496,675.62,CALOR GAS LTD.
Adult and Health Services,Commissioning inc Supporting People,Third Party Payments,479101,Purchase of Care,01/10/2021,3918693-INV000020,"12,500.00",CAREHOME SELECTION LTD (CHS HEALTHCARE).
Adult and Health Services,Commissioning inc Supporting People,Third Party Payments,479101,Purchase of Care,01/10/2021,3918693-INV003847,"12,500.00",CAREHOME SELECTION LTD (CHS HEALTHCARE).
Adult and Health Services,Commissioning inc Supporting People,Third Party Payments,479101,Purchase of Care,01/10/2021,3918693-INV003848,"7,000.00",CAREHOME SELECTION LTD (CHS HEALTHCARE).
Adult and Health Services,Commissioning inc Supporting People,Third Party Payments,479101,Purchase of Care,01/10/2021,3918693-INV003849,"12,500.00",CAREHOME SELECTION LTD (CHS HEALTHCARE).
Children and Young Peoples Services,Head of Early Help Inclusion & Vulnerable Children.,Supplies and Services,384199,Miscellaneous Expenses,01/10/2021,3918695-LS43,"1,750.00",CAROL ANDREWS (CLINICAL PSYCHOTHERAPIST).
"Regeneration, Economy and Growth",Corporate Property and Land,Supplies and Services,304221,Equipment and Materials,01/10/2021,3918697-10597198,"4,989.60",CARPET & FLOORING (TRADING) LTD.
Children and Young Peoples Services,Head of Education and Skills,Transport,230008,Contract Hire,01/10/2021,3918705-INV-060,"1,260.00",CLARE LYNSEY STEWART T/A K&C TAXIS.
Neighbourhoods and Climate Change,Technical Services CM0300,Stock A926,926900,Stock in hand-Inventory system,01/10/2021,3918708-914886,649.60,CMT EQUIPMENT LTD.
Adult and Health Services,Head of Adults,Third Party Payments,478151,Purchase of Care,01/10/2021,3918710-421R177108,"9,297.60",COMMUNITY INTEGRATED CARE LTD.
Adult and Health Services,Head of Adults,Third Party Payments,478151,Purchase of Care,01/10/2021,3918710-421R177141,"17,475.65",COMMUNITY INTEGRATED CARE LTD.
"Regeneration, Economy and Growth",Development and Housing,Supplies and Services,338066,Services,01/10/2021,3918720-GB3002-CI-21-08904,"3,000.00",CUSHMAN & WAKEFIELD DEBENHAM TIE LEUNG LTD.
Adult and Health Services,Head of Adults,Debtors,930186,Sustainability Funded Nursing Care,01/10/2021,3918722-SUSTAINABILITYPAYMENT-12,"25,643.77",D3 CARE LTD.
Adult and Health Services,Head of Adults,Third Party Payments,478151,Purchase of Care,01/10/2021,3918726-INV-0943,"2,160.00",DEACONSTAR LTD.
Adult and Health Services,Head of Adults,Third Party Payments,478151,Purchase of Care,01/10/2021,3918726-INV-0944,"1,713.60",DEACONSTAR LTD.
Adult and Health Services,Head of Adults,Third Party Payments,478151,Purchase of Care,01/10/2021,3918726-INV-0945,"2,521.41",DEACONSTAR LTD.
Adult and Health Services,Head of Adults,Debtors,930186,Sustainability Funded Nursing Care,01/10/2021,3918728-SUSTAINABILITYPAYMENT-4B,872.35,DIPTON CARE HOME LTD.
Adult and Health Services,Commissioning inc Supporting People,Third Party Payments,479101,Purchase of Care,01/10/2021,3918731-464,"263,250.00",DURHAM COUNTY CARERS SUPPORT.
Resources - C A C,LCTSS,Third Party Payments,440070,Other third party payments E440,01/10/2021,3918734-RED-09-2021-217A,"25,387.00",EASINGTON COLLIERY PARISH COUNCIL.
Children and Young Peoples Services,Head of Early Help Inclusion & Vulnerable Children.,Premises,108135,Service Repairs and Maintenance,01/10/2021,3918739-89476,824.50,EIAT UK LTD (ELECTRICAL INSTALLATION & APPLIANCE TESTING UK).
Neighbourhoods and Climate Change,Environmental Services,Vehicles Equipment Furniture and Fittings,912529,Purchase-equipment,01/10/2021,3918740-90123223,"16,385.00",EIBE PLAY LTD.
Neighbourhoods and Climate Change,Technical Services CM0300,Stock A926,926900,Stock in hand-Inventory system,01/10/2021,3918749-138717,"4,852.56",FABRIKAT (NOTTINGHAM) LTD.
Resources - C A C,LCTSS,Third Party Payments,440070,Other third party payments E440,01/10/2021,3918751-RED-09-2021-224A,"64,822.00",FERRYHILL TOWN COUNCIL.
Neighbourhoods and Climate Change,Environmental Services,Premises,150015,Apportioned Exps of Operational Blds,01/10/2021,3918756-412006684,748.00,GAP GROUP LTD.
Neighbourhoods and Climate Change,Technical Services CM0300,Premises,150015,Apportioned Exps of Operational Blds,01/10/2021,3918756-412006685,748.00,GAP GROUP LTD.
Neighbourhoods and Climate Change,Technical Services CM0300,Premises,150015,Apportioned Exps of Operational Blds,01/10/2021,3918756-412006686,748.00,GAP GROUP LTD.
Neighbourhoods and Climate Change,Technical Services CM0300,Premises,150015,Apportioned Exps of Operational Blds,01/10/2021,3918756-412006689,"1,100.00",GAP GROUP LTD.
Resources - C A C,LCTSS,Third Party Payments,440070,Other third party payments E440,01/10/2021,3918766-RED-09-2021-225A,"90,152.50",GREAT AYCLIFFE TOWN COUNCIL.
"Regeneration, Economy and Growth",Corporate Property and Land,Premises,145023,Cleaning and Domestic Supplies,01/10/2021,3918767-06/138347,666.00,GREENHAM TRADING LTD.
Adult and Health Services,Head of Adults,Premises,145023,Cleaning and Domestic Supplies,01/10/2021,3918767-06/140510,587.48,GREENHAM TRADING LTD.
Adult and Health Services,Head of Adults,Debtors,930186,Sustainability Funded Nursing Care,01/10/2021,3918771-SUSTAINABILITYPAYMENT-6,"2,965.99",HC-ONE BEAMISH LTD.
Neighbourhoods and Climate Change,Technical Services CM0300,Third Party Payments,430100,Rendered by Private Contractors,01/10/2021,3918772-3298,"5,236.00",HIGHWAY CONSTRUCTION SERVICES LTD.
Neighbourhoods and Climate Change,Environmental Services,Premises,106083,Centrally Controlled Rep and Maint,01/10/2021,3918774-7080912898,"2,320.82",HONEYWELL NOVAR SYSTEMS LTD.
"Regeneration, Economy and Growth",Culture Sport and Tourism,Premises,106083,Centrally Controlled Rep and Maint,01/10/2021,3918774-7080912905,919.44,HONEYWELL NOVAR SYSTEMS LTD.
"Regeneration, Economy and Growth",Corporate Property and Land,Premises,108099,Service Repairs and Maintenance,01/10/2021,3918774-7080912422,"6,398.43",HONEYWELL NOVAR SYSTEMS LTD.
"Regeneration, Economy and Growth",Corporate Property and Land,Premises,108099,Service Repairs and Maintenance,01/10/2021,3918774-7080914267,"1,529.29",HONEYWELL NOVAR SYSTEMS LTD.
"Regeneration, Economy and Growth",Corporate Property and Land,Premises,108099,Service Repairs and Maintenance,01/10/2021,3918774-7080913985,"1,147.27",HONEYWELL NOVAR SYSTEMS LTD.
Neighbourhoods and Climate Change,Technical Services CM0300,Supplies and Services,304221,Equipment and Materials,01/10/2021,3918776-14293,"8,300.00",HOPKINS STEEL LTD.
Resources - C A C,LCTSS,Third Party Payments,440070,Other third party payments E440,01/10/2021,3918778-RED-09-2021-218A,"45,038.00",HORDEN PARISH COUNCIL.
Adult and Health Services,Public Health CC0450,Third Party Payments,460803,Contract Payments,01/10/2021,3918781-297/22/1801-04,"387,252.00",HUMANKIND CHARITY.
Adult and Health Services,Public Health CC0450,Third Party Payments,460803,Contract Payments,01/10/2021,3918781-298-22-1803-06,"39,635.75",HUMANKIND CHARITY.
Neighbourhoods and Climate Change,Environmental Services,Third Party Payments,430113,Rendered by Private Contractors,01/10/2021,3918783-W2200235,"583,255.41",HW MARTIN HOLDINGS LTD.
"Regeneration, Economy and Growth",Development and Housing,Fees,901002,Professional fees,01/10/2021,3918785-8652,"1,650.00",ID PARTNERSHIP NORTHERN.
Resources BK0010,Digital and Customer Services,Vehicles Equipment Furniture and Fittings,912701,Computer equipment,01/10/2021,3918788-5471277,"1,320.00",INSIGHT DIRECT (UK) LTD.
"Regeneration, Economy and Growth",Corporate Property and Land,Supplies and Services,342033,Computers and Communications,01/10/2021,3918788-5464400,660.00,INSIGHT DIRECT (UK) LTD.
Resources BK0010,Digital and Customer Services,Supplies and Services,342033,Computers and Communications,01/10/2021,3918788-5470943,519.92,INSIGHT DIRECT (UK) LTD.
Resources BK0010,Digital and Customer Services,Stock A926,926900,Stock in hand-Inventory system,01/10/2021,3918788-5470924,"1,372.56",INSIGHT DIRECT (UK) LTD.
Neighbourhoods and Climate Change,Technical Services CM0300,Stock A926,926900,Stock in hand-Inventory system,01/10/2021,3918789-801937,"2,891.80",INSTARMAC GROUP PLC.
Neighbourhoods and Climate Change,Technical Services CM0300,Construction work A908,908105,Construction work,01/10/2021,3918794-25627,"1,056.00",JACK COUPE & SONS LTD T/A COUPE LINE.
Neighbourhoods and Climate Change,Environmental Services,Premises,108099,Service Repairs and Maintenance,01/10/2021,3918796-24850,"6,177.94",JC MAINTENANCE SERVICES LTD.
Neighbourhoods and Climate Change,Technical Services CM0300,Supplies and Services,304221,Equipment and Materials,01/10/2021,3918800-0303/00470493,"9,676.60",JT DOVE LTD.
Neighbourhoods and Climate Change,Environmental Services,Construction work A908,908105,Construction work,01/10/2021,3918809-202726,"1,220.00",LANDFORM SURVEYS LTD.
Adult and Health Services,Head of Adults,Debtors,930186,Sustainability Funded Nursing Care,01/10/2021,3918813-SUSTAINABILITYPAYMENT-5,"6,106.45",LEAZES HALL CARE HOME LTD.
Neighbourhoods and Climate Change,Technical Services CM0300,Supplies and Services,304221,Equipment and Materials,01/10/2021,3918816-26949,833.28,LOW GRANGE QUARRY LTD.
Neighbourhoods and Climate Change,Technical Services CM0300,Supplies and Services,304221,Equipment and Materials,01/10/2021,3918816-26966,504.00,LOW GRANGE QUARRY LTD.
"Regeneration, Economy and Growth",Corporate Property and Land,Supplies and Services,304221,Equipment and Materials,01/10/2021,3918820-SIN203945,676.95,MAGRINI LTD.
Neighbourhoods and Climate Change,Technical Services CM0300,Supplies and Services,304221,Equipment and Materials,01/10/2021,3918824-Z001059564,"2,315.84",MARSHALLS MONO LTD.
Children and Young Peoples Services,Head of Education and Skills,Transport,230008,Contract Hire,01/10/2021,3918828-INV220,"1,407.00",MICHAEL COBB T/A HAIL TAXIS.
Neighbourhoods and Climate Change,Technical Services CM0300,Premises,150015,Apportioned Exps of Operational Blds,01/10/2021,3918831-7002139052,770.13,MOBILE MINI UK LTD.
"Regeneration, Economy and Growth",Corporate Property and Land,Premises,150015,Apportioned Exps of Operational Blds,01/10/2021,3918831-7002106360,773.71,MOBILE MINI UK LTD.
"Regeneration, Economy and Growth",Corporate Property and Land,Premises,150015,Apportioned Exps of Operational Blds,01/10/2021,3918831-7002106361,705.16,MOBILE MINI UK LTD.
Resources - C A C,LCTSS,Third Party Payments,440070,Other third party payments E440,01/10/2021,3918832-RED-09-2021-219A,"20,386.00",MONK HESLEDEN PARISH COUNCIL.
Resources - C A C,LCTSS,Third Party Payments,440070,Other third party payments E440,01/10/2021,3918837-RED-09-2021-220A,"21,826.50",MURTON PARISH COUNCIL.
"Regeneration, Economy and Growth",Corporate Property and Land,Third Party Payments,430100,Rendered by Private Contractors,01/10/2021,3918838-34868,649.00,NE & C WINDOWS & DOORS LTD.
"Regeneration, Economy and Growth",Communications Management,Supplies and Services,336005,Advertising E336,01/10/2021,3918840-38001240,"2,100.00",NEWSQUEST (YORKSHIRE & NORTH EAST) LTD.
Dedicated Schools Grant BG0015,DSG High Needs Block,Third Party Payments,410037,Rendered by Other Local Authorities,01/10/2021,3918851-INV-3672,570.00,NUDGE EDUCATION LTD.
Neighbourhoods and Climate Change,Environmental Services,Transport,215005,Running Costs of Vehicles,01/10/2021,3918852-805681,"13,013.88",OIL NRG LTD.
Neighbourhoods and Climate Change,Environmental Services,Transport,215005,Running Costs of Vehicles,01/10/2021,3918852-797291,"13,433.00",OIL NRG LTD.
Neighbourhoods and Climate Change,Environmental Services,Transport,215005,Running Costs of Vehicles,01/10/2021,3918852-807535,"11,925.15",OIL NRG LTD.
Neighbourhoods and Climate Change,Environmental Services,Transport,215005,Running Costs of Vehicles,01/10/2021,3918852-807555,"3,278.98",OIL NRG LTD.
Neighbourhoods and Climate Change,Environmental Services,Transport,215022,Running Costs of Vehicles,01/10/2021,3918852-807559,"2,493.20",OIL NRG LTD.
Resources - C A C,LCTSS,Third Party Payments,440070,Other third party payments E440,01/10/2021,3918864-RED-09-2021-221A,"129,323.00",PETERLEE TOWN COUNCIL.
Adult and Health Services,Head of Adults,Debtors,930186,Sustainability Funded Nursing Care,01/10/2021,3918873-SUSTAINABILITYPAYMENT-7,"15,627.06",PREMIER CARE HOMES LTD.
Adult and Health Services,Public Health CC0450,Premises,145009,Cleaning and Domestic Supplies,01/10/2021,3918878-INV-3960,"1,188.30",QUALITY CLEANING SERVICES (NORTHERN) LTD.
"Regeneration, Economy and Growth",Culture Sport and Tourism,Third Party Payments,430131,Rendered by Private Contractors,01/10/2021,3918829-2021022,935.00,REDACTED - PAYMENT TO INDIVIDUAL
Adult and Health Services,Adults Excluded,Supplies and Services,338027,Services,01/10/2021,3918962-VB0031,"1,500.00",REDACTED - PAYMENT TO INDIVIDUAL
Adult and Health Services,Head of Adults,Third Party Payments,479150,Purchase of Care,01/10/2021,3918887-INFECTIONCONTROLFUND4/266,"2,447.10",ROSEBERRY CARE CENTRES GB LTD.
"Regeneration, Economy and Growth",Corporate Property and Land,Supplies and Services,384199,Miscellaneous Expenses,01/10/2021,3918888-TEC580300,"11,332.53",RPS CONSULTING SERVICES LTD.
Resources - C A C,LCTSS,Third Party Payments,440070,Other third party payments E440,01/10/2021,3918898-RED-09-2021-222A,"81,943.50",SEAHAM TOWN COUNCIL.
Resources BK0010,Legal & Democratic Services,Supplies and Services,338101,Services,01/10/2021,3918904-4000633207,800.00,SHEFFIELD TEACHING HOSPITAL NHS FOUNDATION TRUST.
Resources - C A C,LCTSS,Third Party Payments,440070,Other third party payments E440,01/10/2021,3918906-RED-09-2021-227A,"33,254.50",SHILDON TOWN COUNCIL.
Resources BK0010,Digital and Customer Services,Supplies and Services,342053,Computers and Communications,01/10/2021,3918909-INV-21785,"11,870.00",SILKTIDE LTD.
"Regeneration, Economy and Growth",Culture Sport and Tourism,Supplies and Services,304259,Equipment and Materials,01/10/2021,3918914-SI-21220084,650.00,SPORTS MAINTENANCE SERVICES LTD.
"Regeneration, Economy and Growth",Corporate Property and Land,Third Party Payments,430100,Rendered by Private Contractors,01/10/2021,3918916-7717,"7,675.00",ST ASTIER LTD.
Adult and Health Services,Commissioning inc Supporting People,Third Party Payments,441001,Supporting People E441,01/10/2021,3918917-1297,"40,953.00",ST MARGARETS CENTRE.
Resources - C A C,LCTSS,Third Party Payments,440070,Other third party payments E440,01/10/2021,3918921-RED-09-2021-230A,"51,461.00",STANLEY TOWN COUNCIL.*
Children and Young Peoples Services,Head of Education and Skills,Supplies and Services,384540,Miscellaneous Expenses,01/10/2021,3918923-INV-5668,"1,000.00",STEVE DAVIDSON ADVERTISING LTD T/A SD ADVERTISING LTD.
"Regeneration, Economy and Growth",Corporate Property and Land,Premises,108099,Service Repairs and Maintenance,01/10/2021,3918925-18113,808.05,STONE TECHNICAL SERVICES LTD.
"Regeneration, Economy and Growth",Corporate Property and Land,Supplies and Services,304221,Equipment and Materials,01/10/2021,3918932-653270,"4,175.43",T CROSSLING & CO LTD.
Children and Young Peoples Services,Head of Childrens Social Care,Third Party Payments,425040,Rendered by Voluntary Organisations,01/10/2021,3918934-PIG_105574,"21,960.01",TACT (THE ADOLESCENT & CHILDREN`S TRUST).
Children and Young Peoples Services,Head of Childrens Social Care,Third Party Payments,425040,Rendered by Voluntary Organisations,01/10/2021,3918934-PIG_108220,854.00,TACT (THE ADOLESCENT & CHILDREN`S TRUST).
Dedicated Schools Grant BG0015,DSG High Needs Block,Third Party Payments,425005,Rendered by Voluntary Organisations,01/10/2021,3918935-1185,"12,828.04",TALBOT HOUSE TRUST NORTH EAST.
Dedicated Schools Grant BG0015,DSG High Needs Block,Third Party Payments,425005,Rendered by Voluntary Organisations,01/10/2021,3918935-1186,"10,616.06",TALBOT HOUSE TRUST NORTH EAST.
Children and Young Peoples Services,Head of Childrens Social Care,Third Party Payments,425021,Rendered by Voluntary Organisations,01/10/2021,3918935-1200,"53,027.55",TALBOT HOUSE TRUST NORTH EAST.
Adult and Health Services,Commissioning inc Supporting People,Third Party Payments,470103,Purchase of Care,01/10/2021,3918936-HOLVOID190921,"1,647.54",TAMARIS HEALTHCARE (ENGLAND) LTD.
Neighbourhoods and Climate Change,Technical Services CM0300,Stock A926,926900,Stock in hand-Inventory system,01/10/2021,3918937-9044118055,851.32,TARMAC TRADING LTD.
Neighbourhoods and Climate Change,Technical Services CM0300,Stock A926,926900,Stock in hand-Inventory system,01/10/2021,3918947-NSIN00062368,652.80,THOMAS OWEN & SONS (NEWCASTLE) LTD.
Neighbourhoods and Climate Change,Technical Services CM0300,Third Party Payments,430100,Rendered by Private Contractors,01/10/2021,3918948-TRNE028226,"98,633.51",TOTAL RESOURCES (UK) LTD.
Children and Young Peoples Services,Head of Education and Skills,Supplies and Services,342051,Computers and Communications,01/10/2021,3918951-INV-12723,"1,057.00",TRIANGLE CONSULTING SOCIAL ENTERPRISE LTD.
Children and Young Peoples Services,Head of Education and Skills,Supplies and Services,342051,Computers and Communications,01/10/2021,3918951-INV-12722,"1,099.00",TRIANGLE CONSULTING SOCIAL ENTERPRISE LTD.
Resources - C A C,LCTSS,Third Party Payments,440070,Other third party payments E440,01/10/2021,3918952-RED-09-2021-229A,"13,287.50",TRIMDON PARISH COUNCIL.
Neighbourhoods and Climate Change,Technical Services CM0300,Supplies and Services,304221,Equipment and Materials,01/10/2021,3918955-225955,"1,072.56",TYNEDALE ROADSTONE LTD.
Neighbourhoods and Climate Change,Technical Services CM0300,Supplies and Services,304221,Equipment and Materials,01/10/2021,3918955-226045,"1,080.10",TYNEDALE ROADSTONE LTD.
Neighbourhoods and Climate Change,Technical Services CM0300,Supplies and Services,304221,Equipment and Materials,01/10/2021,3918955-226048,997.93,TYNEDALE ROADSTONE LTD.
Neighbourhoods and Climate Change,Technical Services CM0300,Supplies and Services,304221,Equipment and Materials,01/10/2021,3918955-226173,"1,083.07",TYNEDALE ROADSTONE LTD.
Neighbourhoods and Climate Change,Technical Services CM0300,Supplies and Services,304221,Equipment and Materials,01/10/2021,3918955-226178,"1,070.20",TYNEDALE ROADSTONE LTD.
Neighbourhoods and Climate Change,Technical Services CM0300,Supplies and Services,304221,Equipment and Materials,01/10/2021,3918955-226183,"1,079.11",TYNEDALE ROADSTONE LTD.
Neighbourhoods and Climate Change,Technical Services CM0300,Supplies and Services,304221,Equipment and Materials,01/10/2021,3918955-226263,"1,074.16",TYNEDALE ROADSTONE LTD.
Neighbourhoods and Climate Change,Technical Services CM0300,Supplies and Services,304221,Equipment and Materials,01/10/2021,3918955-226321,"1,087.03",TYNEDALE ROADSTONE LTD.
"Regeneration, Economy and Growth",Corporate Property and Land,Premises,108099,Service Repairs and Maintenance,01/10/2021,3918957-11743,"1,076.00",UK GUTTER MAINTENANCE LTD.
Adult and Health Services,Head of Adults,Supplies and Services,338089,Services,01/10/2021,3918967-1696,"1,000.00",WELL HANDLED LTD.
Neighbourhoods and Climate Change,Environmental Services,Premises,150015,Apportioned Exps of Operational Blds,01/10/2021,3918968-211180430,703.56,WERNICK HIRE LTD.
Neighbourhoods and Climate Change,Environmental Services,Premises,150015,Apportioned Exps of Operational Blds,01/10/2021,3918968-211180433,702.20,WERNICK HIRE LTD.
Neighbourhoods and Climate Change,Environmental Services,Premises,150015,Apportioned Exps of Operational Blds,01/10/2021,3918968-211180431,703.56,WERNICK HIRE LTD.
Neighbourhoods and Climate Change,Environmental Services,Premises,150015,Apportioned Exps of Operational Blds,01/10/2021,3918968-211180432,703.56,WERNICK HIRE LTD.
Neighbourhoods and Climate Change,Technical Services CM0300,Premises,150015,Apportioned Exps of Operational Blds,01/10/2021,3918968-211180387,698.42,WERNICK HIRE LTD.
Neighbourhoods and Climate Change,Technical Services CM0300,Premises,150015,Apportioned Exps of Operational Blds,01/10/2021,3918968-211180390,593.62,WERNICK HIRE LTD.
Neighbourhoods and Climate Change,Technical Services CM0300,Premises,150015,Apportioned Exps of Operational Blds,01/10/2021,3918968-211180393,"1,102.45",WERNICK HIRE LTD.
"Regeneration, Economy and Growth",Corporate Property and Land,Premises,150015,Apportioned Exps of Operational Blds,01/10/2021,3918968-211180382,698.40,WERNICK HIRE LTD.
"Regeneration, Economy and Growth",Corporate Property and Land,Premises,150015,Apportioned Exps of Operational Blds,01/10/2021,3918968-211180434,736.16,WERNICK HIRE LTD.
"Regeneration, Economy and Growth",Corporate Property and Land,Premises,150015,Apportioned Exps of Operational Blds,01/10/2021,3918968-211180442,703.56,WERNICK HIRE LTD.
"Regeneration, Economy and Growth",Corporate Property and Land,Premises,150015,Apportioned Exps of Operational Blds,01/10/2021,3918968-211180445,703.56,WERNICK HIRE LTD.
"Regeneration, Economy and Growth",Corporate Property and Land,Premises,150015,Apportioned Exps of Operational Blds,01/10/2021,3918968-211180456,703.56,WERNICK HIRE LTD.
Neighbourhoods and Climate Change,Technical Services CM0300,Supplies and Services,304221,Equipment and Materials,01/10/2021,3918970-54510,"1,788.66",WILLOWCRETE MANUFACTURING COMPANY LTD (MFG).
Children and Young Peoples Services,Head of Childrens Social Care,Supplies and Services,338045,Services,01/10/2021,3918971-3579621,565.50,WOMBLE BOND DICKINSON (UK) LLP.
Neighbourhoods and Climate Change,Environmental Services,Supplies and Services,304221,Equipment and Materials,01/10/2021,3918972-0000034707,"1,831.44",WYBONE LTD.
Resources BK0010,Digital and Customer Services,Supplies and Services,304639,Equipment and Materials,01/10/2021,3918973-LA14429,566.44,XMA LTD.
Resources BK0010,Finance & Transactional Services,Intangible Assets,917003,Software capitalised implementation fees,01/10/2021,3918977-IN0215656,"4,537.50",ZELLIS UK LTD.
Resources BK0010,Finance & Transactional Services,Intangible Assets,917003,Software capitalised implementation fees,01/10/2021,3918977-IN0215657,907.50,ZELLIS UK LTD.
Neighbourhoods and Climate Change,Technical Services CM0300,Stock A926,926900,Stock in hand-Inventory system,01/10/2021,3918978-145441519,"1,658.52",ZG LIGHTING (UK) LTD.
Neighbourhoods and Climate Change,Technical Services CM0300,Stock A926,926900,Stock in hand-Inventory system,01/10/2021,3918978-145442392,"1,548.02",ZG LIGHTING (UK) LTD.
Children and Young Peoples Services,Head of Childrens Social Care,Third Party Payments,425020,Rendered by Voluntary Organisations,01/10/2021,3918979-1438,"1,110.00",ZOE PLACE BABY HOSPICE.
Children and Young Peoples Services,Head of Childrens Social Care,Third Party Payments,425020,Rendered by Voluntary Organisations,01/10/2021,3918979-1476,"1,110.00",ZOE PLACE BABY HOSPICE.
Children and Young Peoples Services,Head of Childrens Social Care,Third Party Payments,425020,Rendered by Voluntary Organisations,01/10/2021,3918979-1500,"1,480.00",ZOE PLACE BABY HOSPICE.
"Regeneration, Economy and Growth",Culture Sport and Tourism,Supplies and Services,384302,Miscellaneous Expenses,04/10/2021,3918997-0406,500.00,CARRIE DENNISON T/A PRESS FOR DESIGN.
"Regeneration, Economy and Growth",Corporate Property and Land,Third Party Payments,430100,Rendered by Private Contractors,04/10/2021,3919001-615,"1,904.76",CEILINGS DIRECT LTD.
Neighbourhoods and Climate Change,Technical Services CM0300,Stock A926,926900,Stock in hand-Inventory system,04/10/2021,3919007-919996,615.00,CMT EQUIPMENT LTD.
"Regeneration, Economy and Growth",Culture Sport and Tourism,Supplies and Services,372009,Subscriptions E372,04/10/2021,3919010-SI-3380,"1,010.00",CORE BUSINESS SYSTEMS LTD T/A CASCADE 3D.
"Regeneration, Economy and Growth",Corporate Property and Land,Third Party Payments,430100,Rendered by Private Contractors,04/10/2021,3919016-NE21156,"4,080.00",DELTA WIRING SOLUTIONS LTD.
"Regeneration, Economy and Growth",Corporate Property and Land,Third Party Payments,430100,Rendered by Private Contractors,04/10/2021,3919016-NE21157,"1,400.00",DELTA WIRING SOLUTIONS LTD.
Resources BK0010,Legal & Democratic Services,Supplies and Services,338042,Services,04/10/2021,3919018-355283/INVJJS147,"2,070.00",DERE STREET BARRISTERS.
Resources BK0010,Legal & Democratic Services,Supplies and Services,338042,Services,04/10/2021,3919018-359437/INVCM211,"9,550.00",DERE STREET BARRISTERS.
Resources BK0010,Legal & Democratic Services,Supplies and Services,338042,Services,04/10/2021,3919018-359975/INVNC481,550.00,DERE STREET BARRISTERS.
Resources BK0010,Legal & Democratic Services,Supplies and Services,338042,Services,04/10/2021,3919018-362171/INVSEB1X293,550.00,DERE STREET BARRISTERS.
Resources BK0010,Legal & Democratic Services,Supplies and Services,338042,Services,04/10/2021,3919018-367270/INVCM210,550.00,DERE STREET BARRISTERS.
Neighbourhoods and Climate Change,Technical Services CM0300,Construction work A908,908105,Construction work,04/10/2021,3919020-SM-L-210929-1441,"1,485.00",DHF PRODUCTS LTD.
Neighbourhoods and Climate Change,Environmental Services,Supplies and Services,384974,Miscellaneous Expenses,04/10/2021,3919023-NEI-EXP-09-2021-080,"40,000.00",DRIVER & VEHICLE STANDARDS AGENCY (DVSA).
Children and Young Peoples Services,Head of Early Help Inclusion & Vulnerable Children.,Third Party Payments,460305,Contract Payments,04/10/2021,3919024-002SUM-2021,"2,550.00",DURHAM AREA DISABILITY LEISURE GROUP (DADLG).
"Regeneration, Economy and Growth",Corporate Property and Land,Supplies and Services,304221,Equipment and Materials,04/10/2021,3919028-059-287970,605.88,EDMUNDSON ELECTRICAL LTD.
"Regeneration, Economy and Growth",Corporate Property and Land,Supplies and Services,304221,Equipment and Materials,04/10/2021,3919028-059-288429,519.40,EDMUNDSON ELECTRICAL LTD.
Neighbourhoods and Climate Change,Environmental Services,Transport,230005,Contract Hire,04/10/2021,3919033-8176195,571.33,ENTERPRISE FLEX-E-RENT T/A BURNT TREE GROUP LTD.
Neighbourhoods and Climate Change,Environmental Services,Transport,230005,Contract Hire,04/10/2021,3919033-8178031,552.90,ENTERPRISE FLEX-E-RENT T/A BURNT TREE GROUP LTD.
Neighbourhoods and Climate Change,Technical Services CM0300,Stock A926,926900,Stock in hand-Inventory system,04/10/2021,3919036-138750,"4,852.56",FABRIKAT (NOTTINGHAM) LTD.
Children and Young Peoples Services,Head of Childrens Social Care,Third Party Payments,440047,Other third party payments E440,04/10/2021,3919046-0017,"4,750.00",HUDSON HOUSE HOLIDAY LET.
Children and Young Peoples Services,Head of Education and Skills,Construction work A908,908105,Construction work,04/10/2021,3919056-NEWBUILDPRIMARYSCHOOL-BOWBURN,"33,988.97",JOHN WADE (HAULAGE) LTD.
Neighbourhoods and Climate Change,Technical Services CM0300,Supplies and Services,304221,Equipment and Materials,04/10/2021,3919061-0303/00475167,"1,507.50",JT DOVE LTD.
Children and Young Peoples Services,Head of Childrens Social Care,Supplies and Services,338045,Services,04/10/2021,3919071-227863,"1,020.00",LEXTOX.
Resources BK0010,Finance & Transactional Services,Supplies and Services,338017,Services,04/10/2021,3919073-120079061,"8,150.22",LLOYDS BANK PLC.
Neighbourhoods and Climate Change,Technical Services CM0300,Third Party Payments,430128,Rendered by Private Contractors,04/10/2021,3919079-6111,"1,106.50",MAKEPEACE MOTORS.
Adult and Health Services,Head of Adults,Third Party Payments,470101,Purchase of Care,04/10/2021,3919095-0000056933,"1,442.80",NORTH EAST AUTISM SOCIETY.
Adult and Health Services,Head of Adults,Third Party Payments,470101,Purchase of Care,04/10/2021,3919095-0000056934,"1,264.52",NORTH EAST AUTISM SOCIETY.
Adult and Health Services,Head of Adults,Third Party Payments,470101,Purchase of Care,04/10/2021,3919095-0000057215,"8,596.80",NORTH EAST AUTISM SOCIETY.
Adult and Health Services,Head of Adults,Third Party Payments,470101,Purchase of Care,04/10/2021,3919095-0000057216,717.26,NORTH EAST AUTISM SOCIETY.
Neighbourhoods and Climate Change,Technical Services CM0300,Supplies and Services,304221,Equipment and Materials,04/10/2021,3919097-915041588,"1,204.00",NORTHUMBRIAN WATER LTD.
Resources BK0010,Legal & Democratic Services,Supplies and Services,338099,Services,04/10/2021,3919097-915073412,576.50,NORTHUMBRIAN WATER LTD.
Children and Young Peoples Services,Head of Childrens Social Care,Premises,135005,Water Services,04/10/2021,3919097-359144131218997199,673.59,NORTHUMBRIAN WATER LTD.
"Regeneration, Economy and Growth",Culture Sport and Tourism,Supplies and Services,384199,Miscellaneous Expenses,04/10/2021,3919098-00017837,"1,584.84",NSL LTD.
Neighbourhoods and Climate Change,Environmental Services,Transport,215005,Running Costs of Vehicles,04/10/2021,3919099-808924,"13,014.97",OIL NRG LTD.
Neighbourhoods and Climate Change,Technical Services CM0300,Stock A926,926900,Stock in hand-Inventory system,04/10/2021,3919106-XL276160,"5,608.00",PARK ELECTRICAL DISTRIBUTORS LTD.
Neighbourhoods and Climate Change,Technical Services CM0300,Stock A926,926900,Stock in hand-Inventory system,04/10/2021,3919106-XL276161,"4,524.00",PARK ELECTRICAL DISTRIBUTORS LTD.
"Regeneration, Economy and Growth",Culture Sport and Tourism,Supplies and Services,304259,Equipment and Materials,04/10/2021,3919112-2078,"4,955.00",POWER BRUSH INTERNATIONAL LTD.
Children and Young Peoples Services,Head of Education and Skills,Third Party Payments,410037,Rendered by Other Local Authorities,04/10/2021,3919114-51621648,624.75,PROTOCOL EDUCATION LTD.*
Neighbourhoods and Climate Change,Environmental Services,Supplies and Services,338066,Services,04/10/2021,3919154-2,"1,000.00",REDACTED - PAYMENT TO INDIVIDUAL
Neighbourhoods and Climate Change,Technical Services CM0300,Third Party Payments,430127,Rendered by Private Contractors,04/10/2021,3919123-2850,"1,213.00",S & R LANDSCAPES.
Adult and Health Services,Head of Adults,Third Party Payments,470101,Purchase of Care,04/10/2021,3919127-CAS-10-2021-013,"47,467.50",SEAHAM CARE LTD.
Neighbourhoods and Climate Change,Technical Services CM0300,Third Party Payments,430100,Rendered by Private Contractors,04/10/2021,3919129-23013-21,"55,575.26",SEYMOUR (CIVIL ENGINEERING CONTRACTORS) LTD.
Neighbourhoods and Climate Change,Environmental Services,Third Party Payments,430119,Rendered by Private Contractors,04/10/2021,3919130-702434,"8,636.54",SGG ENVIRONMENTAL SOLUTIONS LTD.
Neighbourhoods and Climate Change,Partnerships & Community Engagement Div.,Supplies and Services,384199,Miscellaneous Expenses,04/10/2021,3919132-176065,534.26,SHOWSEC INTERNATIONAL LTD.
Neighbourhoods and Climate Change,Partnerships & Community Engagement Div.,Supplies and Services,384199,Miscellaneous Expenses,04/10/2021,3919132-176066,576.45,SHOWSEC INTERNATIONAL LTD.
Neighbourhoods and Climate Change,Environmental Services,Supplies and Services,338027,Services,04/10/2021,3919135-0000910463,911.71,SOCOTEC UK LTD.
Children and Young Peoples Services,Head of Childrens Social Care,Third Party Payments,425028,Rendered by Voluntary Organisations,04/10/2021,3919137-223,"12,975.00",SPORT WORKS LTD.
"Regeneration, Economy and Growth",Corporate Property and Land,Supplies and Services,338078,Services,04/10/2021,3919138-17347,"5,322.87",STEADFAST SECURITY SOLUTIONS LTD.
"Regeneration, Economy and Growth",Corporate Property and Land,Supplies and Services,338078,Services,04/10/2021,3919138-17454,"5,419.43",STEADFAST SECURITY SOLUTIONS LTD.
"Regeneration, Economy and Growth",Corporate Property and Land,Supplies and Services,304221,Equipment and Materials,04/10/2021,3919144-670251,"1,066.35",T CROSSLING & CO LTD.
Neighbourhoods and Climate Change,Environmental Services,Transport,215023,Running Costs of Vehicles,04/10/2021,3919153-4111261,525.60,TENNANTS DISTRIBUTION LTD.
Children and Young Peoples Services,Head of Early Help Inclusion & Vulnerable Children.,Supplies and Services,338094,Services,04/10/2021,3919157-6543,922.50,THE DURHAM CENTRE LTD.
Neighbourhoods and Climate Change,Technical Services CM0300,Supplies and Services,342051,Computers and Communications,04/10/2021,3919162-000084066,"2,306.00",THOMAS TELFORD LTD.
Neighbourhoods and Climate Change,Technical Services CM0300,Stock A926,926900,Stock in hand-Inventory system,04/10/2021,3919165-105472,"3,375.00",TOTAL RENTAL SOLUTIONS.
Neighbourhoods and Climate Change,Technical Services CM0300,Stock A926,926900,Stock in hand-Inventory system,04/10/2021,3919165-105475,"1,344.00",TOTAL RENTAL SOLUTIONS.
Neighbourhoods and Climate Change,Technical Services CM0300,Stock A926,926900,Stock in hand-Inventory system,04/10/2021,3919165-105490,"3,088.00",TOTAL RENTAL SOLUTIONS.
Neighbourhoods and Climate Change,Technical Services CM0300,Stock A926,926900,Stock in hand-Inventory system,04/10/2021,3919165-105491,"2,130.65",TOTAL RENTAL SOLUTIONS.
Neighbourhoods and Climate Change,Technical Services CM0300,Supplies and Services,304221,Equipment and Materials,04/10/2021,3919170-224288,694.99,TYNEDALE ROADSTONE LTD.
Neighbourhoods and Climate Change,Technical Services CM0300,Supplies and Services,304221,Equipment and Materials,04/10/2021,3919170-224289,"1,082.08",TYNEDALE ROADSTONE LTD.
Neighbourhoods and Climate Change,Technical Services CM0300,Supplies and Services,304221,Equipment and Materials,04/10/2021,3919170-225605,"1,290.58",TYNEDALE ROADSTONE LTD.
Neighbourhoods and Climate Change,Technical Services CM0300,Supplies and Services,304221,Equipment and Materials,04/10/2021,3919170-225760,"1,011.38",TYNEDALE ROADSTONE LTD.
"Regeneration, Economy and Growth",Business Durham CL0850,Supplies and Services,384899,Miscellaneous Expenses,04/10/2021,3919173-2001335,"11,980.00",USHAW COLLEGE.
Neighbourhoods and Climate Change,Environmental Services,Third Party Payments,430100,Rendered by Private Contractors,04/10/2021,3919176-INV-44207,540.00,VISTECH SERVICES LTD.
Resources BK0010,Finance & Transactional Services,Supplies and Services,338045,Services,04/10/2021,3919178-805550,640.00,WARD HADAWAY.
Resources BK0010,Finance & Transactional Services,Supplies and Services,338045,Services,04/10/2021,3919178-808816,"1,260.00",WARD HADAWAY.
Children and Young Peoples Services,Head of Early Help Inclusion & Vulnerable Children.,Supplies and Services,304083,Equipment and Materials,04/10/2021,3919185-SI-0823923,"1,233.05",YORKSHIRE PURCHASING ORGANISATION.
Dedicated Schools Grant BG0015,DSG High Needs Block,Third Party Payments,425005,Rendered by Voluntary Organisations,04/10/2021,3919187-07407,"3,138.21",YOUNG FOUNDATIONS LTD.
Dedicated Schools Grant BG0015,DSG High Needs Block,Third Party Payments,425005,Rendered by Voluntary Organisations,04/10/2021,3919187-07661,"4,184.28",YOUNG FOUNDATIONS LTD.
Dedicated Schools Grant BG0015,DSG High Needs Block,Third Party Payments,425005,Rendered by Voluntary Organisations,04/10/2021,3919187-07862,"3,765.85",YOUNG FOUNDATIONS LTD.
Dedicated Schools Grant BG0015,DSG High Needs Block,Third Party Payments,425005,Rendered by Voluntary Organisations,04/10/2021,3919187-08007,"2,510.57",YOUNG FOUNDATIONS LTD.
Neighbourhoods and Climate Change,Technical Services CM0300,Stock A926,926900,Stock in hand-Inventory system,05/10/2021,3919743-274529,645.00,1ST COVERALL COMPANY LTD.
Adult and Health Services,Head of Adults,Third Party Payments,470101,Purchase of Care,05/10/2021,3919744-UPLIFTPAYMENTPP6-9,"1,472.18",A CHARLES THOMAS (CARE) LTD.
Dedicated Schools Grant BG0015,DSG High Needs Block,Transfer Payments,510025,School Children,05/10/2021,3919748-CAS-10-2021-019,"5,835.00",ACTION FOR CHILDREN DEVELOPMENTS LTD NURSERY ACCOUNT.
"Regeneration, Economy and Growth",Business Durham CL0850,Third Party Payments,440999,Other third party payments E440,05/10/2021,3919750-DBRG-10-2021-12,"3,750.00",ADORO CAFFE.
"Regeneration, Economy and Growth",Corporate Property and Land,Third Party Payments,430100,Rendered by Private Contractors,05/10/2021,3919751-48145799,738.88,ADT FIRE & SECURITY PLC.
Dedicated Schools Grant BG0015,DSG High Needs Block,Supplies and Services,384302,Miscellaneous Expenses,05/10/2021,3919752-WOSI20,"2,824.64",ADVANCE LEARNING PARTNERSHIP.
Children and Young Peoples Services,Head of Early Help Inclusion & Vulnerable Children.,Supplies and Services,342033,Computers and Communications,05/10/2021,3919753-ARCMIN/00000208,"8,212.88",ADVANCED T/A CAREWORKS (IRELAND) LTD.
Neighbourhoods and Climate Change,Environmental Services,Supplies and Services,304221,Equipment and Materials,05/10/2021,3919756-32063558,"3,047.03",AGGREGATE INDUSTRIES UK LTD.
Neighbourhoods and Climate Change,Environmental Services,Supplies and Services,304221,Equipment and Materials,05/10/2021,3919758-CD971240724,"1,051.10",AGROVISTA UK LTD FORMERLY SHERRIFF AMENITY.
Adult and Health Services,Head of Adults,Third Party Payments,470101,Purchase of Care,05/10/2021,3919759-UPLIFTPAYMENTPP6-6,"1,710.80",AKARI CARE LTD.
Adult and Health Services,Head of Adults,Third Party Payments,470101,Purchase of Care,05/10/2021,3919760-UPLIFTPAYMENTPP6-95,"2,010.92",AKARI CARE LTD.
Neighbourhoods and Climate Change,Community Protection,Supplies and Services,308011,Furniture,05/10/2021,3919762-172360,"1,844.00",ALBANY OFFICE EQUIPMENT (WHOLESALE) LTD.
Adult and Health Services,Head of Adults,Third Party Payments,470101,Purchase of Care,05/10/2021,3919765-UPLIFTPAYMENTPP6-21,"2,217.60",ALLIANCE CARE (TRENDLEWOOD) LTD.
Adult and Health Services,Head of Adults,Third Party Payments,470101,Purchase of Care,05/10/2021,3919770-UPLIFTPAYMENTPP6-91,846.66,ANCHOR HANOVER GROUP.
"Regeneration, Economy and Growth",Corporate Property and Land,Third Party Payments,430100,Rendered by Private Contractors,05/10/2021,3919772-4979,"4,890.00",APEX ROOFING SPECIALISTS LTD.
"Regeneration, Economy and Growth",Corporate Property and Land,Supplies and Services,342051,Computers and Communications,05/10/2021,3919774-IN-013-016864,530.60,ARGUS SOFTWARE (UK) LTD.
Adult and Health Services,Head of Adults,Third Party Payments,470101,Purchase of Care,05/10/2021,3919775-UPLIFTPAYMENTPP6-78,873.87,ASCOT CARE NORTH EAST LTD..
"Regeneration, Economy and Growth",Culture Sport and Tourism,Supplies and Services,312013,Newspapers books and periodicals E312,05/10/2021,3919777-6559592,725.43,ASKEWS & HOLTS LIBRARY SERVICES LTD.
"Regeneration, Economy and Growth",Culture Sport and Tourism,Supplies and Services,312013,Newspapers books and periodicals E312,05/10/2021,3919777-6566571,505.04,ASKEWS & HOLTS LIBRARY SERVICES LTD.
"Regeneration, Economy and Growth",Culture Sport and Tourism,Supplies and Services,312013,Newspapers books and periodicals E312,05/10/2021,3919777-6566601,564.45,ASKEWS & HOLTS LIBRARY SERVICES LTD.
Adult and Health Services,Head of Adults,Third Party Payments,474101,Purchase of Care,05/10/2021,3919783-CAS-10-2021-006,"2,212.50",BARCHESTER HEALTHCARE HOMES LTD.
Adult and Health Services,Head of Adults,Third Party Payments,474101,Purchase of Care,05/10/2021,3919782-UPLIFTPAYMENTPP6-43,"1,424.53",BARCHESTER HEALTHCARE HOMES LTD.
Adult and Health Services,Head of Adults,Third Party Payments,470101,Purchase of Care,05/10/2021,3919784-UPLIFTPAYMENTPP6-11,905.71,BEAMISH RESIDENTIAL CARE HOME LTD.
Neighbourhoods and Climate Change,Environmental Services,Third Party Payments,430100,Rendered by Private Contractors,05/10/2021,3919785-46062717,509.50,BELL TRUCK SALES LTD T/A BELL TRUCK & VAN.
Neighbourhoods and Climate Change,Environmental Services,Third Party Payments,430100,Rendered by Private Contractors,05/10/2021,3919785-36140480,"1,086.55",BELL TRUCK SALES LTD T/A BELL TRUCK & VAN.
Neighbourhoods and Climate Change,Environmental Services,Transport,210057,Repair and Maintenance of Vehicles,05/10/2021,3919785-35209628,862.70,BELL TRUCK SALES LTD T/A BELL TRUCK & VAN.
Neighbourhoods and Climate Change,Environmental Services,Transport,210057,Repair and Maintenance of Vehicles,05/10/2021,3919785-35209634,532.59,BELL TRUCK SALES LTD T/A BELL TRUCK & VAN.
Neighbourhoods and Climate Change,Environmental Services,Transport,210057,Repair and Maintenance of Vehicles,05/10/2021,3919785-35209836,766.35,BELL TRUCK SALES LTD T/A BELL TRUCK & VAN.
Dedicated Schools Grant BG0015,DSG High Needs Block,Central Support and Other Recharges,689988,Unclassified E690,05/10/2021,3919789-CAS-10-2021-022,"4,184.00",BISHOP CHADWICK CATHOLIC EDUCATION TRUST (NSCET).
"Regeneration, Economy and Growth",Culture Sport and Tourism,Supplies and Services,384199,Miscellaneous Expenses,05/10/2021,3919791-21038,"3,087.50",BLUEGRASS RESEARCH LTD.
"Regeneration, Economy and Growth",Culture Sport and Tourism,Supplies and Services,384199,Miscellaneous Expenses,05/10/2021,3919791-21039,"2,050.00",BLUEGRASS RESEARCH LTD.
Adult and Health Services,Head of Adults,Third Party Payments,470101,Purchase of Care,05/10/2021,3919794-UPLIFTPAYMENTPP6-19,"1,755.09",BONDCARE WILLINGTON LTD.
Adult and Health Services,Head of Adults,Third Party Payments,470101,Purchase of Care,05/10/2021,3919795-UPLIFTPAYMENTPP6-72,"1,845.46",BONDCARE WILLINGTON LTD.
Adult and Health Services,Head of Adults,Third Party Payments,470101,Purchase of Care,05/10/2021,3919796-UPLIFTPAYMENTPP6-61,"1,303.98",BONDCARE WILLINGTON LTD.
Children and Young Peoples Services,Head of Education and Skills,Supplies and Services,304252,Equipment and Materials,05/10/2021,3919798-31,"1,767.00",BRASS (INSTRUMENT REPAIRER).
Adult and Health Services,Head of Adults,Third Party Payments,470101,Purchase of Care,05/10/2021,3919802-UPLIFTPAYMENTPP6-64,799.82,BROOMHOUSE CARE LTD.
Neighbourhoods and Climate Change,Technical Services CM0300,Supplies and Services,304259,Equipment and Materials,05/10/2021,3919808-2392,"35,000.00",BUNCE (ASHBURY) LTD.
Neighbourhoods and Climate Change,Technical Services CM0300,Third Party Payments,430100,Rendered by Private Contractors,05/10/2021,3919808-2393,"1,000.00",BUNCE (ASHBURY) LTD.
Children and Young Peoples Services,Head of Childrens Social Care,Third Party Payments,425020,Rendered by Voluntary Organisations,05/10/2021,3919809-038/22,740.00,BUTTERWICK LTD..
Adult and Health Services,Head of Adults,Third Party Payments,470101,Purchase of Care,05/10/2021,3919810-UPLIFTPAYMENTPP6-85,"1,284.18",CAREWELL (HEALTH CARE) LTD.
"Regeneration, Economy and Growth",Corporate Property and Land,Supplies and Services,304221,Equipment and Materials,05/10/2021,3919812-10600575,868.73,CARPET & FLOORING (TRADING) LTD.
Neighbourhoods and Climate Change,Environmental Services,Transport,210057,Repair and Maintenance of Vehicles,05/10/2021,3919817-417636,688.30,CHATFIELDS T/A EVANS HALSHAW.
"Regeneration, Economy and Growth",Corporate Property and Land,Supplies and Services,304221,Equipment and Materials,05/10/2021,3919821-2852ABH924,"1,181.01",CITY PLUMBING SUPPLIES HOLDINGS LTD.
Neighbourhoods and Climate Change,Technical Services CM0300,Stock A926,926004,Stock,05/10/2021,3919822-400035504,"19,860.40",CLEVELAND POTASH LTD T/A ICL FERTILIZERS.
Neighbourhoods and Climate Change,Technical Services CM0300,Stock A926,926004,Stock,05/10/2021,3919822-400035513,"19,868.80",CLEVELAND POTASH LTD T/A ICL FERTILIZERS.
Neighbourhoods and Climate Change,Technical Services CM0300,Stock A926,926004,Stock,05/10/2021,3919822-400035523,"12,008.50",CLEVELAND POTASH LTD T/A ICL FERTILIZERS.
Neighbourhoods and Climate Change,Technical Services CM0300,Stock A926,926004,Stock,05/10/2021,3919822-400035524,"3,944.50",CLEVELAND POTASH LTD T/A ICL FERTILIZERS.
Neighbourhoods and Climate Change,Technical Services CM0300,Stock A926,926004,Stock,05/10/2021,3919822-400035525,"24,791.90",CLEVELAND POTASH LTD T/A ICL FERTILIZERS.
Neighbourhoods and Climate Change,Technical Services CM0300,Stock A926,926004,Stock,05/10/2021,3919822-400035526,"25,715.20",CLEVELAND POTASH LTD T/A ICL FERTILIZERS.
Neighbourhoods and Climate Change,Technical Services CM0300,Stock A926,926004,Stock,05/10/2021,3919822-400035590,"15,726.90",CLEVELAND POTASH LTD T/A ICL FERTILIZERS.
Neighbourhoods and Climate Change,Technical Services CM0300,Stock A926,926004,Stock,05/10/2021,3919822-400035611,"18,898.60",CLEVELAND POTASH LTD T/A ICL FERTILIZERS.
Neighbourhoods and Climate Change,Technical Services CM0300,Stock A926,926004,Stock,05/10/2021,3919822-400035638,"15,897.70",CLEVELAND POTASH LTD T/A ICL FERTILIZERS.
Neighbourhoods and Climate Change,Technical Services CM0300,Stock A926,926004,Stock,05/10/2021,3919822-400035721,"12,842.20",CLEVELAND POTASH LTD T/A ICL FERTILIZERS.
Neighbourhoods and Climate Change,Technical Services CM0300,Stock A926,926900,Stock in hand-Inventory system,05/10/2021,3919824-916831,598.00,CMT EQUIPMENT LTD.
Neighbourhoods and Climate Change,Technical Services CM0300,Stock A926,926900,Stock in hand-Inventory system,05/10/2021,3919824-917910,630.00,CMT EQUIPMENT LTD.
Neighbourhoods and Climate Change,Technical Services CM0300,Third Party Payments,430100,Rendered by Private Contractors,05/10/2021,3919825-I21D0153,"27,498.12",COLAS LTD.
Neighbourhoods and Climate Change,Technical Services CM0300,Third Party Payments,430100,Rendered by Private Contractors,05/10/2021,3919825-I21D0154,"92,614.94",COLAS LTD.
Adult and Health Services,Head of Adults,Third Party Payments,474101,Purchase of Care,05/10/2021,3919833-UPLIFTPAYMENTPP6-97,970.73,COUNTRYWIDE CARE HOMES (2) LTD.
Adult and Health Services,Head of Adults,Third Party Payments,470101,Purchase of Care,05/10/2021,3919832-UPLIFTPAYMENTPP6-39,660.42,COUNTRYWIDE CARE HOMES (2) LTD.
Adult and Health Services,Head of Adults,Third Party Payments,470101,Purchase of Care,05/10/2021,3919835-UPLIFTPAYMENTPP6-27,847.69,CRAIGARRAN LTD.
Adult and Health Services,Head of Adults,Third Party Payments,470101,Purchase of Care,05/10/2021,3919838-UPLIFTPAYMENTPP6-28,572.04,CROFT HOUSE (CARE) LTD.
Adult and Health Services,Head of Adults,Third Party Payments,470101,Purchase of Care,05/10/2021,3919839-UPLIFTPAYMENTPP6-76,"2,437.17",CROWN CARE VI LTD.
Neighbourhoods and Climate Change,Technical Services CM0300,Third Party Payments,430127,Rendered by Private Contractors,05/10/2021,3919842-067,"3,044.58",D & L HOPPS.
Adult and Health Services,Head of Adults,Third Party Payments,470101,Purchase of Care,05/10/2021,3919843-UPLIFTPAYMENTPP6-92,893.82,D3 CARE LTD.
Resources BK0010,Digital and Customer Services,Supplies and Services,342033,Computers and Communications,05/10/2021,3919847-7402748884,"3,760.00",DELL COMPUTER CORPORATION LTD.
Neighbourhoods and Climate Change,Environmental Services,Transport,210057,Repair and Maintenance of Vehicles,05/10/2021,3919849-DE11437134,716.69,DENNIS EAGLE LTD.
Adult and Health Services,Head of Adults,Third Party Payments,470101,Purchase of Care,05/10/2021,3919851-UPLIFTPAYMENTPP6-33,788.30,DEVONSHIRE HOUSE CARE LTD.
Adult and Health Services,Head of Adults,Third Party Payments,474101,Purchase of Care,05/10/2021,3919853-CAS-10-2021-011,"2,753.55",DIPTON CARE HOME LTD.
Adult and Health Services,Head of Adults,Third Party Payments,470101,Purchase of Care,05/10/2021,3919853-UPLIFTPAYMENTPP6-34,"1,254.29",DIPTON CARE HOME LTD.
Resources BK0010,Legal & Democratic Services,Supplies and Services,338101,Services,05/10/2021,3919855-9/2021,"3,300.00",DR DCA SENADHIRA.
Resources BK0010,Legal & Democratic Services,Supplies and Services,338101,Services,05/10/2021,3919856-PB181,"3,242.40",DR PAUL BARRETT.
Adult and Health Services,Head of Adults,Third Party Payments,474101,Purchase of Care,05/10/2021,3919858-UPLIFTPAYMENTPP6-62,"1,220.40",DURHAM CARELINE LTD.
Dedicated Schools Grant BG0015,DSG High Needs Block,Supplies and Services,384302,Miscellaneous Expenses,05/10/2021,3919861-CAS-10-2021-001,"5,000.00",DURHAM UTC LTD (UNIVERSITY TECHNICAL COLLEGE).
Children and Young Peoples Services,Head of Early Help Inclusion & Vulnerable Children.,Third Party Payments,460305,Contract Payments,05/10/2021,3919865-6097,"39,985.00",EAST DURHAM COMMUNITY DEVELOPMENT TRUST LTD T/A EAST DURHAM TRUST.
"Regeneration, Economy and Growth",Development and Housing,Third Party Payments,440999,Other third party payments E440,05/10/2021,3919866-COMF009,900.00,EAST DURHAM COMMUNITY INITIATIVES LTD.
Neighbourhoods and Climate Change,Environmental Services,Supplies and Services,304221,Equipment and Materials,05/10/2021,3919867-0000072502,"4,198.20",EAST RIDING HORTICULTURE LTD.
"Regeneration, Economy and Growth",Business Durham CL0850,Third Party Payments,440999,Other third party payments E440,05/10/2021,3919868-DBRG-10-2021-13,"3,664.33",EAST SHAWS BOARDING KENNELS & CATTERY LTD.
Adult and Health Services,Head of Adults,Third Party Payments,470101,Purchase of Care,05/10/2021,3919874-UPLIFTPAYMENTPP6-35,979.00,ELBA CARE LTD.
"Regeneration, Economy and Growth",Corporate Property and Land,Supplies and Services,304221,Equipment and Materials,05/10/2021,3919879-SIN019347,"2,996.76",ENERGY CONSERVATION SOLUTIONS LTD (ECSL).
Neighbourhoods and Climate Change,Environmental Services,Third Party Payments,430100,Rendered by Private Contractors,05/10/2021,3919881-13000788281,645.50,ENTERPRISE FLEX-E-RENT T/A BURNT TREE GROUP LTD.
Adult and Health Services,Head of Adults,Third Party Payments,470101,Purchase of Care,05/10/2021,3919884-UPLIFTPAYMENTPP6-1,949.70,ESSENTIAL CARE & SUPPORT LTD.
"Regeneration, Economy and Growth",Transport and Contracted Services,Third Party Payments,430106,Rendered by Private Contractors,05/10/2021,3919889-PUBLICSERVICEAUG/SEPT21,"3,500.49",FERRYHILL VILLAGE TRAVEL.
Adult and Health Services,Commissioning inc Supporting People,Third Party Payments,470103,Purchase of Care,05/10/2021,3919893-HLGVOID190921,"1,098.36",FOUR SEASONS (NO 9) LTD.
Adult and Health Services,Head of Adults,Third Party Payments,470101,Purchase of Care,05/10/2021,3919893-UPLIFTPAYMENTPP6-42,"1,344.58",FOUR SEASONS (NO 9) LTD.
Adult and Health Services,Head of Adults,Third Party Payments,470101,Purchase of Care,05/10/2021,3919894-UPLIFTPAYMENTPP6-70,955.82,FOUR SEASONS HOMES NO 1 LTD.
Children and Young Peoples Services,Head of Education and Skills,Supplies and Services,338045,Services,05/10/2021,3919896-266855,"11,562.50",FREETHS LLP.
"Regeneration, Economy and Growth",Corporate Property and Land,Supplies and Services,304221,Equipment and Materials,05/10/2021,3919898-1295,"1,007.40",FT LEISURE LTD.
Children and Young Peoples Services,Head of Education and Skills,Transport,230007,Contract Hire,05/10/2021,3919900-102467,"1,336.80",G & P JOHNSON LTD T/A NIGHTINGALE COACHES.
Adult and Health Services,Head of Adults,Transport,230005,Contract Hire,05/10/2021,3919899-102479,714.74,G & P JOHNSON LTD T/A NIGHTINGALE COACHES.
Adult and Health Services,Head of Adults,Transport,230005,Contract Hire,05/10/2021,3919900-102480,714.74,G & P JOHNSON LTD T/A NIGHTINGALE COACHES.
Adult and Health Services,Head of Adults,Transport,230005,Contract Hire,05/10/2021,3919900-102481,714.74,G & P JOHNSON LTD T/A NIGHTINGALE COACHES.
Adult and Health Services,Head of Adults,Transport,230005,Contract Hire,05/10/2021,3919900-102367,"1,041.00",G & P JOHNSON LTD T/A NIGHTINGALE COACHES.
Adult and Health Services,Head of Adults,Transport,230005,Contract Hire,05/10/2021,3919900-102474,"1,056.00",G & P JOHNSON LTD T/A NIGHTINGALE COACHES.
Adult and Health Services,Head of Adults,Transport,230005,Contract Hire,05/10/2021,3919900-102482,"1,111.50",G & P JOHNSON LTD T/A NIGHTINGALE COACHES.
Adult and Health Services,Head of Adults,Transport,230005,Contract Hire,05/10/2021,3919900-102483,"6,472.00",G & P JOHNSON LTD T/A NIGHTINGALE COACHES.
Adult and Health Services,Head of Adults,Third Party Payments,470101,Purchase of Care,05/10/2021,3919902-UPLIFTPAYMENTPP6-58,"1,116.63",GAINFORD CARE HOMES LTD.
Adult and Health Services,Head of Adults,Third Party Payments,470101,Purchase of Care,05/10/2021,3919902-UPLIFTPAYMENTPP6-59,"1,130.39",GAINFORD CARE HOMES LTD.
Adult and Health Services,Head of Adults,Third Party Payments,470101,Purchase of Care,05/10/2021,3919903-UPLIFTPAYMENTPP6-57,"1,459.53",GAINFORD CARE HOMES LTD.
Adult and Health Services,Head of Adults,Third Party Payments,470101,Purchase of Care,05/10/2021,3919904-UPLIFTPAYMENTPP6-56,"1,741.08",GAINFORD CARE HOMES LTD.
Adult and Health Services,Head of Adults,Third Party Payments,470101,Purchase of Care,05/10/2021,3919905-UPLIFTPAYMENTPP6-54,"1,434.43",GAINFORD CARE HOMES LTD.
Adult and Health Services,Head of Adults,Third Party Payments,470101,Purchase of Care,05/10/2021,3919906-UPLIFTPAYMENTPP6-55,"1,685.60",GAINFORD CARE HOMES LTD.
"Regeneration, Economy and Growth",Culture Sport and Tourism,Supplies and Services,384199,Miscellaneous Expenses,05/10/2021,3919907-470,"4,990.00",GAZEBOS FOR HIRE LTD.
"Regeneration, Economy and Growth",Business Durham CL0850,Third Party Payments,440999,Other third party payments E440,05/10/2021,3919911-DBRG-10-2021-05,"7,891.28",GLIDEROL GARAGE & INDUSTRIAL DOORS LTD.
"Regeneration, Economy and Growth",Business Durham CL0850,Third Party Payments,440999,Other third party payments E440,05/10/2021,3919911-DBRG-10-2021-06,"6,745.86",GLIDEROL GARAGE & INDUSTRIAL DOORS LTD.
Neighbourhoods and Climate Change,Technical Services CM0300,Stock A926,926900,Stock in hand-Inventory system,05/10/2021,3919915-06/140125,"2,645.16",GREENHAM TRADING LTD.
Neighbourhoods and Climate Change,Technical Services CM0300,Stock A926,926900,Stock in hand-Inventory system,05/10/2021,3919915-06/140286,"1,974.00",GREENHAM TRADING LTD.
Neighbourhoods and Climate Change,Technical Services CM0300,Stock A926,926900,Stock in hand-Inventory system,05/10/2021,3919915-06/141000,"2,699.34",GREENHAM TRADING LTD.
Adult and Health Services,Public Health CC0450,Third Party Payments,460803,Contract Payments,05/10/2021,3919921-DCCDA019,"40,400.08",HARBOUR SUPPORT SERVICES.
Adult and Health Services,Public Health CC0450,Third Party Payments,460803,Contract Payments,05/10/2021,3919921-DCCVC019,"4,321.42",HARBOUR SUPPORT SERVICES.
Neighbourhoods and Climate Change,Environmental Services,Third Party Payments,430119,Rendered by Private Contractors,05/10/2021,3919923-121949,"3,575.67",HARPERS ENVIRONMENTAL LTD.
Adult and Health Services,Head of Adults,Third Party Payments,470101,Purchase of Care,05/10/2021,3919924-UPLIFTPAYMENTPP6-63,"1,652.54",HC-ONE BEAMISH LTD.
Adult and Health Services,Head of Adults,Third Party Payments,470101,Purchase of Care,05/10/2021,3919925-UPLIFTPAYMENTPP6-40,"2,357.08",HC-ONE BEAMISH LTD.
Adult and Health Services,Head of Adults,Third Party Payments,470101,Purchase of Care,05/10/2021,3919926-UPLIFTPAYMENTPP6-81,"1,167.67",HC-ONE BEAMISH LTD.
Adult and Health Services,Head of Adults,Third Party Payments,470101,Purchase of Care,05/10/2021,3919927-UPLIFTPAYMENTPP6-37,"1,482.75",HC-ONE BEAMISH LTD.
Adult and Health Services,Head of Adults,Third Party Payments,470101,Purchase of Care,05/10/2021,3919928-UPLIFTPAYMENTPP6-41,"1,222.51",HC-ONE BEAMISH LTD.
"Regeneration, Economy and Growth",Culture Sport and Tourism,Supplies and Services,304252,Equipment and Materials,05/10/2021,3919931-22928,"1,184.00",HI TECH SECURITY PRINT LTD.
Adult and Health Services,Head of Adults,Third Party Payments,470101,Purchase of Care,05/10/2021,3919932-UPLIFTPAYMENTPP6-7,"1,241.96",HILL CARE 3 LTD.
Adult and Health Services,Head of Adults,Third Party Payments,470101,Purchase of Care,05/10/2021,3919933-UPLIFTPAYMENTPP6-67,"1,001.91",HILL CARE 3 LTD.
Children and Young Peoples Services,Head of Education and Skills,Transport,230034,Contract Hire,05/10/2021,3919935-18605,"2,305.60",HODGSONS COACH OPERATORS LTD.
Children and Young Peoples Services,Head of Education and Skills,Transport,230007,Contract Hire,05/10/2021,3919935-18599,"2,103.87",HODGSONS COACH OPERATORS LTD.
Children and Young Peoples Services,Head of Education and Skills,Transport,230007,Contract Hire,05/10/2021,3919935-18813,"1,993.14",HODGSONS COACH OPERATORS LTD.
Children and Young Peoples Services,Head of Education and Skills,Transport,230007,Contract Hire,05/10/2021,3919935-18814,"1,328.76",HODGSONS COACH OPERATORS LTD.
"Regeneration, Economy and Growth",Business Durham CL0850,Third Party Payments,440999,Other third party payments E440,05/10/2021,3919939-DBRG-10-2021-10,786.56,HUDSON MEDIA SERVICES LTD.
"Regeneration, Economy and Growth",Business Durham CL0850,Third Party Payments,440999,Other third party payments E440,05/10/2021,3919939-DBRG-10-2021-11,"3,429.13",HUDSON MEDIA SERVICES LTD.
Adult and Health Services,Head of Adults,Third Party Payments,470101,Purchase of Care,05/10/2021,3919942-UPLIFTPAYMENTPP6-79,521.54,IDEAL CARE (NORTH) LTD.
Neighbourhoods and Climate Change,Environmental Services,Supplies and Services,338066,Services,05/10/2021,3919943-BURSARYOCT21,737.53,IMOGEN COVERDALE.
"Regeneration, Economy and Growth",Business Durham CL0850,Third Party Payments,440999,Other third party payments E440,05/10/2021,3919947-DBRG-10-2021-07,"2,750.00",INTOUCH BUSINESS (UK) LLP.
Neighbourhoods and Climate Change,Environmental Services,Supplies and Services,324117,Provisions E324,05/10/2021,3919950-14052,526.60,J MORAN LTD T/A CAFFE VINCI.
"Regeneration, Economy and Growth",Culture Sport and Tourism,Supplies and Services,304259,Equipment and Materials,05/10/2021,3919959-118058,"1,067.36",JP LENNARD LTD.
"Regeneration, Economy and Growth",Corporate Property and Land,Supplies and Services,304221,Equipment and Materials,05/10/2021,3919961-0120/00465021,"3,838.78",JT DOVE LTD.
"Regeneration, Economy and Growth",Development and Housing,Supplies and Services,384899,Miscellaneous Expenses,05/10/2021,3919963-ND009/6,"4,454.42",KARBON HOMES LTD FORMERLY CESTRIA HOUSING ASSOCIATION LTD.
Neighbourhoods and Climate Change,Environmental Services,Stock A926,926900,Stock in hand-Inventory system,05/10/2021,3919967-SI02-0328442,"1,036.90",KILLGERM CHEMICALS LTD.
Adult and Health Services,Head of Adults,Third Party Payments,474101,Purchase of Care,05/10/2021,3919969-UPLIFTPAYMENTPP6-49,666.08,KINGSWAY CARE HOME LTD.
Adult and Health Services,Head of Adults,Third Party Payments,470101,Purchase of Care,05/10/2021,3919974-UPLIFTPAYMENTPP6-50,785.83,LAMBTON HOUSE LTD.
"Regeneration, Economy and Growth",Business Durham CL0850,Third Party Payments,430100,Rendered by Private Contractors,05/10/2021,3919975-DBRG-10-2021-01,"11,062.98",LANCHESTER GARDEN CENTRE LTD.
Adult and Health Services,Head of Adults,Third Party Payments,470101,Purchase of Care,05/10/2021,3919977-UPLIFTPAYMENTPP6-51,"1,720.41",LANGLEY HOUSE CARE HOME LTD.
Adult and Health Services,Head of Adults,Third Party Payments,470101,Purchase of Care,05/10/2021,3919979-UPLIFTPAYMENTPP6-53,"1,490.04",LEAZES HALL CARE HOME LTD.
Adult and Health Services,Head of Adults,Third Party Payments,474101,Purchase of Care,05/10/2021,3919981-UPLIFTPAYMENTPP6-18,"1,177.24",LEONARD CHESHIRE DISABILITY.
Neighbourhoods and Climate Change,Environmental Services,Third Party Payments,430100,Rendered by Private Contractors,05/10/2021,3919982-2283,"1,300.00",LINDEN FLUID POWER LTD.
Children and Young Peoples Services,Head of Early Help Inclusion & Vulnerable Children.,Third Party Payments,460305,Contract Payments,05/10/2021,3919984-INV-0074,"2,833.60",LIVE WELL NORTH EAST CIC.
Children and Young Peoples Services,Head of Education and Skills,Supplies and Services,384199,Miscellaneous Expenses,05/10/2021,3919985-170,550.00,LK HEALTH & WELLBEING.
Resources BK0010,Digital and Customer Services,Construction work A908,908105,Construction work,05/10/2021,3919990-12648226,"9,086.00",MAINTEL EUROPE LTD.
Neighbourhoods and Climate Change,Environmental Services,Transport,210057,Repair and Maintenance of Vehicles,05/10/2021,3919991-35291,"1,175.25",MAJOR & ASPINALL LTD.
Adult and Health Services,Head of Adults,Third Party Payments,474101,Purchase of Care,05/10/2021,3919992-UPLIFTPAYMENTPP6-66,"1,430.17",MALHOTRA CARE HOMES LTD.
Adult and Health Services,Head of Adults,Third Party Payments,470101,Purchase of Care,05/10/2021,3919994-UPLIFTPAYMENTPP6-96,"1,480.20",MARIA MALLABAND CARE GROUP LTD.
Adult and Health Services,Head of Adults,Third Party Payments,470101,Purchase of Care,05/10/2021,3919995-UPLIFTPAYMENTPP6-32,755.59,MARIPOSA CARE GROUP LTD.
Adult and Health Services,Head of Adults,Third Party Payments,470101,Purchase of Care,05/10/2021,3919996-UPLIFTPAYMENTPP6-45,"1,614.01",MARIPOSA CARE LTD.
Adult and Health Services,Head of Adults,Third Party Payments,470101,Purchase of Care,05/10/2021,3919998-UPLIFTPAYMENTPP6-52,"1,467.00",MARTON CARE HOMES LTD T/A LANGLEY PARK CARE HOME.
Adult and Health Services,Head of Adults,Third Party Payments,470101,Purchase of Care,05/10/2021,3919999-UPLIFTPAYMENTPP6-82,"1,283.78",MARTON CARE HOMES LTD T/A ST HELENS CARE HOME.
Neighbourhoods and Climate Change,Environmental Services,Supplies and Services,384199,Miscellaneous Expenses,05/10/2021,3920002-1195,540.00,MATTHEW ALLISON T/A ARBOR 82.
Neighbourhoods and Climate Change,Environmental Services,Third Party Payments,430101,Rendered by Private Contractors,05/10/2021,3920005-FKL00283,"4,925.00",MCCONECHYS TYRE SERVICE LTD.
Neighbourhoods and Climate Change,Environmental Services,Third Party Payments,430101,Rendered by Private Contractors,05/10/2021,3920005-HOL06475,"2,373.00",MCCONECHYS TYRE SERVICE LTD.
Neighbourhoods and Climate Change,Environmental Services,Third Party Payments,430101,Rendered by Private Contractors,05/10/2021,3920005-FKL00275,"1,138.00",MCCONECHYS TYRE SERVICE LTD.
Neighbourhoods and Climate Change,Environmental Services,Third Party Payments,430101,Rendered by Private Contractors,05/10/2021,3920005-FKL00282,"2,860.00",MCCONECHYS TYRE SERVICE LTD.
Neighbourhoods and Climate Change,Environmental Services,Third Party Payments,430101,Rendered by Private Contractors,05/10/2021,3920005-HOL06426,"2,758.00",MCCONECHYS TYRE SERVICE LTD.
Neighbourhoods and Climate Change,Environmental Services,Third Party Payments,430101,Rendered by Private Contractors,05/10/2021,3920005-HOL06478,"1,713.64",MCCONECHYS TYRE SERVICE LTD.
Neighbourhoods and Climate Change,Environmental Services,Third Party Payments,430101,Rendered by Private Contractors,05/10/2021,3920005-FKL00272,"1,086.00",MCCONECHYS TYRE SERVICE LTD.
Neighbourhoods and Climate Change,Environmental Services,Third Party Payments,430101,Rendered by Private Contractors,05/10/2021,3920005-FKL00281,"1,156.00",MCCONECHYS TYRE SERVICE LTD.
Neighbourhoods and Climate Change,Environmental Services,Third Party Payments,430101,Rendered by Private Contractors,05/10/2021,3920005-HOL06399,"3,472.00",MCCONECHYS TYRE SERVICE LTD.
Neighbourhoods and Climate Change,Environmental Services,Third Party Payments,430101,Rendered by Private Contractors,05/10/2021,3920005-HOL06477,"1,712.00",MCCONECHYS TYRE SERVICE LTD.
Neighbourhoods and Climate Change,Environmental Services,Third Party Payments,430101,Rendered by Private Contractors,05/10/2021,3920005-FKL00280,"1,276.00",MCCONECHYS TYRE SERVICE LTD.
Neighbourhoods and Climate Change,Environmental Services,Third Party Payments,430101,Rendered by Private Contractors,05/10/2021,3920005-HOL06476,717.00,MCCONECHYS TYRE SERVICE LTD.
"Regeneration, Economy and Growth",Business Durham CL0850,Supplies and Services,342053,Computers and Communications,05/10/2021,3920012-INV-1103,"4,778.00",MORE4APPS UK LTD.
Resources BK0010,Corporate Finance & Commercial Services,Supplies and Services,342053,Computers and Communications,05/10/2021,3920012-INV-1102,"7,618.00",MORE4APPS UK LTD.
"Regeneration, Economy and Growth",Business Durham CL0850,Third Party Payments,430100,Rendered by Private Contractors,05/10/2021,3920013-DBRG-10-2021-02,"2,137.50",MR BARRY PLUMMER T/A THE SHOES CROSSROAD INN.
"Regeneration, Economy and Growth",Development and Housing,Supplies and Services,338066,Services,05/10/2021,3920019-6002,"1,750.00",NAPPER ARCHITECTS LTD.
"Regeneration, Economy and Growth",Corporate Property and Land,Third Party Payments,430100,Rendered by Private Contractors,05/10/2021,3920022-34886,"50,000.00",NE & C WINDOWS & DOORS LTD.
Dedicated Schools Grant BG0015,Dedicated Schools Grant CG0050,Central Support and Other Recharges,615208,Support Services,05/10/2021,3920024-RES-10-2021-002,"16,077.60",NEW COLLEGE ACADEMIES TRUST - CONSETT ACADEMY.
Dedicated Schools Grant BG0015,Dedicated Schools Grant CG0050,Central Support and Other Recharges,615208,Support Services,05/10/2021,3920024-RES-10-2021-003,"18,371.94",NEW COLLEGE ACADEMIES TRUST - CONSETT ACADEMY.
"Regeneration, Economy and Growth",Development and Housing,Supplies and Services,336005,Advertising E336,05/10/2021,3920025-38008119,630.25,NEWSQUEST (YORKSHIRE & NORTH EAST) LTD.
Adult and Health Services,Public Health CC0450,Third Party Payments,460803,Contract Payments,05/10/2021,3920027-7031202027,"19,680.74",NHS NEWCASTLE GATESHEAD CCG.
Neighbourhoods and Climate Change,Environmental Services,Supplies and Services,304259,Equipment and Materials,05/10/2021,3920032-1704,"5,020.00",NORTH EAST ENVIRONMENT NETWORK LTD T/A (OASES).
Non-Service Specific,Insurances,Expenditure 8INSEX,810012,Insurance Expenditure,05/10/2021,3920036-DI20368750,589.53,NORTHERN POWERGRID (NORTHEAST) LTD.
"Regeneration, Economy and Growth",Business Durham CL0850,Third Party Payments,440999,Other third party payments E440,05/10/2021,3920037-DBRG-10-2021-14,"11,250.00",NORTHERN STAR TEPEES.
Neighbourhoods and Climate Change,Environmental Services,Third Party Payments,430100,Rendered by Private Contractors,05/10/2021,3920039-IW05740410,504.78,NORTHGATE VEHICLE HIRE LTD.
Neighbourhoods and Climate Change,Environmental Services,Third Party Payments,430100,Rendered by Private Contractors,05/10/2021,3920039-IW05741074,"1,492.92",NORTHGATE VEHICLE HIRE LTD.
Neighbourhoods and Climate Change,Environmental Services,Third Party Payments,430127,Rendered by Private Contractors,05/10/2021,3920040-915019701,"2,408.00",NORTHUMBRIAN WATER LTD.
Neighbourhoods and Climate Change,Technical Services CM0300,Third Party Payments,430100,Rendered by Private Contractors,05/10/2021,3920040-915045907,821.00,NORTHUMBRIAN WATER LTD.
Adult and Health Services,Head of Adults,Third Party Payments,470101,Purchase of Care,05/10/2021,3920043-UPLIFTPAYMENTPP6-14,"1,059.08",OBJECT QUEST LTD.
Neighbourhoods and Climate Change,Environmental Services,Transport,215005,Running Costs of Vehicles,05/10/2021,3920044-807575,"2,207.70",OIL NRG LTD.
"Regeneration, Economy and Growth",Business Durham CL0850,Third Party Payments,440999,Other third party payments E440,05/10/2021,3920045-DBRG-10-2021-15,"8,960.25",ONEPOINT SYSTEMS LTD.
"Regeneration, Economy and Growth",Business Durham CL0850,Third Party Payments,440999,Other third party payments E440,05/10/2021,3920045-DBRG-10-2021-18,"3,169.79",ONEPOINT SYSTEMS LTD.
"Regeneration, Economy and Growth",Business Durham CL0850,Third Party Payments,440999,Other third party payments E440,05/10/2021,3920045-DBRG-10-2021-19,627.93,ONEPOINT SYSTEMS LTD.
Children and Young Peoples Services,Childrens Services Operational Support,Supplies and Services,342053,Computers and Communications,05/10/2021,3920049-17232,"1,452.00",OXFORD COMPUTER CONSULTANTS LTD.
Neighbourhoods and Climate Change,Technical Services CM0300,Stock A926,926900,Stock in hand-Inventory system,05/10/2021,3920053-XL276157,"2,455.11",PARK ELECTRICAL DISTRIBUTORS LTD.
Neighbourhoods and Climate Change,Technical Services CM0300,Stock A926,926900,Stock in hand-Inventory system,05/10/2021,3920053-XL276228,814.30,PARK ELECTRICAL DISTRIBUTORS LTD.
Children and Young Peoples Services,Head of Childrens Social Care,Third Party Payments,425021,Rendered by Voluntary Organisations,05/10/2021,3920057-311018,"15,128.44",PEARTREE PROJECTS LTD.
Adult and Health Services,Head of Adults,Third Party Payments,470101,Purchase of Care,05/10/2021,3920058-UPLIFTPAYMENTPP6-13,558.94,PERFECT CARE LTD.
Children and Young Peoples Services,Head of Education and Skills,Supplies and Services,338094,Services,05/10/2021,3920063-17588/18,510.00,PIONEERING CARE PARTNERSHIP.
Adult and Health Services,Head of Adults,Third Party Payments,470101,Purchase of Care,05/10/2021,3920071-UPLIFTPAYMENTPP6-68,"1,392.66",POPULAR CARE LTD..
Children and Young Peoples Services,Head of Early Help Inclusion & Vulnerable Children.,Supplies and Services,384199,Miscellaneous Expenses,05/10/2021,3920072-900935859,"1,139.66",PORTAKABIN LTD.
Adult and Health Services,Head of Adults,Third Party Payments,470101,Purchase of Care,05/10/2021,3920073-UPLIFTPAYMENTPP6-36,"1,034.02",PREMIER CARE HOMES LTD.
Adult and Health Services,Head of Adults,Third Party Payments,470101,Purchase of Care,05/10/2021,3920074-UPLIFTPAYMENTPP6-69,"1,726.00",PREMIER CARE HOMES LTD.
Children and Young Peoples Services,Childrens Services Operational Support,Supplies and Services,338089,Services,05/10/2021,3920075-3930,"5,063.08",PRICE TRAINING LTD.
Adult and Health Services,Adults Excluded,Supplies and Services,338027,Services,05/10/2021,3920084-01093,"1,975.00",RAJ CHAUHAN T/A 3R KNOWLEDGE CONSULTING LTD.
Adult and Health Services,Head of Adults,Third Party Payments,470101,Purchase of Care,05/10/2021,3920085-CAS-10-2021-008,"2,562.84",RAYSON HOMES LTD.
Adult and Health Services,Head of Adults,Third Party Payments,470101,Purchase of Care,05/10/2021,3920085-UPLIFTPAYMENTPP6-29,907.84,RAYSON HOMES LTD.
"Regeneration, Economy and Growth",Business Durham CL0850,Supplies and Services,336005,Advertising E336,05/10/2021,3920086-5658893,500.00,REACH PUBLISHING SERVICES LTD.*
Adult and Health Services,Head of Adults,Third Party Payments,470101,Purchase of Care,05/10/2021,3920089-UPLIFTPAYMENTPP6-4,"1,124.16",REDACTED - PAYMENT TO INDIVIDUAL
"Regeneration, Economy and Growth",Culture Sport and Tourism,Third Party Payments,430131,Rendered by Private Contractors,05/10/2021,3920155-TT/202191,580.00,REDACTED - PAYMENT TO INDIVIDUAL
"Regeneration, Economy and Growth",Development and Housing,Fees,901003,Capital - Contract Supervision,05/10/2021,3920088-J/21/24/2/APK/TM,"2,400.00",RNJ PARTNERSHIP LLP.
Adult and Health Services,Head of Adults,Third Party Payments,470101,Purchase of Care,05/10/2021,3920090-UPLIFTPAYMENTPP6-25,"1,715.95",ROSEBERRY CARE CENTRES GB LTD.
Resources BK0010,Finance & Transactional Services,Supplies and Services,340001,Postages E340,05/10/2021,3920092-9063620173,"12,167.37",ROYAL MAIL GROUP PLC.
Neighbourhoods and Climate Change,Environmental Services,Third Party Payments,430100,Rendered by Private Contractors,05/10/2021,3920095-60311532,"1,491.99",S JENNINGS LTD.
"Regeneration, Economy and Growth",Corporate Property and Land,Supplies and Services,338078,Services,05/10/2021,3920097-14575,"1,200.00",SAFEGUARD SECURITY (NE) LTD.
Adult and Health Services,Head of Adults,Third Party Payments,474101,Purchase of Care,05/10/2021,3920099-UPLIFTPAYMENTPP6-75,"1,293.40",SANCTUARY CARE (ENGLAND) LTD.
Adult and Health Services,Head of Adults,Third Party Payments,470101,Purchase of Care,05/10/2021,3920100-UPLIFTPAYMENTPP6-23,"1,655.18",SANCTUARY CARE (ENGLAND) LTD.
Adult and Health Services,Head of Adults,Third Party Payments,470101,Purchase of Care,05/10/2021,3920101-UPLIFTPAYMENTPP6-15,"1,312.16",SANCTUARY CARE (ENGLAND) LTD.
Adult and Health Services,Head of Adults,Third Party Payments,470101,Purchase of Care,05/10/2021,3920102-UPLIFTPAYMENTPP6-5,"2,341.23",SANCTUARY CARE (ENGLAND) LTD.
"Regeneration, Economy and Growth",Business Durham CL0850,Third Party Payments,440999,Other third party payments E440,05/10/2021,3920106-DBRG-10-2021-03,584.72,SCOOBY DOO`S DAY CARE 4 DOGS.
"Regeneration, Economy and Growth",Business Durham CL0850,Third Party Payments,440999,Other third party payments E440,05/10/2021,3920106-DBRG-10-2021-04,"3,078.00",SCOOBY DOO`S DAY CARE 4 DOGS.
Adult and Health Services,Head of Adults,Third Party Payments,474101,Purchase of Care,05/10/2021,3920107-UPLIFTPAYMENTPP6-31,923.66,SEAHAM CARE LTD.
Adult and Health Services,Head of Adults,Third Party Payments,470101,Purchase of Care,05/10/2021,3920111-CAS-10-2021-010.,549.18,SHAFTESBURY CARE GROUP LTD.
Adult and Health Services,Head of Adults,Third Party Payments,470101,Purchase of Care,05/10/2021,3920111-UPLIFTPAYMENTPP6-71,"2,386.91",SHAFTESBURY CARE GROUP LTD.
"Regeneration, Economy and Growth",Business Durham CL0850,Supplies and Services,336005,Advertising E336,05/10/2021,3920112-1356,900.00,SHARP AHEAD LTD.
Adult and Health Services,Head of Adults,Third Party Payments,470101,Purchase of Care,05/10/2021,3920113-UPLIFTPAYMENTPP6-12,721.52,SHERBURN HOUSE CHARITY.
Children and Young Peoples Services,Head of Education and Skills,Supplies and Services,384199,Miscellaneous Expenses,05/10/2021,3920118-4100697803-280921,"6,801.62",SMARTT NORTH EAST LTD.
Children and Young Peoples Services,Head of Education and Skills,Supplies and Services,384199,Miscellaneous Expenses,05/10/2021,3920118-4100734549,"9,542.67",SMARTT NORTH EAST LTD.
Adult and Health Services,Head of Adults,Third Party Payments,470101,Purchase of Care,05/10/2021,3920125-UPLIFTPAYMENTPP6-80,939.35,ST ANDREWS MPS LTD.
Dedicated Schools Grant BG0015,DSG High Needs Block,Central Support and Other Recharges,689988,Unclassified E690,05/10/2021,3920126-CAS-10-2021-020,"5,299.00",ST PATRICK`S RCVA PRIMARY SCHOOL.
Adult and Health Services,Head of Adults,Third Party Payments,470101,Purchase of Care,05/10/2021,3920127-CAS-10-2021-009,928.78,ST PHILIPS CARE LTD.
Adult and Health Services,Head of Adults,Third Party Payments,470101,Purchase of Care,05/10/2021,3920127-UPLIFTPAYMENTPP6-24,"1,611.04",ST PHILIPS CARE LTD.
Adult and Health Services,Head of Adults,Third Party Payments,470101,Purchase of Care,05/10/2021,3920128-UPLIFTPAYMENTPP6-17,"1,907.16",ST PHILIPS CARE LTD.
Children and Young Peoples Services,Head of Education and Skills,Third Party Payments,440999,Other third party payments E440,05/10/2021,3920133-400,990.00,STANLEY EVENTS LTD.
"Regeneration, Economy and Growth",Corporate Property and Land,Supplies and Services,304221,Equipment and Materials,05/10/2021,3920135-1085350705,"1,098.55",STANNAH LIFT SERVICE LTD.
Neighbourhoods and Climate Change,Environmental Services,Supplies and Services,304221,Equipment and Materials,05/10/2021,3920137-6006965,"9,600.00",STORM ENVIRONMENTAL LTD.
"Regeneration, Economy and Growth",Corporate Property and Land,Supplies and Services,304221,Equipment and Materials,05/10/2021,3920143-659830,548.12,T CROSSLING & CO LTD.
Adult and Health Services,Head of Adults,Third Party Payments,474101,Purchase of Care,05/10/2021,3920148-CAS-10-2021-002,790.87,TAMARIS HEALTHCARE (ENGLAND) LTD.
Adult and Health Services,Head of Adults,Third Party Payments,470101,Purchase of Care,05/10/2021,3920144-UPLIFTPAYMENTPP6-44,"2,094.92",TAMARIS HEALTHCARE (ENGLAND) LTD.
Adult and Health Services,Head of Adults,Third Party Payments,470101,Purchase of Care,05/10/2021,3920145-UPLIFTPAYMENTPP6-3,"1,645.88",TAMARIS HEALTHCARE (ENGLAND) LTD.
Adult and Health Services,Head of Adults,Third Party Payments,470101,Purchase of Care,05/10/2021,3920146-UPLIFTPAYMENTPP6-8,"2,268.64",TAMARIS HEALTHCARE (ENGLAND) LTD.
Adult and Health Services,Head of Adults,Third Party Payments,470101,Purchase of Care,05/10/2021,3920147-UPLIFTPAYMENTPP6-20,"1,029.45",TAMARIS HEALTHCARE (ENGLAND) LTD.
Neighbourhoods and Climate Change,Technical Services CM0300,Fees,901004,Capital - Detailed Design,05/10/2021,3920152-14892,821.50,TEESDALE MERCURY LTD.
Neighbourhoods and Climate Change,Environmental Services,Supplies and Services,304221,Equipment and Materials,05/10/2021,3920154-33857,"2,046.50",TELESHORE UK LTD.
"Regeneration, Economy and Growth",Business Durham CL0850,Third Party Payments,440999,Other third party payments E440,05/10/2021,3920159-DBRG-10-2021-08,"2,623.50",THE BAY HORSE (MIDDRIDGE) LTD.
"Regeneration, Economy and Growth",Business Durham CL0850,Third Party Payments,440999,Other third party payments E440,05/10/2021,3920159-DBRG-10-2021-09,"6,258.72",THE BAY HORSE (MIDDRIDGE) LTD.
"Regeneration, Economy and Growth",Culture Sport and Tourism,Supplies and Services,336005,Advertising E336,05/10/2021,3920160-INV-2150,542.50,THE BIGGER SCENE.
Adult and Health Services,Head of Adults,Third Party Payments,470101,Purchase of Care,05/10/2021,3920163-UPLIFTPAYMENTPP6-2,"1,283.49",THE HAWTHORNS LODGE LTD.
Neighbourhoods and Climate Change,Technical Services CM0300,Stock A926,926900,Stock in hand-Inventory system,05/10/2021,3920167-NSIN00062369,513.23,THOMAS OWEN & SONS (NEWCASTLE) LTD.
Neighbourhoods and Climate Change,Environmental Services,Transport,210057,Repair and Maintenance of Vehicles,05/10/2021,3920168-2034046,"1,480.78",THOMPSON COMMERCIALS LTD.
Children and Young Peoples Services,Head of Education and Skills,Third Party Payments,430131,Rendered by Private Contractors,05/10/2021,3920169-12297,650.00,TILE HILL INTERIM & EXECUTIVE LTD.
Neighbourhoods and Climate Change,Technical Services CM0300,Stock A926,926900,Stock in hand-Inventory system,05/10/2021,3920171-105158,"3,375.00",TOTAL RENTAL SOLUTIONS.
Children and Young Peoples Services,Head of Early Help Inclusion & Vulnerable Children.,Supplies and Services,384956,Miscellaneous Expenses,05/10/2021,3920173-INV-12642,"3,300.00",TRIANGLE CONSULTING SOCIAL ENTERPRISE LTD.
Adult and Health Services,Head of Adults,Third Party Payments,470101,Purchase of Care,05/10/2021,3920174-UPLIFTPAYMENTPP6-65,"1,571.99",TRIMS GYM LTD.
Neighbourhoods and Climate Change,Technical Services CM0300,Supplies and Services,304221,Equipment and Materials,05/10/2021,3920178-224988,"2,147.33",TYNEDALE ROADSTONE LTD.
Neighbourhoods and Climate Change,Technical Services CM0300,Third Party Payments,430100,Rendered by Private Contractors,05/10/2021,3920181-201022718,"16,080.00",VAISALA LTD.
"Regeneration, Economy and Growth",Corporate Property and Land,Third Party Payments,430100,Rendered by Private Contractors,05/10/2021,3920186-INV-44204,"1,312.38",VISTECH SERVICES LTD.
"Regeneration, Economy and Growth",Business Durham CL0850,Premises,135005,Water Services,05/10/2021,3920189-STW-INV04962480,991.94,WATER PLUS GROUP LTD T/A WATER PLUS SELECT LTD.
Adult and Health Services,Head of Adults,Third Party Payments,470101,Purchase of Care,05/10/2021,3920194-UPLIFTPAYMENTPP6-93,533.29,WEST HOUSE CARE HOME LTD.
Adult and Health Services,Head of Adults,Third Party Payments,470101,Purchase of Care,05/10/2021,3920195-UPLIFTPAYMENTPP6-94,"2,070.88",WEST LODGE CARE HOMES LTD.
Children and Young Peoples Services,Head of Childrens Social Care,Supplies and Services,384302,Miscellaneous Expenses,05/10/2021,3920198-FEES-SEP21,"2,000.00",WETHERIGGS ANIMAL RESCUE & CONSERVATION CENTRE.
Dedicated Schools Grant BG0015,DSG High Needs Block,Supplies and Services,352001,Conference Expenses,05/10/2021,3920200-WM/7248,650.00,WILLIAM MERRITT DISABLED LIVING CENTRE.
Adult and Health Services,Head of Adults,Third Party Payments,470101,Purchase of Care,05/10/2021,3920201-UPLIFTPAYMENTPP6-46,"1,230.80",WILLIAMS & SPENCELEY LTD.
Neighbourhoods and Climate Change,Technical Services CM0300,Supplies and Services,338027,Services,05/10/2021,3920203-64532208,"16,474.96",WSP UK LTD.
Neighbourhoods and Climate Change,Environmental Services,Construction work A908,908113,Capital - Landscaping,05/10/2021,3920204-0000034112,"5,718.25",WYBONE LTD.
Neighbourhoods and Climate Change,Partnerships & Community Engagement Div.,Supplies and Services,342037,Computers and Communications,05/10/2021,3920205-LA06826,927.90,XMA LTD.
Resources BK0010,Digital and Customer Services,Supplies and Services,304639,Equipment and Materials,05/10/2021,3920205-LA18899,"3,388.20",XMA LTD.
Adult and Health Services,Public Health CC0450,Third Party Payments,460803,Contract Payments,06/10/2021,3920215-INV-1196,"28,175.06",ABL HEALTH LTD.
Neighbourhoods and Climate Change,Environmental Services,Construction work A908,908105,Construction work,06/10/2021,3920216-48138183,"3,807.08",ADT FIRE & SECURITY PLC.
Neighbourhoods and Climate Change,Environmental Services,Construction work A908,908105,Construction work,06/10/2021,3920216-48143721,"1,728.20",ADT FIRE & SECURITY PLC.
"Regeneration, Economy and Growth",Corporate Property and Land,Third Party Payments,430100,Rendered by Private Contractors,06/10/2021,3920216-48124621,676.00,ADT FIRE & SECURITY PLC.
Children and Young Peoples Services,Head of Education and Skills,Third Party Payments,440999,Other third party payments E440,06/10/2021,3920218-NEI-EXP-10-2021-009,716.39,AGE UK COUNTY DURHAM.
Neighbourhoods and Climate Change,Environmental Services,Supplies and Services,304221,Equipment and Materials,06/10/2021,3920219-32075942,765.51,AGGREGATE INDUSTRIES UK LTD.
Neighbourhoods and Climate Change,Technical Services CM0300,Supplies and Services,304221,Equipment and Materials,06/10/2021,3920219-31752944,611.22,AGGREGATE INDUSTRIES UK LTD.
Children and Young Peoples Services,Head of Early Help Inclusion & Vulnerable Children.,Supplies and Services,308011,Furniture,06/10/2021,3920223-172129,549.00,ALBANY OFFICE EQUIPMENT (WHOLESALE) LTD.
"Regeneration, Economy and Growth",Corporate Property and Land,Third Party Payments,430100,Rendered by Private Contractors,06/10/2021,3920225-SI18942,"1,000.00",AMBIC LTD.
Neighbourhoods and Climate Change,Environmental Services,Supplies and Services,338066,Services,06/10/2021,3920226-FENCING,"5,410.00",ANDREW HUTCHINSON FENCING.
Children and Young Peoples Services,Head of Education and Skills,Third Party Payments,440999,Other third party payments E440,06/10/2021,3920227-NEI-EXP-10-2021-011,941.16,ANDREW MARSHALL RESIDENTIAL PROPERTIES LTD T/A AMRP.
Adult and Health Services,Head of Adults,Supplies and Services,338089,Services,06/10/2021,3920231-12237,"1,680.00",APT TRAINING & CONSULTANCY LTD.
Children and Young Peoples Services,Head of Education and Skills,Transport,235005,Public Transport,06/10/2021,3920234-118494,"56,682.16",ARRIVA DURHAM COUNTY LTD.
Children and Young Peoples Services,Head of Education and Skills,Supplies and Services,312009,Newspapers books and periodicals E312,06/10/2021,3920235-6570223,835.49,ASKEWS & HOLTS LIBRARY SERVICES LTD.
Children and Young Peoples Services,Head of Education and Skills,Transport,230008,Contract Hire,06/10/2021,3920238-050,"2,840.00",AUCKLAND TRAVEL.
Children and Young Peoples Services,Head of Education and Skills,Transport,230008,Contract Hire,06/10/2021,3920238-051,"1,106.00",AUCKLAND TRAVEL.
Children and Young Peoples Services,Head of Education and Skills,Transport,230008,Contract Hire,06/10/2021,3920238-052,"2,480.00",AUCKLAND TRAVEL.
"Regeneration, Economy and Growth",Corporate Property and Land,Supplies and Services,304221,Equipment and Materials,06/10/2021,3920245-SI-6912,800.00,BELL CONTROL SOLUTIONS LTD.
Adult and Health Services,Head of Adults,Supplies and Services,338066,Services,06/10/2021,3920248-SIN026629,"12,000.00",BLOOM PROCUREMENT SERVICES LTD (FORMERLY NEPRO LTD).
Resources BK0010,Digital and Customer Services,Supplies and Services,332029,Printing Stationery and Gen Off Exps,06/10/2021,3920250-15355,880.00,BORDER SIGNS & GRAPHICS.
Neighbourhoods and Climate Change,Technical Services CM0300,Supplies and Services,304221,Equipment and Materials,06/10/2021,3920255-20316740,696.83,BREEDON TRADING LTD.
Neighbourhoods and Climate Change,Technical Services CM0300,Stock A926,926900,Stock in hand-Inventory system,06/10/2021,3920262-140007516,"3,620.00",CARLISLE CONSTRUCTION MATERIALS LTD.
"Regeneration, Economy and Growth",Corporate Property and Land,Supplies and Services,304221,Equipment and Materials,06/10/2021,3920272-2852ABH754,821.04,CITY PLUMBING SUPPLIES HOLDINGS LTD.
Resources BK0010,Finance & Transactional Services,Supplies and Services,304040,Equipment and Materials,06/10/2021,3920273-C/BN226219,"6,873.75",CIVICA UK LTD.
Resources BK0010,Finance & Transactional Services,Supplies and Services,304040,Equipment and Materials,06/10/2021,3920273-C/BN226220,"6,488.82",CIVICA UK LTD.
"Regeneration, Economy and Growth",Culture Sport and Tourism,Supplies and Services,384302,Miscellaneous Expenses,06/10/2021,3920274-794,675.00,CLAIRE FORD.
Neighbourhoods and Climate Change,Environmental Services,Cap Exp on Grants & Other Financial Assistance (REFCUS),918501,Exp assets not owned by authority,06/10/2021,3920284-C0666A,"4,455.00",CONSERVEFOR.
Neighbourhoods and Climate Change,Environmental Services,Cap Exp on Grants & Other Financial Assistance (REFCUS),918501,Exp assets not owned by authority,06/10/2021,3920284-C0667,"17,333.00",CONSERVEFOR.
Children and Young Peoples Services,Head of Education and Skills,Third Party Payments,440999,Other third party payments E440,06/10/2021,3920288-NEI-EXP-10-2021-003,"1,010.75",COUNTY DURHAM FURNITURE HELP SCHEME (CDFHS).
Children and Young Peoples Services,Head of Education and Skills,Third Party Payments,440999,Other third party payments E440,06/10/2021,3920288-NEI-EXP-10-2021-004,716.39,COUNTY DURHAM FURNITURE HELP SCHEME (CDFHS).
Resources BK0010,Digital and Customer Services,Supplies and Services,332029,Printing Stationery and Gen Off Exps,06/10/2021,3920297-36760,703.55,DESIGN X PRESS LTD.
Children and Young Peoples Services,Head of Education and Skills,Third Party Payments,440999,Other third party payments E440,06/10/2021,3920302-NEI-EXP-10-2021-012,716.39,DURHAM SCHOOL.*
Children and Young Peoples Services,Head of Education and Skills,Third Party Payments,440999,Other third party payments E440,06/10/2021,3920302-NEI-EXP-10-2021-014,"1,010.75",DURHAM SCHOOL.*
Children and Young Peoples Services,Head of Education and Skills,Third Party Payments,440999,Other third party payments E440,06/10/2021,3920302-NEI-EXP-10-2021-015,716.39,DURHAM SCHOOL.*
Children and Young Peoples Services,Head of Education and Skills,Third Party Payments,440999,Other third party payments E440,06/10/2021,3920302-NEI-EXP-10-2021-017,"1,010.75",DURHAM SCHOOL.*
Children and Young Peoples Services,Head of Education and Skills,Third Party Payments,440999,Other third party payments E440,06/10/2021,3920302-NEI-EXP-10-2021-018,"1,010.75",DURHAM SCHOOL.*
Children and Young Peoples Services,Head of Education and Skills,Third Party Payments,440999,Other third party payments E440,06/10/2021,3920302-NEI-EXP-10-2021-019,716.39,DURHAM SCHOOL.*
Children and Young Peoples Services,Head of Education and Skills,Third Party Payments,440999,Other third party payments E440,06/10/2021,3920302-NEI-EXP-10-2021-020,"1,010.75",DURHAM SCHOOL.*
Children and Young Peoples Services,Head of Education and Skills,Third Party Payments,440999,Other third party payments E440,06/10/2021,3920302-NEI-EXP-10-2021-021,"1,010.75",DURHAM SCHOOL.*
Children and Young Peoples Services,Head of Education and Skills,Transfer Payments,510051,School Children,06/10/2021,3920306-AWPU-05-2021-215,"4,488.00",EDEN LEARNING TRUST T/A FERRYHILL BUSINESS & ENTERPRISE COLLEGE.
Children and Young Peoples Services,Head of Education and Skills,Transfer Payments,510051,School Children,06/10/2021,3920306-AWPU-05-2021-216,"4,634.00",EDEN LEARNING TRUST T/A FERRYHILL BUSINESS & ENTERPRISE COLLEGE.
Children and Young Peoples Services,Head of Education and Skills,Transfer Payments,510051,School Children,06/10/2021,3920308-AWPU-05-2021-221,"2,764.00",EDEN LEARNING TRUST T/A TANFIELD SCHOOL.
"Regeneration, Economy and Growth",Corporate Property and Land,Supplies and Services,304221,Equipment and Materials,06/10/2021,3920309-059-286238,598.69,EDMUNDSON ELECTRICAL LTD.
Children and Young Peoples Services,Head of Education and Skills,Third Party Payments,440999,Other third party payments E440,06/10/2021,3920318-NEI-EXP-10-2021-0254,716.39,EPICURIUM LTD.
Children and Young Peoples Services,Head of Education and Skills,Third Party Payments,440999,Other third party payments E440,06/10/2021,3920330-NEI-EXP-10-2021-005,"1,010.75",FUSION FOR BUSINESS LTD.
Children and Young Peoples Services,Head of Education and Skills,Supplies and Services,338076,Services,06/10/2021,3920331-2406,"17,100.00",FUTURE STEPS CONSULTANCY SERVICE LTD.
"Regeneration, Economy and Growth",Communications Management,Employees,080025,Agency Staff,06/10/2021,3920335-2452841,"148,343.67",GEOMETRIC RESULTS INTERNATIONAL.
Children and Young Peoples Services,Head of Education and Skills,Third Party Payments,440999,Other third party payments E440,06/10/2021,3920340-NEI-EXP-10-2021-013,"1,010.75",GREENCROFT DOG DAYCARE LTD.
Children and Young Peoples Services,Head of Education and Skills,Third Party Payments,440999,Other third party payments E440,06/10/2021,3920340-NEI-EXP-10-2021-016,716.39,GREENCROFT DOG DAYCARE LTD.
Children and Young Peoples Services,Head of Education and Skills,Third Party Payments,440999,Other third party payments E440,06/10/2021,3920340-NEI-EXP-10-2021-022,"1,010.75",GREENCROFT DOG DAYCARE LTD.
Children and Young Peoples Services,Head of Education and Skills,Third Party Payments,440999,Other third party payments E440,06/10/2021,3920340-NEI-EXP-10-2021-024,716.39,GREENCROFT DOG DAYCARE LTD.
"Regeneration, Economy and Growth",Corporate Property and Land,Third Party Payments,430100,Rendered by Private Contractors,06/10/2021,3920357-11354,714.35,INGLEFORD SCAFFOLDING LTD.
Children and Young Peoples Services,Head of Education and Skills,Third Party Payments,440999,Other third party payments E440,06/10/2021,3920360-NEI-EXP-10-2021-001,716.39,INVESTING IN CHILDREN CIC.
Children and Young Peoples Services,Head of Education and Skills,Third Party Payments,440999,Other third party payments E440,06/10/2021,3920360-NEI-EXP-10-2021-002,"1,010.75",INVESTING IN CHILDREN CIC.
Neighbourhoods and Climate Change,Technical Services CM0300,Third Party Payments,430100,Rendered by Private Contractors,06/10/2021,3920364-25679,637.94,JACK COUPE & SONS LTD T/A COUPE LINE.
Neighbourhoods and Climate Change,Environmental Services,Supplies and Services,338066,Services,06/10/2021,3920367-286,930.00,JANET SWAILES (ARTIST).
"Regeneration, Economy and Growth",Corporate Property and Land,Supplies and Services,304221,Equipment and Materials,06/10/2021,3920375-0213/00477385,"1,048.54",JT DOVE LTD.
"Regeneration, Economy and Growth",Corporate Property and Land,Supplies and Services,304221,Equipment and Materials,06/10/2021,3920375-0213/00477386,"1,048.54",JT DOVE LTD.
"Regeneration, Economy and Growth",Corporate Property and Land,Supplies and Services,304221,Equipment and Materials,06/10/2021,3920375-0213/00477383,"1,048.54",JT DOVE LTD.
Neighbourhoods and Climate Change,Technical Services CM0300,Stock A926,926900,Stock in hand-Inventory system,06/10/2021,3920375-0107/00477374,"3,985.62",JT DOVE LTD.
Neighbourhoods and Climate Change,Technical Services CM0300,Stock A926,926900,Stock in hand-Inventory system,06/10/2021,3920375-0115/00477377,"1,181.25",JT DOVE LTD.
Neighbourhoods and Climate Change,Technical Services CM0300,Stock A926,926900,Stock in hand-Inventory system,06/10/2021,3920375-0120/00477378,645.06,JT DOVE LTD.
Neighbourhoods and Climate Change,Technical Services CM0300,Stock A926,926900,Stock in hand-Inventory system,06/10/2021,3920375-0120/00477379,"2,210.00",JT DOVE LTD.
"Regeneration, Economy and Growth",Culture Sport and Tourism,Third Party Payments,430131,Rendered by Private Contractors,06/10/2021,3920403-2021023,"3,333.00",MICHELLE GARTON T/A GET FIT NORTH EAST.
Children and Young Peoples Services,Head of Childrens Social Care,Third Party Payments,486046,Service level agreements E486,06/10/2021,3920419-52744,"5,711.75",NATIONAL YOUTH ADVOCACY SERVICE.
Children and Young Peoples Services,Head of Childrens Social Care,Third Party Payments,486046,Service level agreements E486,06/10/2021,3920419-52793,"14,072.50",NATIONAL YOUTH ADVOCACY SERVICE.
Children and Young Peoples Services,Head of Early Help Inclusion & Vulnerable Children.,Third Party Payments,486046,Service level agreements E486,06/10/2021,3920419-52537,"2,586.60",NATIONAL YOUTH ADVOCACY SERVICE.
Children and Young Peoples Services,Head of Early Help Inclusion & Vulnerable Children.,Third Party Payments,486046,Service level agreements E486,06/10/2021,3920419-52841,"3,075.75",NATIONAL YOUTH ADVOCACY SERVICE.
"Regeneration, Economy and Growth",Culture Sport and Tourism,Supplies and Services,384199,Miscellaneous Expenses,06/10/2021,3920422-10721,"3,000.00",NEIGHBOURHOOD WATCH STILTS INTERNATIONAL (NWSI).
Children and Young Peoples Services,Head of Education and Skills,Transfer Payments,510051,School Children,06/10/2021,3920423-AWPU-05-2021-222,"2,788.00",NEW COLLEGE ACADEMIES TRUST - CONSETT ACADEMY.
Children and Young Peoples Services,Head of Education and Skills,Transfer Payments,510051,School Children,06/10/2021,3920423-AWPU-05-2021-223,"2,881.00",NEW COLLEGE ACADEMIES TRUST - CONSETT ACADEMY.
Children and Young Peoples Services,Head of Education and Skills,Transfer Payments,510051,School Children,06/10/2021,3920430-AWPU-05-2021-219,"2,881.00",NORTH DURHAM ACADEMY.
Children and Young Peoples Services,Head of Education and Skills,Transfer Payments,510051,School Children,06/10/2021,3920430-AWPU-05-2021-220,"2,788.00",NORTH DURHAM ACADEMY.
Children and Young Peoples Services,Head of Education and Skills,Transfer Payments,510051,School Children,06/10/2021,3920430-AWPU-05-2021-225,"2,671.00",NORTH DURHAM ACADEMY.
Resources BK0010,Finance & Transactional Services,Supplies and Services,338066,Services,06/10/2021,3920432-90000155,"35,000.00",NORTH EAST COMBINED AUTHORITY (NECA).
Children and Young Peoples Services,Head of Education and Skills,Transfer Payments,510051,School Children,06/10/2021,3920434-AWPU-05-2021-224,"2,717.00",NORTH EAST LEARNING TRUST (NELT).
"Regeneration, Economy and Growth",Culture Sport and Tourism,Supplies and Services,384199,Miscellaneous Expenses,06/10/2021,3920437-NCBF2021/7,500.00,NORTHERN CHILDRENS BOOK FESTIVAL (NCBF).
"Regeneration, Economy and Growth",Development and Housing,Supplies and Services,384071,Miscellaneous Expenses,06/10/2021,3920440-1074,"1,405.00",OCEAN MEDIA GROUP LTD.
Neighbourhoods and Climate Change,Environmental Services,Transport,215005,Running Costs of Vehicles,06/10/2021,3920441-809508,"17,318.40",OIL NRG LTD.
Neighbourhoods and Climate Change,Environmental Services,Transport,215022,Running Costs of Vehicles,06/10/2021,3920441-789241,578.15,OIL NRG LTD.
Neighbourhoods and Climate Change,Environmental Services,Transport,215022,Running Costs of Vehicles,06/10/2021,3920441-809510,635.80,OIL NRG LTD.
Neighbourhoods and Climate Change,Environmental Services,Transport,215022,Running Costs of Vehicles,06/10/2021,3920441-812225,"7,247.97",OIL NRG LTD.
Adult and Health Services,Head of Adults,Supplies and Services,338365,Services,06/10/2021,3920442-0000176540,798.40,ONLINE ERGONOMICS LTD.
Children and Young Peoples Services,Head of Education and Skills,Supplies and Services,384199,Miscellaneous Expenses,06/10/2021,3920444-INV-0732,"1,800.00",OPTIMUM SKILLS LTD.
"Regeneration, Economy and Growth",Corporate Property and Land,Third Party Payments,430100,Rendered by Private Contractors,06/10/2021,3920445-10979-22,"1,525.73",OPUS BUILDING SERVICES LTD.
Dedicated Schools Grant BG0015,DSG High Needs Block,Third Party Payments,425005,Rendered by Voluntary Organisations,06/10/2021,3920453-52200,"19,095.32",PERCY HEDLEY FOUNDATION.
Adult and Health Services,Public Health CC0450,Third Party Payments,460803,Contract Payments,06/10/2021,3920458-17598/18,"7,327.00",PIONEERING CARE PARTNERSHIP.
Adult and Health Services,Public Health CC0450,Third Party Payments,460803,Contract Payments,06/10/2021,3920458-17597/18,"5,462.92",PIONEERING CARE PARTNERSHIP.
Adult and Health Services,Commissioning inc Supporting People,Third Party Payments,479111,Purchase of Care,06/10/2021,3920458-17603/18,"45,150.00",PIONEERING CARE PARTNERSHIP.
Neighbourhoods and Climate Change,Technical Services CM0300,Third Party Payments,430100,Rendered by Private Contractors,06/10/2021,3920464-13611,"6,625.92",QUANTUM POWER CONNECTIONS LTD.
Neighbourhoods and Climate Change,Technical Services CM0300,Third Party Payments,430100,Rendered by Private Contractors,06/10/2021,3920466-10000/210934,"139,212.46",RAINTON CONSTRUCTION LTD.
Neighbourhoods and Climate Change,Technical Services CM0300,Third Party Payments,430100,Rendered by Private Contractors,06/10/2021,3920466-10000/210935,"65,363.42",RAINTON CONSTRUCTION LTD.
Neighbourhoods and Climate Change,Technical Services CM0300,Third Party Payments,430100,Rendered by Private Contractors,06/10/2021,3920466-10000/210936,"54,640.24",RAINTON CONSTRUCTION LTD.
Neighbourhoods and Climate Change,Technical Services CM0300,Third Party Payments,430100,Rendered by Private Contractors,06/10/2021,3920466-10000/210937,"30,333.50",RAINTON CONSTRUCTION LTD.
Neighbourhoods and Climate Change,Technical Services CM0300,Third Party Payments,430100,Rendered by Private Contractors,06/10/2021,3920466-10000/210938,"26,894.75",RAINTON CONSTRUCTION LTD.
Neighbourhoods and Climate Change,Technical Services CM0300,Third Party Payments,430100,Rendered by Private Contractors,06/10/2021,3920466-10000/210939,"97,796.47",RAINTON CONSTRUCTION LTD.
Neighbourhoods and Climate Change,Technical Services CM0300,Third Party Payments,430100,Rendered by Private Contractors,06/10/2021,3920466-10000/210940,"107,229.94",RAINTON CONSTRUCTION LTD.
Children and Young Peoples Services,Head of Education and Skills,Supplies and Services,338027,Services,06/10/2021,3920404-7-2021,"3,300.00",REDACTED - PAYMENT TO INDIVIDUAL
"Regeneration, Economy and Growth",Corporate Property and Land,Supplies and Services,304221,Equipment and Materials,06/10/2021,3920471-0000062305,"4,560.20",RINNAI UK LTD.
Resources BK0010,Digital and Customer Services,Supplies and Services,304040,Equipment and Materials,06/10/2021,3920484-LNV-21090120,"1,161.51",SAPPHIRE TECHNOLOGIES LTD.*
"Regeneration, Economy and Growth",Transport and Contracted Services,Third Party Payments,430106,Rendered by Private Contractors,06/10/2021,3920486-3120,"134,816.62",SCARLET BAND BUS & COACH LTD.
"Regeneration, Economy and Growth",Transport and Contracted Services,Third Party Payments,430106,Rendered by Private Contractors,06/10/2021,3920486-3130,"128,765.18",SCARLET BAND BUS & COACH LTD.
Children and Young Peoples Services,Head of Education and Skills,Transfer Payments,510051,School Children,06/10/2021,3920489-AWPU-05-2021-217,"4,427.00",SEDGEFIELD COMMUNITY COLLEGE.
Children and Young Peoples Services,Head of Education and Skills,Third Party Payments,440999,Other third party payments E440,06/10/2021,3920490-NEI-EXP-10-2021-006,941.16,SELF MADE STUDIOS CIC.
Children and Young Peoples Services,Head of Education and Skills,Third Party Payments,440999,Other third party payments E440,06/10/2021,3920490-NEI-EXP-10-2021-007,941.16,SELF MADE STUDIOS CIC.
Children and Young Peoples Services,Head of Education and Skills,Third Party Payments,440999,Other third party payments E440,06/10/2021,3920490-NEI-EXP-10-2021-008,941.16,SELF MADE STUDIOS CIC.
"Regeneration, Economy and Growth",Development and Housing,Supplies and Services,384700,Miscellaneous Expenses,06/10/2021,3920498-RED-10-2021-003,"11,000.00",SHERBURN HILL COMMUNITY HUB CIO.
"Regeneration, Economy and Growth",Development and Housing,Supplies and Services,384700,Miscellaneous Expenses,06/10/2021,3920498-RED-10-2021-004,"32,314.56",SHERBURN HILL COMMUNITY HUB CIO.
"Regeneration, Economy and Growth",Culture Sport and Tourism,Supplies and Services,384199,Miscellaneous Expenses,06/10/2021,3920499-176622,"7,219.27",SHOWSEC INTERNATIONAL LTD.
"Regeneration, Economy and Growth",Transport and Contracted Services,Supplies and Services,384199,Miscellaneous Expenses,06/10/2021,3920499-176416,"3,304.00",SHOWSEC INTERNATIONAL LTD.
Neighbourhoods and Climate Change,Environmental Services,Transport,230710,Contract Hire,06/10/2021,3920506-105/21/22427,"21,050.00",SOCIETE GENERALE EQUIPMENT FINANCE LTD.
Neighbourhoods and Climate Change,Environmental Services,Transport,230710,Contract Hire,06/10/2021,3920506-105/21/22428,"1,895.00",SOCIETE GENERALE EQUIPMENT FINANCE LTD.
Neighbourhoods and Climate Change,Environmental Services,Transport,230710,Contract Hire,06/10/2021,3920506-105/21/22426,644.00,SOCIETE GENERALE EQUIPMENT FINANCE LTD.
Children and Young Peoples Services,Head of Education and Skills,Third Party Payments,440999,Other third party payments E440,06/10/2021,3920513-NEI-EXP-10-2021-023,716.39,ST OSWALD`S SUNSHINE CLUB.
Neighbourhoods and Climate Change,Environmental Services,Supplies and Services,338078,Services,06/10/2021,3920516-17555,"7,434.30",STEADFAST SECURITY SOLUTIONS LTD.
Neighbourhoods and Climate Change,Environmental Services,Supplies and Services,338078,Services,06/10/2021,3920516-17554,"3,444.48",STEADFAST SECURITY SOLUTIONS LTD.
Neighbourhoods and Climate Change,Environmental Services,Supplies and Services,338078,Services,06/10/2021,3920516-17557,"6,713.95",STEADFAST SECURITY SOLUTIONS LTD.
Neighbourhoods and Climate Change,Environmental Services,Supplies and Services,338078,Services,06/10/2021,3920516-17556,"9,556.26",STEADFAST SECURITY SOLUTIONS LTD.
Children and Young Peoples Services,Head of Early Help Inclusion & Vulnerable Children.,Supplies and Services,338078,Services,06/10/2021,3920516-17553,"17,844.32",STEADFAST SECURITY SOLUTIONS LTD.
Adult and Health Services,Head of Adults,Supplies and Services,338089,Services,06/10/2021,3920520-4100736766,600.00,SUSAN BELL (EXTERNAL TRAINER).
"Regeneration, Economy and Growth",Business Durham CL0850,Premises,108125,Service Repairs and Maintenance,06/10/2021,3920522-19952,800.00,SWINBURNE HORTICULTURAL SERVICES LTD.
Resources BK0010,Legal & Democratic Services,Supplies and Services,338043,Services,06/10/2021,3920523-75980,540.00,SWINBURNE MADDISON LLP.
"Regeneration, Economy and Growth",Corporate Property and Land,Supplies and Services,304221,Equipment and Materials,06/10/2021,3920524-659999,915.82,T CROSSLING & CO LTD.
"Regeneration, Economy and Growth",Corporate Property and Land,Supplies and Services,304221,Equipment and Materials,06/10/2021,3920524-660485,742.66,T CROSSLING & CO LTD.
"Regeneration, Economy and Growth",Corporate Property and Land,Supplies and Services,304221,Equipment and Materials,06/10/2021,3920524-662432,"3,096.13",T CROSSLING & CO LTD.
"Regeneration, Economy and Growth",Corporate Property and Land,Supplies and Services,304221,Equipment and Materials,06/10/2021,3920524-663227,"1,435.02",T CROSSLING & CO LTD.
"Regeneration, Economy and Growth",Corporate Property and Land,Supplies and Services,304221,Equipment and Materials,06/10/2021,3920524-663864,868.24,T CROSSLING & CO LTD.
"Regeneration, Economy and Growth",Corporate Property and Land,Supplies and Services,304221,Equipment and Materials,06/10/2021,3920524-664447,941.60,T CROSSLING & CO LTD.
"Regeneration, Economy and Growth",Corporate Property and Land,Supplies and Services,304221,Equipment and Materials,06/10/2021,3920524-668126,"3,240.00",T CROSSLING & CO LTD.
"Regeneration, Economy and Growth",Corporate Property and Land,Supplies and Services,304221,Equipment and Materials,06/10/2021,3920525-JE022431TLHLB,894.00,T MANNERS & SONS LTD.
Children and Young Peoples Services,Head of Education and Skills,Third Party Payments,440999,Other third party payments E440,06/10/2021,3920533-NEI-EXP-10-2021-010,716.39,THE HOP KNOCKER.
Children and Young Peoples Services,Head of Education and Skills,Supplies and Services,384540,Miscellaneous Expenses,06/10/2021,3920534-48942,"1,880.00",THE PURPLE COMPANY (UK) LTD T/A SILK GROUP.
Adult and Health Services,Head of Adults,Third Party Payments,473101,Purchase of Care,06/10/2021,317072-I-21-1613596,532.02,THE WIDER WORLD PROJECT.
Children and Young Peoples Services,Head of Childrens Social Care,Third Party Payments,440046,Other third party payments E440,06/10/2021,3920537-5533436,706.84,THORNBURY NURSING SERVICES.
Children and Young Peoples Services,Head of Childrens Social Care,Third Party Payments,440046,Other third party payments E440,06/10/2021,3920537-5533437,706.84,THORNBURY NURSING SERVICES.
Children and Young Peoples Services,Head of Childrens Social Care,Third Party Payments,440046,Other third party payments E440,06/10/2021,3920537-5537226,"1,183.96",THORNBURY NURSING SERVICES.
Children and Young Peoples Services,Head of Childrens Social Care,Third Party Payments,440046,Other third party payments E440,06/10/2021,3920537-5537227,706.84,THORNBURY NURSING SERVICES.
Children and Young Peoples Services,Head of Childrens Social Care,Third Party Payments,440046,Other third party payments E440,06/10/2021,3920537-5537228,638.32,THORNBURY NURSING SERVICES.
Children and Young Peoples Services,Head of Childrens Social Care,Third Party Payments,440046,Other third party payments E440,06/10/2021,3920537-5538600,"1,135.80",THORNBURY NURSING SERVICES.
Children and Young Peoples Services,Head of Childrens Social Care,Third Party Payments,440046,Other third party payments E440,06/10/2021,3920537-5538601,"1,045.01",THORNBURY NURSING SERVICES.
Children and Young Peoples Services,Head of Childrens Social Care,Third Party Payments,440046,Other third party payments E440,06/10/2021,3920537-5538602,996.52,THORNBURY NURSING SERVICES.
Neighbourhoods and Climate Change,Technical Services CM0300,Supplies and Services,304221,Equipment and Materials,06/10/2021,3920546-223982,513.82,TYNEDALE ROADSTONE LTD.
Neighbourhoods and Climate Change,Technical Services CM0300,Supplies and Services,304221,Equipment and Materials,06/10/2021,3920546-226171,"1,065.25",TYNEDALE ROADSTONE LTD.
Neighbourhoods and Climate Change,Technical Services CM0300,Supplies and Services,304221,Equipment and Materials,06/10/2021,3920546-226174,565.37,TYNEDALE ROADSTONE LTD.
Neighbourhoods and Climate Change,Technical Services CM0300,Supplies and Services,304221,Equipment and Materials,06/10/2021,3920546-226177,"1,082.08",TYNEDALE ROADSTONE LTD.
Neighbourhoods and Climate Change,Technical Services CM0300,Supplies and Services,304221,Equipment and Materials,06/10/2021,3920546-226179,581.81,TYNEDALE ROADSTONE LTD.
Neighbourhoods and Climate Change,Technical Services CM0300,Supplies and Services,304221,Equipment and Materials,06/10/2021,3920546-226182,"1,088.02",TYNEDALE ROADSTONE LTD.
Neighbourhoods and Climate Change,Technical Services CM0300,Supplies and Services,304221,Equipment and Materials,06/10/2021,3920546-226184,801.52,TYNEDALE ROADSTONE LTD.
Neighbourhoods and Climate Change,Technical Services CM0300,Supplies and Services,304221,Equipment and Materials,06/10/2021,3920546-226185,628.52,TYNEDALE ROADSTONE LTD.
Neighbourhoods and Climate Change,Technical Services CM0300,Supplies and Services,304221,Equipment and Materials,06/10/2021,3920546-226186,545.48,TYNEDALE ROADSTONE LTD.
Neighbourhoods and Climate Change,Technical Services CM0300,Supplies and Services,304221,Equipment and Materials,06/10/2021,3920546-226190,"1,097.63",TYNEDALE ROADSTONE LTD.
Neighbourhoods and Climate Change,Technical Services CM0300,Supplies and Services,304221,Equipment and Materials,06/10/2021,3920546-226265,759.13,TYNEDALE ROADSTONE LTD.
Neighbourhoods and Climate Change,Technical Services CM0300,Supplies and Services,304221,Equipment and Materials,06/10/2021,3920546-226268,"1,085.05",TYNEDALE ROADSTONE LTD.
Neighbourhoods and Climate Change,Technical Services CM0300,Supplies and Services,304221,Equipment and Materials,06/10/2021,3920546-226269,627.76,TYNEDALE ROADSTONE LTD.
Neighbourhoods and Climate Change,Technical Services CM0300,Supplies and Services,304221,Equipment and Materials,06/10/2021,3920546-226322,762.59,TYNEDALE ROADSTONE LTD.
Neighbourhoods and Climate Change,Technical Services CM0300,Supplies and Services,304221,Equipment and Materials,06/10/2021,3920546-226323,593.05,TYNEDALE ROADSTONE LTD.
Neighbourhoods and Climate Change,Technical Services CM0300,Supplies and Services,304221,Equipment and Materials,06/10/2021,3920546-226326,"1,006.84",TYNEDALE ROADSTONE LTD.
Neighbourhoods and Climate Change,Technical Services CM0300,Supplies and Services,304221,Equipment and Materials,06/10/2021,3920546-226327,"1,085.05",TYNEDALE ROADSTONE LTD.
Neighbourhoods and Climate Change,Technical Services CM0300,Supplies and Services,304221,Equipment and Materials,06/10/2021,3920546-226333,"1,096.54",TYNEDALE ROADSTONE LTD.
Neighbourhoods and Climate Change,Technical Services CM0300,Supplies and Services,304221,Equipment and Materials,06/10/2021,3920546-226334,749.36,TYNEDALE ROADSTONE LTD.
Neighbourhoods and Climate Change,Technical Services CM0300,Supplies and Services,304221,Equipment and Materials,06/10/2021,3920546-226535,903.88,TYNEDALE ROADSTONE LTD.
Neighbourhoods and Climate Change,Technical Services CM0300,Supplies and Services,304221,Equipment and Materials,06/10/2021,3920546-226536,"1,075.15",TYNEDALE ROADSTONE LTD.
Neighbourhoods and Climate Change,Technical Services CM0300,Supplies and Services,304221,Equipment and Materials,06/10/2021,3920546-226549,"2,061.42",TYNEDALE ROADSTONE LTD.
Neighbourhoods and Climate Change,Technical Services CM0300,Supplies and Services,304221,Equipment and Materials,06/10/2021,3920546-226550,"1,079.11",TYNEDALE ROADSTONE LTD.
Neighbourhoods and Climate Change,Technical Services CM0300,Supplies and Services,304221,Equipment and Materials,06/10/2021,3920546-226649,"1,065.25",TYNEDALE ROADSTONE LTD.
Neighbourhoods and Climate Change,Technical Services CM0300,Third Party Payments,430100,Rendered by Private Contractors,06/10/2021,3920548-201022702,"15,268.21",VAISALA LTD.
Neighbourhoods and Climate Change,Technical Services CM0300,Third Party Payments,430100,Rendered by Private Contractors,06/10/2021,3920548-201022704,"16,080.00",VAISALA LTD.
Neighbourhoods and Climate Change,Technical Services CM0300,Third Party Payments,430100,Rendered by Private Contractors,06/10/2021,3920548-201022709,"19,548.21",VAISALA LTD.
Neighbourhoods and Climate Change,Technical Services CM0300,Third Party Payments,430100,Rendered by Private Contractors,06/10/2021,3920548-201022710,"15,268.21",VAISALA LTD.
Neighbourhoods and Climate Change,Technical Services CM0300,Third Party Payments,430100,Rendered by Private Contractors,06/10/2021,3920548-201022717,"20,360.00",VAISALA LTD.
Resources BK0010,Digital and Customer Services,Supplies and Services,344039,Telephones,06/10/2021,3920554-UK10/102021/3716,"1,860.61",VODAFONE LTD.
Children and Young Peoples Services,Head of Early Help Inclusion & Vulnerable Children.,Supplies and Services,384199,Miscellaneous Expenses,06/10/2021,3920569-45117,522.40,WRIXON SECURITY SERVICES LTD T/A WRIXON CARE.
Children and Young Peoples Services,Head of Education and Skills,Transport,230008,Contract Hire,07/10/2021,3920573-92116,"3,919.50",24/7 TAXI SERVICES (PETERLEE) LTD.
Children and Young Peoples Services,Head of Education and Skills,Transport,230008,Contract Hire,07/10/2021,3920573-92125,"3,560.00",24/7 TAXI SERVICES (PETERLEE) LTD.
Adult and Health Services,Public Health CC0450,Third Party Payments,460803,Contract Payments,07/10/2021,3920575-INV-1203,"124,855.00",ABL HEALTH LTD.
Resources BK0010,Legal & Democratic Services,Supplies and Services,332029,Printing Stationery and Gen Off Exps,07/10/2021,3920576-PSI0174663,"1,400.00",ADARE SEC LTD.
Neighbourhoods and Climate Change,Technical Services CM0300,Supplies and Services,304221,Equipment and Materials,07/10/2021,3920577-32081676,983.55,AGGREGATE INDUSTRIES UK LTD.
Neighbourhoods and Climate Change,Environmental Services,Third Party Payments,430100,Rendered by Private Contractors,07/10/2021,3920581-R91/21/92420,"1,242.00",ALAN M RANSON FUNERAL SERVICE.
Neighbourhoods and Climate Change,Environmental Services,Third Party Payments,430100,Rendered by Private Contractors,07/10/2021,3920581-R96/21/92421,"1,242.00",ALAN M RANSON FUNERAL SERVICE.
"Regeneration, Economy and Growth",Business Durham CL0850,Supplies and Services,308011,Furniture,07/10/2021,3920582-172475,979.00,ALBANY OFFICE EQUIPMENT (WHOLESALE) LTD.
Resources BK0010,Legal & Democratic Services,Supplies and Services,338102,Services,07/10/2021,3920586-009907,"10,260.00",ANALYTICAL SERVICES INTERNATIONAL LTD.
Resources BK0010,Legal & Democratic Services,Supplies and Services,338102,Services,07/10/2021,3920586-009910,"11,160.00",ANALYTICAL SERVICES INTERNATIONAL LTD.
Resources BK0010,Legal & Democratic Services,Supplies and Services,338102,Services,07/10/2021,3920586-009925,570.00,ANALYTICAL SERVICES INTERNATIONAL LTD.
Neighbourhoods and Climate Change,Technical Services CM0300,Fees,901001,Internal fees,07/10/2021,3920589-93674409,"1,100.00",APEX ACOUSTICS LTD.
Children and Young Peoples Services,Head of Education and Skills,Transport,230034,Contract Hire,07/10/2021,3920592-SEP21-3386,972.00,ARMSTRONG`S TAXIS.
"Regeneration, Economy and Growth",Culture Sport and Tourism,Supplies and Services,384199,Miscellaneous Expenses,07/10/2021,3920595-1787,"3,236.00",ASH COOPER FREELANCE SERVICES.
"Regeneration, Economy and Growth",Culture Sport and Tourism,Supplies and Services,312013,Newspapers books and periodicals E312,07/10/2021,3920596-6570241,603.53,ASKEWS & HOLTS LIBRARY SERVICES LTD.
"Regeneration, Economy and Growth",Culture Sport and Tourism,Supplies and Services,312013,Newspapers books and periodicals E312,07/10/2021,3920596-6570379,545.06,ASKEWS & HOLTS LIBRARY SERVICES LTD.
Children and Young Peoples Services,Head of Education and Skills,Transport,230034,Contract Hire,07/10/2021,3920598-861,"1,449.00",AT TAXIS LTD.
Children and Young Peoples Services,Head of Education and Skills,Transport,230007,Contract Hire,07/10/2021,3920598-863,"1,995.00",AT TAXIS LTD.
Children and Young Peoples Services,Head of Education and Skills,Transport,230007,Contract Hire,07/10/2021,3920598-864,"2,144.31",AT TAXIS LTD.
Children and Young Peoples Services,Head of Education and Skills,Transport,230008,Contract Hire,07/10/2021,3920598-862,"1,995.00",AT TAXIS LTD.
Children and Young Peoples Services,Head of Education and Skills,Transport,230008,Contract Hire,07/10/2021,3920597-859,"2,819.04",AT TAXIS LTD.
Children and Young Peoples Services,Head of Education and Skills,Transport,230008,Contract Hire,07/10/2021,3920598-860,"3,045.00",AT TAXIS LTD.
Children and Young Peoples Services,Head of Education and Skills,Transport,230008,Contract Hire,07/10/2021,3920599-DCC04SEPT21,"1,743.60",ATLAS TAXIS BISHOP AUCKLAND.
Children and Young Peoples Services,Head of Education and Skills,Transport,230008,Contract Hire,07/10/2021,3920599-DCC03SEPT21,"3,339.00",ATLAS TAXIS BISHOP AUCKLAND.
Children and Young Peoples Services,Head of Education and Skills,Transport,230006,Contract Hire,07/10/2021,3920600-04255,"1,107.00",ATLAS TAXIS CONSETT.
Children and Young Peoples Services,Head of Education and Skills,Transport,230007,Contract Hire,07/10/2021,3920601-3009213,"1,720.00",AVALON TAXIS.
Neighbourhoods and Climate Change,Environmental Services,Supplies and Services,304259,Equipment and Materials,07/10/2021,3920603-33992,"1,995.00",AXLE WEIGHT TECHNOLOGY LTD.
"Regeneration, Economy and Growth",Corporate Property and Land,Third Party Payments,430100,Rendered by Private Contractors,07/10/2021,3920604-33373,680.00,AYCLIFFE FABRICATIONS LTD.
Children and Young Peoples Services,Head of Education and Skills,Supplies and Services,384199,Miscellaneous Expenses,07/10/2021,3920606-5805,925.71,BALTIC TRAINING SERVICES LTD T/A BALTIC APPRENTICESHIPS.
Children and Young Peoples Services,Head of Education and Skills,Transport,230016,Contract Hire,07/10/2021,3920609-SEP21-N229,625.40,BEELINE PRIVATE HIRE.
Children and Young Peoples Services,Head of Education and Skills,Transport,230008,Contract Hire,07/10/2021,3920609-SMITH1SEPTEMBER21,"1,576.75",BEELINE PRIVATE HIRE.
Children and Young Peoples Services,Head of Childrens Social Care,Supplies and Services,384302,Miscellaneous Expenses,07/10/2021,3920610-021221,615.00,BEES & BUTTERFLIES FLOWERS.
Children and Young Peoples Services,Head of Education and Skills,Transport,230003,Contract Hire,07/10/2021,3920613-STJOHNS8030921,"2,520.00",BELL BROTHERS TRAVEL.
Children and Young Peoples Services,Head of Education and Skills,Transport,230006,Contract Hire,07/10/2021,3920614-26-C,"1,557.00",BELMONT TAXIS.
Children and Young Peoples Services,Head of Education and Skills,Transport,230006,Contract Hire,07/10/2021,3920615-26-B,506.00,BELMONT TAXIS.
Children and Young Peoples Services,Head of Education and Skills,Transport,230034,Contract Hire,07/10/2021,3920616-SUNHASBEL0921-B,"1,302.00",BENS TAXIS.
Adult and Health Services,Head of Adults,Supplies and Services,338365,Services,07/10/2021,3920617-DHP0116,"33,293.29",BERNICIA GROUP LTD.*
Children and Young Peoples Services,Head of Education and Skills,Transport,230006,Contract Hire,07/10/2021,3920619-1-SEP21,"2,160.00",BH TRAVEL.
Children and Young Peoples Services,Head of Education and Skills,Transport,230008,Contract Hire,07/10/2021,3920619-5-SEP21,"1,288.00",BH TRAVEL.
"Regeneration, Economy and Growth",Culture Sport and Tourism,Supplies and Services,324117,Provisions E324,07/10/2021,3920620-31172771,604.42,BIDFOOD.
Neighbourhoods and Climate Change,Environmental Services,Third Party Payments,430114,Rendered by Private Contractors,07/10/2021,3920621-509M00365,"101,052.72",BIFFA WASTE SERVICES LTD.
Children and Young Peoples Services,Head of Education and Skills,Transport,230008,Contract Hire,07/10/2021,3920625-083,"1,440.00",BL CARS.
Neighbourhoods and Climate Change,Environmental Services,Supplies and Services,338066,Services,07/10/2021,3920626-SIN027220,"187,072.24",BLOOM PROCUREMENT SERVICES LTD (FORMERLY NEPRO LTD).
Children and Young Peoples Services,Head of Education and Skills,Transport,230007,Contract Hire,07/10/2021,3920627-C,840.00,BOBS TAXIS.
Children and Young Peoples Services,Head of Education and Skills,Transport,230007,Contract Hire,07/10/2021,3920627-3425SEPT21,"3,080.00",BOBS TAXIS.
Children and Young Peoples Services,Head of Education and Skills,Transport,230008,Contract Hire,07/10/2021,3920628-NO98-A,"1,606.40",BOWES TRAVEL.
Children and Young Peoples Services,Head of Education and Skills,Transport,230008,Contract Hire,07/10/2021,3920630-BZ00377,"1,667.52",BREZ`S TAXIS.
Children and Young Peoples Services,Head of Education and Skills,Transport,230008,Contract Hire,07/10/2021,3920630-BZ00378,"1,026.00",BREZ`S TAXIS.
Children and Young Peoples Services,Head of Education and Skills,Transport,230034,Contract Hire,07/10/2021,3920636-BIL0250,"2,520.00",CA MUSGROVE T/A BILLS TAXIS.
Adult and Health Services,Commissioning inc Supporting People,Third Party Payments,479111,Purchase of Care,07/10/2021,3920637-5039,"6,076.22",CARERS FEDERATION LTD.
Children and Young Peoples Services,Head of Education and Skills,Transport,230008,Contract Hire,07/10/2021,3920643-066,"1,995.00",CHANNER`S CABS.
Neighbourhoods and Climate Change,Environmental Services,Transport,215012,Running Costs of Vehicles,07/10/2021,3920645-196099,794.50,CHEVIN FLEET SOLUTIONS LTD.
"Regeneration, Economy and Growth",Corporate Property and Land,Supplies and Services,304221,Equipment and Materials,07/10/2021,3920653-2852ABH712,"2,389.41",CITY PLUMBING SUPPLIES HOLDINGS LTD.
"Regeneration, Economy and Growth",Corporate Property and Land,Construction work A908,908105,Construction work,07/10/2021,3920654-40236,"6,578.01",CLEVELAND LAND SERVICES (GUISBOROUGH) LTD.
Children and Young Peoples Services,Head of Childrens Social Care,Transport,230005,Contract Hire,07/10/2021,3920656-CLUB2138N,"1,100.00",CLUBMAN CABS.
Children and Young Peoples Services,Head of Childrens Social Care,Transport,230005,Contract Hire,07/10/2021,3920656-CLUB2139N,"1,100.00",CLUBMAN CABS.
Children and Young Peoples Services,Head of Childrens Social Care,Transport,230005,Contract Hire,07/10/2021,3920656-CLUB2138P,695.00,CLUBMAN CABS.
Children and Young Peoples Services,Head of Childrens Social Care,Transport,230005,Contract Hire,07/10/2021,3920656-CLUB2139O,650.00,CLUBMAN CABS.
Children and Young Peoples Services,Head of Education and Skills,Transport,230006,Contract Hire,07/10/2021,3920658-1735,"2,393.37",CONNORS MINI BUSES.*
Children and Young Peoples Services,Head of Education and Skills,Transport,230008,Contract Hire,07/10/2021,3920658-1736,"2,094.12",CONNORS MINI BUSES.*
Children and Young Peoples Services,Head of Education and Skills,Transport,230008,Contract Hire,07/10/2021,3920658-1737,"1,869.00",CONNORS MINI BUSES.*
Children and Young Peoples Services,Head of Education and Skills,Transport,230007,Contract Hire,07/10/2021,3920659-INV005,"1,984.08",CONSETT EXECUTIVE CABS.
Children and Young Peoples Services,Head of Childrens Social Care,Transport,230005,Contract Hire,07/10/2021,3920665-111316,878.80,CROFT BUSINESS SERVICES LTD T/A CROFT TRAVEL.
Children and Young Peoples Services,Head of Childrens Social Care,Transport,230005,Contract Hire,07/10/2021,3920665-111239,878.80,CROFT BUSINESS SERVICES LTD T/A CROFT TRAVEL.
Neighbourhoods and Climate Change,Environmental Services,Supplies and Services,384899,Miscellaneous Expenses,07/10/2021,3920674-RED-10-2021-037,850.00,DEREK GRIEVES TRANSPORT LTD.
"Regeneration, Economy and Growth",Transport and Contracted Services,Supplies and Services,384899,Miscellaneous Expenses,07/10/2021,3920681-RED-10-2021-032,"25,000.00",DURHAM CITY SHOPMOBILITY.
Dedicated Schools Grant BG0015,DSG High Needs Block,Third Party Payments,440080,Other third party payments E440,07/10/2021,3920684-CAS-10-2021-024,"15,727.00",EAST DURHAM COLLEGE.
Neighbourhoods and Climate Change,Environmental Services,Transport,210057,Repair and Maintenance of Vehicles,07/10/2021,3920685-S208079,840.22,ECON ENGINEERING LTD.
"Regeneration, Economy and Growth",Corporate Property and Land,Supplies and Services,304221,Equipment and Materials,07/10/2021,3920687-059-288804,700.65,EDMUNDSON ELECTRICAL LTD.
Neighbourhoods and Climate Change,Environmental Services,Supplies and Services,304221,Equipment and Materials,07/10/2021,3920701-DRM/322836,"1,330.00",FRED WILLIAMSON & SONS LTD.*
Neighbourhoods and Climate Change,Technical Services CM0300,Supplies and Services,304357,Equipment and Materials,07/10/2021,3920705-DCC190921,"15,019.87",GAP GROUP LTD.
Resources BK0010,Digital and Customer Services,Vehicles Equipment Furniture and Fittings,912701,Computer equipment,07/10/2021,3920718-INV0184101,627.84,GVAV LTD.
Resources BK0010,Digital and Customer Services,Supplies and Services,304303,Equipment and Materials,07/10/2021,3920718-INV0184099,544.88,GVAV LTD.
Resources BK0010,Digital and Customer Services,Supplies and Services,304303,Equipment and Materials,07/10/2021,3920718-INV0184100,627.84,GVAV LTD.
Neighbourhoods and Climate Change,Environmental Services,Third Party Payments,430119,Rendered by Private Contractors,07/10/2021,3920723-121948,"6,053.40",HARPERS ENVIRONMENTAL LTD.
"Regeneration, Economy and Growth",Business Durham CL0850,Third Party Payments,440999,Other third party payments E440,07/10/2021,3920728-DBRG-10-2021-23,"5,212.50",HIATCO LTD.
"Regeneration, Economy and Growth",Business Durham CL0850,Third Party Payments,440999,Other third party payments E440,07/10/2021,3920728-DBRG-10-2021-24,"2,081.25",HIATCO LTD.
"Regeneration, Economy and Growth",Business Durham CL0850,Third Party Payments,440999,Other third party payments E440,07/10/2021,3920728-DBRG-10-2021-25,"4,856.25",HIATCO LTD.
"Regeneration, Economy and Growth",Business Durham CL0850,Third Party Payments,440999,Other third party payments E440,07/10/2021,3920728-DBRG-10-2021-26,"1,024.65",HIATCO LTD.
Dedicated Schools Grant BG0015,DSG High Needs Block,Central Support and Other Recharges,689996,Unclassified E690,07/10/2021,3920730-CAS-10-2021-026,"117,942.00",HOPE WOOD ACADEMY.
"Regeneration, Economy and Growth",Corporate Property and Land,Third Party Payments,430100,Rendered by Private Contractors,07/10/2021,3920737-11351,"1,434.00",INGLEFORD SCAFFOLDING LTD.
Children and Young Peoples Services,Head of Early Help Inclusion & Vulnerable Children.,Third Party Payments,460305,Contract Payments,07/10/2021,3920738-2122/IC/005,"2,833.74",INTEGRATING CHILDREN.
Neighbourhoods and Climate Change,Technical Services CM0300,Supplies and Services,338066,Services,07/10/2021,3920741-B225H013-001,"11,313.68",JACOBS UK LTD.
Neighbourhoods and Climate Change,Environmental Services,Supplies and Services,338066,Services,07/10/2021,3920742-BURSARYOCT21,742.48,JAMES DILL-RUSSELL (GEOLOGIST).
Neighbourhoods and Climate Change,Technical Services CM0300,Supplies and Services,304358,Equipment and Materials,07/10/2021,3920748-31615,"2,999.60",JOHN R BUTTERFIELD LTD.
Neighbourhoods and Climate Change,Technical Services CM0300,Supplies and Services,304358,Equipment and Materials,07/10/2021,3920748-31623,751.50,JOHN R BUTTERFIELD LTD.
Neighbourhoods and Climate Change,Technical Services CM0300,Supplies and Services,304358,Equipment and Materials,07/10/2021,3920748-31629,"3,091.00",JOHN R BUTTERFIELD LTD.
Neighbourhoods and Climate Change,Technical Services CM0300,Supplies and Services,304358,Equipment and Materials,07/10/2021,3920749-0000083301,775.00,JOHN WADE (HAULAGE) LTD.
Neighbourhoods and Climate Change,Environmental Services,Supplies and Services,304358,Equipment and Materials,07/10/2021,3920749-0000083330,916.00,JOHN WADE (HAULAGE) LTD.
"Regeneration, Economy and Growth",Corporate Property and Land,Third Party Payments,430100,Rendered by Private Contractors,07/10/2021,3920749-0000083349,"13,050.00",JOHN WADE (HAULAGE) LTD.
"Regeneration, Economy and Growth",Corporate Property and Land,Supplies and Services,304221,Equipment and Materials,07/10/2021,3920753-0120/00478699,"1,043.98",JT DOVE LTD.
"Regeneration, Economy and Growth",Corporate Property and Land,Supplies and Services,304221,Equipment and Materials,07/10/2021,3920753-0120/00456086,"1,020.80",JT DOVE LTD.
"Regeneration, Economy and Growth",Corporate Property and Land,Supplies and Services,304221,Equipment and Materials,07/10/2021,3920753-0120/00475166,510.40,JT DOVE LTD.
Neighbourhoods and Climate Change,Technical Services CM0300,Third Party Payments,430128,Rendered by Private Contractors,07/10/2021,3920755-INV-0454,"2,603.00",JW TEWARD & SONS.
Neighbourhoods and Climate Change,Technical Services CM0300,Supplies and Services,342051,Computers and Communications,07/10/2021,3920756-1355-01/10/2021,"1,875.00",KAINOS SOFTWARE LTD.
Adult and Health Services,Public Health CC0450,Third Party Payments,460803,Contract Payments,07/10/2021,3920764-FQVV/00000354,606.00,LAFFAK LTD T/A KAILA PHARMACY SEAHAM.
Children and Young Peoples Services,Head of Childrens Social Care,Transport,230005,Contract Hire,07/10/2021,3920773-4931,"1,260.00",LOCAL TRANSPORT LTD.
Children and Young Peoples Services,Head of Childrens Social Care,Transport,230005,Contract Hire,07/10/2021,3920773-4945,576.00,LOCAL TRANSPORT LTD.
Children and Young Peoples Services,Head of Childrens Social Care,Transport,230005,Contract Hire,07/10/2021,3920773-4947,600.00,LOCAL TRANSPORT LTD.
Children and Young Peoples Services,Head of Childrens Social Care,Transport,230005,Contract Hire,07/10/2021,3920773-4935,"3,300.00",LOCAL TRANSPORT LTD.
Children and Young Peoples Services,Head of Childrens Social Care,Transport,230005,Contract Hire,07/10/2021,3920773-4960,"2,530.00",LOCAL TRANSPORT LTD.
Children and Young Peoples Services,Head of Childrens Social Care,Transport,230005,Contract Hire,07/10/2021,3920773-4927,525.00,LOCAL TRANSPORT LTD.
Children and Young Peoples Services,Head of Childrens Social Care,Transport,230005,Contract Hire,07/10/2021,3920773-4942,"1,095.00",LOCAL TRANSPORT LTD.
Children and Young Peoples Services,Head of Childrens Social Care,Supplies and Services,338045,Services,07/10/2021,3920778-CAS-10-2021-034,"3,766.50",M & H LEGAL LTD.
Children and Young Peoples Services,Head of Education and Skills,Transport,230008,Contract Hire,07/10/2021,3920781-1-SEP21,"2,400.00",MALCOLM CARR T/A CARLY CABS.
"Regeneration, Economy and Growth",Business Durham CL0850,Supplies and Services,384540,Miscellaneous Expenses,07/10/2021,3920790-3608,500.00,MJG PUBLISHING LTD T/A NORTHERN INSIGHT MAGAZINE.
"Regeneration, Economy and Growth",Business Durham CL0850,Third Party Payments,440999,Other third party payments E440,07/10/2021,3920801-DBRG-10-2021-20,"2,862.75",MY WAY GUEST HOUSE.
Children and Young Peoples Services,Head of Childrens Social Care,Supplies and Services,384302,Miscellaneous Expenses,07/10/2021,3920802-376,625.00,NASAM LTD T/A CDWES.
Neighbourhoods and Climate Change,Technical Services CM0300,Supplies and Services,304358,Equipment and Materials,07/10/2021,3920806-NC/171/BW,"2,035.00",NEDCO CONTRACTS (NE) LTD.
"Regeneration, Economy and Growth",Culture Sport and Tourism,Third Party Payments,430130,Rendered by Private Contractors,07/10/2021,3920807-5100249,"2,051.91",NEW COLLEGE ACADEMIES TRUST - CONSETT ACADEMY.
"Regeneration, Economy and Growth",Communications Management,Supplies and Services,336005,Advertising E336,07/10/2021,3920808-37937112,"1,900.00",NEWSQUEST (YORKSHIRE & NORTH EAST) LTD.
"Regeneration, Economy and Growth",Communications Management,Supplies and Services,336005,Advertising E336,07/10/2021,3920808-37938902,"1,899.00",NEWSQUEST (YORKSHIRE & NORTH EAST) LTD.
Children and Young Peoples Services,Head of Childrens Social Care,Supplies and Services,384500,Miscellaneous Expenses,07/10/2021,3920816-2347,"2,500.00",NORTH EAST ADOPTION THERAPY SERVICES LTD (NEATS).
Neighbourhoods and Climate Change,Environmental Services,Supplies and Services,304259,Equipment and Materials,07/10/2021,3920819-21235,"1,601.62",NORTHBURN TECHNICAL SERVICES LTD.
Neighbourhoods and Climate Change,Community Protection,Third Party Payments,430100,Rendered by Private Contractors,07/10/2021,3920820-915033607,885.96,NORTHUMBRIAN WATER LTD.
Children and Young Peoples Services,Head of Education and Skills,Construction work A908,908105,Construction work,07/10/2021,3920825-A215591,"2,564.60",OPENREACH LLU.
Children and Young Peoples Services,Head of Education and Skills,Supplies and Services,384199,Miscellaneous Expenses,07/10/2021,3920826-INV-0731,587.20,OPTIMUM SKILLS LTD.
Neighbourhoods and Climate Change,Technical Services CM0300,Stock A926,926900,Stock in hand-Inventory system,07/10/2021,3920829-XL276325,518.00,PARK ELECTRICAL DISTRIBUTORS LTD.
"Regeneration, Economy and Growth",Business Durham CL0850,Third Party Payments,440999,Other third party payments E440,07/10/2021,3920836-DBRG-10-2021-21,"18,253.93",PLTD OPERATIONS LTD T/A THE BLACK HORSE INN.
"Regeneration, Economy and Growth",Culture Sport and Tourism,Fees,901002,Professional fees,07/10/2021,3920843-YOR003808,"2,740.00",PURCELL ARCHITECTURE LTD.
Neighbourhoods and Climate Change,Technical Services CM0300,Third Party Payments,430100,Rendered by Private Contractors,07/10/2021,3920846-13601,"7,677.31",QUANTUM POWER CONNECTIONS LTD.
Children and Young Peoples Services,Head of Education and Skills,Transport,230006,Contract Hire,07/10/2021,3920587-1-SEP21,740.00,REDACTED - PAYMENT TO INDIVIDUAL
Children and Young Peoples Services,Head of Education and Skills,Transport,230008,Contract Hire,07/10/2021,3920588-0128,"2,840.12",REDACTED - PAYMENT TO INDIVIDUAL
Children and Young Peoples Services,Head of Education and Skills,Transport,230012,Contract Hire,07/10/2021,3920631-1-SEP21,"2,500.00",REDACTED - PAYMENT TO INDIVIDUAL
Children and Young Peoples Services,Head of Education and Skills,Transport,230034,Contract Hire,07/10/2021,3920668-SEDGEFIELD300921,"1,056.00",REDACTED - PAYMENT TO INDIVIDUAL
Children and Young Peoples Services,Head of Education and Skills,Transport,230035,Contract Hire,07/10/2021,3920668-300921,526.02,REDACTED - PAYMENT TO INDIVIDUAL
Children and Young Peoples Services,Head of Education and Skills,Transport,230006,Contract Hire,07/10/2021,3920721-01-SEP21,"1,584.11",REDACTED - PAYMENT TO INDIVIDUAL
Children and Young Peoples Services,Head of Education and Skills,Transport,230034,Contract Hire,07/10/2021,3920793-188,"1,260.00",REDACTED - PAYMENT TO INDIVIDUAL
Children and Young Peoples Services,Head of Education and Skills,Transport,230007,Contract Hire,07/10/2021,3920793-186,"1,120.00",REDACTED - PAYMENT TO INDIVIDUAL
Children and Young Peoples Services,Head of Education and Skills,Transport,230034,Contract Hire,07/10/2021,3920794-78/2021,"1,404.00",REDACTED - PAYMENT TO INDIVIDUAL
Neighbourhoods and Climate Change,Environmental Services,Supplies and Services,338066,Services,07/10/2021,3920811-1,"1,662.50",REDACTED - PAYMENT TO INDIVIDUAL
Neighbourhoods and Climate Change,Environmental Services,Supplies and Services,338066,Services,07/10/2021,3920811-2,"1,430.00",REDACTED - PAYMENT TO INDIVIDUAL
Neighbourhoods and Climate Change,Environmental Services,Supplies and Services,338066,Services,07/10/2021,3920811-3,"2,092.00",REDACTED - PAYMENT TO INDIVIDUAL
Neighbourhoods and Climate Change,Environmental Services,Supplies and Services,338066,Services,07/10/2021,3920811-4,"2,674.00",REDACTED - PAYMENT TO INDIVIDUAL
Neighbourhoods and Climate Change,Environmental Services,Supplies and Services,338066,Services,07/10/2021,3920811-5,"1,624.00",REDACTED - PAYMENT TO INDIVIDUAL
Neighbourhoods and Climate Change,Environmental Services,Supplies and Services,338066,Services,07/10/2021,3920811-6,945.00,REDACTED - PAYMENT TO INDIVIDUAL
Neighbourhoods and Climate Change,Environmental Services,Supplies and Services,338066,Services,07/10/2021,3920811-8,"1,624.00",REDACTED - PAYMENT TO INDIVIDUAL
"Regeneration, Economy and Growth",Business Durham CL0850,Third Party Payments,440999,Other third party payments E440,07/10/2021,3920875-DBRG-10-2021-22,613.80,REDACTED - PAYMENT TO INDIVIDUAL
Children and Young Peoples Services,Head of Education and Skills,Third Party Payments,440999,Other third party payments E440,07/10/2021,3920876-PO4100732591,"4,680.00",SMARTT NORTH EAST LTD.
"Regeneration, Economy and Growth",Corporate Property and Land,Third Party Payments,430100,Rendered by Private Contractors,07/10/2021,3920885-7719,"13,536.00",ST ASTIER LTD.
"Regeneration, Economy and Growth",Communications Management,Supplies and Services,336005,Advertising E336,07/10/2021,3920892-INV-5658,"1,699.00",STEVE DAVIDSON ADVERTISING LTD T/A SD ADVERTISING LTD.
"Regeneration, Economy and Growth",Communications Management,Supplies and Services,336005,Advertising E336,07/10/2021,3920892-INV-5659,"1,307.90",STEVE DAVIDSON ADVERTISING LTD T/A SD ADVERTISING LTD.
Children and Young Peoples Services,Head of Childrens Social Care,Transport,230005,Contract Hire,07/10/2021,3920893-SI-1154,596.00,STEVEN PRATT T/A PTL TAXIS DURHAM.
Children and Young Peoples Services,Head of Childrens Social Care,Transport,230005,Contract Hire,07/10/2021,3920893-SI-1145,700.00,STEVEN PRATT T/A PTL TAXIS DURHAM.
Children and Young Peoples Services,Head of Childrens Social Care,Transport,230005,Contract Hire,07/10/2021,3920893-SI-1148,500.00,STEVEN PRATT T/A PTL TAXIS DURHAM.
Children and Young Peoples Services,Head of Childrens Social Care,Transport,230005,Contract Hire,07/10/2021,3920893-SI-1149,518.50,STEVEN PRATT T/A PTL TAXIS DURHAM.
Children and Young Peoples Services,Head of Childrens Social Care,Transport,230005,Contract Hire,07/10/2021,3920893-SI-1150,600.00,STEVEN PRATT T/A PTL TAXIS DURHAM.
Children and Young Peoples Services,Head of Childrens Social Care,Transport,230005,Contract Hire,07/10/2021,3920894-SEP46/STL,560.00,STL CABS.
"Regeneration, Economy and Growth",Development and Housing,Premises,145023,Cleaning and Domestic Supplies,07/10/2021,3920901-507115,895.00,SYCAL UMBRELLAS PRINT & PROMOTIONS LTD.
Children and Young Peoples Services,Head of Childrens Social Care,Third Party Payments,486054,Service level agreements E486,07/10/2021,3920905-4810019802,"7,811.43",TEES ESK & WEAR VALLEYS NHS FOUNDATION TRUST.
Adult and Health Services,Head of Adults,Third Party Payments,470101,Purchase of Care,07/10/2021,3920910-CAS-10-2021-035,"2,118.20",THE LAURELS CARE SERVICES LTD.
"Regeneration, Economy and Growth",Business Durham CL0850,Third Party Payments,440999,Other third party payments E440,07/10/2021,3920912-DBRG-10-2021-28,"5,635.28",THE WORK PLACE (AYCLIFFE) LTD.
"Regeneration, Economy and Growth",Business Durham CL0850,Third Party Payments,440999,Other third party payments E440,07/10/2021,3920912-DBRG-10-2021-29,"21,429.38",THE WORK PLACE (AYCLIFFE) LTD.
Children and Young Peoples Services,Head of Childrens Social Care,Third Party Payments,440046,Other third party payments E440,07/10/2021,3920914-5512785,785.86,THORNBURY NURSING SERVICES.
Children and Young Peoples Services,Head of Childrens Social Care,Third Party Payments,440046,Other third party payments E440,07/10/2021,3920914-5512786,706.84,THORNBURY NURSING SERVICES.
Children and Young Peoples Services,Head of Childrens Social Care,Third Party Payments,440046,Other third party payments E440,07/10/2021,3920914-5512787,996.52,THORNBURY NURSING SERVICES.
Children and Young Peoples Services,Head of Childrens Social Care,Third Party Payments,440046,Other third party payments E440,07/10/2021,3920914-5512788,644.62,THORNBURY NURSING SERVICES.
Children and Young Peoples Services,Head of Childrens Social Care,Third Party Payments,440046,Other third party payments E440,07/10/2021,3920914-5512790,559.31,THORNBURY NURSING SERVICES.
Children and Young Peoples Services,Head of Childrens Social Care,Third Party Payments,440046,Other third party payments E440,07/10/2021,3920914-5512791,"1,099.48",THORNBURY NURSING SERVICES.
Children and Young Peoples Services,Head of Childrens Social Care,Third Party Payments,440046,Other third party payments E440,07/10/2021,3920914-5512792,689.56,THORNBURY NURSING SERVICES.
Children and Young Peoples Services,Head of Childrens Social Care,Third Party Payments,440046,Other third party payments E440,07/10/2021,3920914-5512793,871.64,THORNBURY NURSING SERVICES.
Children and Young Peoples Services,Head of Childrens Social Care,Third Party Payments,440046,Other third party payments E440,07/10/2021,3920914-5512794,797.14,THORNBURY NURSING SERVICES.
Children and Young Peoples Services,Head of Childrens Social Care,Third Party Payments,440046,Other third party payments E440,07/10/2021,3920914-5512795,706.84,THORNBURY NURSING SERVICES.
Children and Young Peoples Services,Head of Childrens Social Care,Third Party Payments,440046,Other third party payments E440,07/10/2021,3920914-5512796,"1,158.20",THORNBURY NURSING SERVICES.
Children and Young Peoples Services,Head of Childrens Social Care,Third Party Payments,440046,Other third party payments E440,07/10/2021,3920914-5512797,"1,280.29",THORNBURY NURSING SERVICES.
Children and Young Peoples Services,Head of Childrens Social Care,Third Party Payments,440046,Other third party payments E440,07/10/2021,3920914-5514941,"1,123.28",THORNBURY NURSING SERVICES.
Children and Young Peoples Services,Head of Childrens Social Care,Third Party Payments,440046,Other third party payments E440,07/10/2021,3920914-5514942,822.99,THORNBURY NURSING SERVICES.
Children and Young Peoples Services,Head of Childrens Social Care,Third Party Payments,440046,Other third party payments E440,07/10/2021,3920914-5517199,"1,231.42",THORNBURY NURSING SERVICES.
Children and Young Peoples Services,Head of Childrens Social Care,Third Party Payments,440046,Other third party payments E440,07/10/2021,3920914-5517200,"1,280.29",THORNBURY NURSING SERVICES.
Children and Young Peoples Services,Head of Childrens Social Care,Third Party Payments,440046,Other third party payments E440,07/10/2021,3920914-5517201,"1,280.29",THORNBURY NURSING SERVICES.
Children and Young Peoples Services,Head of Childrens Social Care,Third Party Payments,440046,Other third party payments E440,07/10/2021,3920914-5517202,"1,243.74",THORNBURY NURSING SERVICES.
Children and Young Peoples Services,Head of Childrens Social Care,Third Party Payments,440046,Other third party payments E440,07/10/2021,3920914-5517203,"1,159.34",THORNBURY NURSING SERVICES.
Children and Young Peoples Services,Head of Childrens Social Care,Third Party Payments,440046,Other third party payments E440,07/10/2021,3920914-5517204,972.72,THORNBURY NURSING SERVICES.
Children and Young Peoples Services,Head of Childrens Social Care,Third Party Payments,440046,Other third party payments E440,07/10/2021,3920914-5517205,"1,762.20",THORNBURY NURSING SERVICES.
Children and Young Peoples Services,Head of Childrens Social Care,Third Party Payments,440046,Other third party payments E440,07/10/2021,3920914-5518292,"1,041.17",THORNBURY NURSING SERVICES.
Children and Young Peoples Services,Head of Childrens Social Care,Third Party Payments,440046,Other third party payments E440,07/10/2021,3920914-5518293,986.44,THORNBURY NURSING SERVICES.
Children and Young Peoples Services,Head of Childrens Social Care,Third Party Payments,440046,Other third party payments E440,07/10/2021,3920914-5519729,"1,147.81",THORNBURY NURSING SERVICES.
Children and Young Peoples Services,Head of Childrens Social Care,Third Party Payments,440046,Other third party payments E440,07/10/2021,3920914-5519730,868.48,THORNBURY NURSING SERVICES.
Children and Young Peoples Services,Head of Education and Skills,Transport,230006,Contract Hire,07/10/2021,3920919-0002271,"1,785.00",TONY RIDLEY T/A COLORS TAXIS LTD.
Children and Young Peoples Services,Head of Education and Skills,Transport,230008,Contract Hire,07/10/2021,3920919-0002273,"5,545.00",TONY RIDLEY T/A COLORS TAXIS LTD.
Children and Young Peoples Services,Head of Education and Skills,Transport,230008,Contract Hire,07/10/2021,3920919-0002269-M049,"4,705.80",TONY RIDLEY T/A COLORS TAXIS LTD.
Children and Young Peoples Services,Head of Education and Skills,Transport,230008,Contract Hire,07/10/2021,3920919-0002270,"1,995.00",TONY RIDLEY T/A COLORS TAXIS LTD.
Adult and Health Services,Head of Adults,Transport,230005,Contract Hire,07/10/2021,3920919-0002268,"3,300.00",TONY RIDLEY T/A COLORS TAXIS LTD.
Resources BK0010,Legal & Democratic Services,Supplies and Services,338042,Services,07/10/2021,3920920-287380/INVGR348,800.00,TRINITY CHAMBERS.
"Regeneration, Economy and Growth",Transport and Contracted Services,Supplies and Services,304259,Equipment and Materials,07/10/2021,3920922-3IN/10379753,"7,960.00",TUNSTALL HEALTHCARE (UK) LTD.
Adult and Health Services,Head of Adults,Third Party Payments,478101,Purchase of Care,07/10/2021,3920929-CAS-10-2021-030,"33,575.10",VOYAGE 1 LTD.
Neighbourhoods and Climate Change,Technical Services CM0300,Supplies and Services,304358,Equipment and Materials,07/10/2021,3920930-49825,690.00,W MARLEY AGRICULTURAL CONTRACTORS LTD.
Children and Young Peoples Services,Head of Education and Skills,Transport,230008,Contract Hire,07/10/2021,3920931-SEP21-W011,"1,050.00",WAINE SANDERSON T/A 1A CAB.
"Regeneration, Economy and Growth",Corporate Property and Land,Third Party Payments,430100,Rendered by Private Contractors,07/10/2021,3920933-6944,695.00,WARREN (ELECTRICAL) LTD.
"Regeneration, Economy and Growth",Corporate Property and Land,Third Party Payments,430100,Rendered by Private Contractors,07/10/2021,3920933-6941,"1,375.00",WARREN (ELECTRICAL) LTD.
"Regeneration, Economy and Growth",Corporate Property and Land,Third Party Payments,430100,Rendered by Private Contractors,07/10/2021,3920933-6948,"1,234.00",WARREN (ELECTRICAL) LTD.
Children and Young Peoples Services,Head of Education and Skills,Transport,235005,Public Transport,07/10/2021,3920936-16826,"264,768.76",WEARDALE MOTOR SERVICES LTD.
"Regeneration, Economy and Growth",Corporate Property and Land,Third Party Payments,430100,Rendered by Private Contractors,07/10/2021,3920940-529,"2,960.00",WHORLTON LAND SURVEYS LTD.
Neighbourhoods and Climate Change,Technical Services CM0300,Supplies and Services,304358,Equipment and Materials,07/10/2021,3920950-8757,"2,730.00",YOULL CONSTRUCTION LTD.
Neighbourhoods and Climate Change,Technical Services CM0300,Stock A926,926900,Stock in hand-Inventory system,07/10/2021,3920952-145442159,"1,001.66",ZG LIGHTING (UK) LTD.
Neighbourhoods and Climate Change,Technical Services CM0300,Stock A926,926900,Stock in hand-Inventory system,07/10/2021,3920952-145442904,"9,240.12",ZG LIGHTING (UK) LTD.
Neighbourhoods and Climate Change,Technical Services CM0300,Stock A926,926900,Stock in hand-Inventory system,07/10/2021,3920952-145442905,"2,175.44",ZG LIGHTING (UK) LTD.
Children and Young Peoples Services,Head of Education and Skills,Transport,230034,Contract Hire,08/10/2021,3920953-92101,"1,548.00",24/7 TAXI SERVICES (PETERLEE) LTD.
Children and Young Peoples Services,Head of Education and Skills,Transport,230034,Contract Hire,08/10/2021,3920953-92105,931.00,24/7 TAXI SERVICES (PETERLEE) LTD.
Children and Young Peoples Services,Head of Education and Skills,Transport,230034,Contract Hire,08/10/2021,3920953-92103,630.00,24/7 TAXI SERVICES (PETERLEE) LTD.
Children and Young Peoples Services,Head of Education and Skills,Transport,230034,Contract Hire,08/10/2021,3920953-92117,"2,520.00",24/7 TAXI SERVICES (PETERLEE) LTD.
Children and Young Peoples Services,Head of Education and Skills,Transport,230006,Contract Hire,08/10/2021,3920953-92119,"1,440.00",24/7 TAXI SERVICES (PETERLEE) LTD.
Children and Young Peoples Services,Head of Education and Skills,Transport,230006,Contract Hire,08/10/2021,3920953-92109,"2,293.95",24/7 TAXI SERVICES (PETERLEE) LTD.
Children and Young Peoples Services,Head of Education and Skills,Transport,230012,Contract Hire,08/10/2021,3920953-92115,"2,280.00",24/7 TAXI SERVICES (PETERLEE) LTD.
Children and Young Peoples Services,Head of Education and Skills,Transport,230012,Contract Hire,08/10/2021,3920953-92126,"3,204.48",24/7 TAXI SERVICES (PETERLEE) LTD.
Children and Young Peoples Services,Head of Education and Skills,Transport,230016,Contract Hire,08/10/2021,3920953-92113,"2,160.00",24/7 TAXI SERVICES (PETERLEE) LTD.
Children and Young Peoples Services,Head of Education and Skills,Transport,230008,Contract Hire,08/10/2021,3920953-92110,"2,193.00",24/7 TAXI SERVICES (PETERLEE) LTD.
Children and Young Peoples Services,Head of Education and Skills,Transport,230008,Contract Hire,08/10/2021,3920953-92112,"2,337.67",24/7 TAXI SERVICES (PETERLEE) LTD.
Children and Young Peoples Services,Head of Education and Skills,Transport,230008,Contract Hire,08/10/2021,3920953-92118,"1,782.00",24/7 TAXI SERVICES (PETERLEE) LTD.
Neighbourhoods and Climate Change,Technical Services CM0300,Third Party Payments,430100,Rendered by Private Contractors,08/10/2021,3920956-9016,"1,088.00",A19 DRILLING LTD.
"Regeneration, Economy and Growth",Culture Sport and Tourism,Supplies and Services,384199,Miscellaneous Expenses,08/10/2021,3920954-4208,704.00,A-HA! DISTRIBUTION LTD.
Children and Young Peoples Services,Head of Education and Skills,Transport,230008,Contract Hire,08/10/2021,3920959-01SEPTEMBER2021,990.00,AIRPORT TRANSFER DURHAM.
Neighbourhoods and Climate Change,Environmental Services,Third Party Payments,430100,Rendered by Private Contractors,08/10/2021,3920960-R92/21/92419,"1,160.00",ALAN M RANSON FUNERAL SERVICE.
Children and Young Peoples Services,Head of Education and Skills,Transport,230008,Contract Hire,08/10/2021,3920963-30,"2,604.00",AMANDA SMITH T/A WEARDALE WHEELS.
"Regeneration, Economy and Growth",Corporate Property and Land,Third Party Payments,430100,Rendered by Private Contractors,08/10/2021,3920964-SI18943,"4,975.00",AMBIC LTD.
Children and Young Peoples Services,Head of Childrens Social Care,Third Party Payments,425041,Rendered by Voluntary Organisations,08/10/2021,3920971-ARC2122-484,889.00,ARC ADOPTION NORTH EAST.
Neighbourhoods and Climate Change,Technical Services CM0300,Third Party Payments,430128,Rendered by Private Contractors,08/10/2021,3920974-4100703683-26/09/2021.,"1,474.50",AST LEE & SON.
Adult and Health Services,Head of Adults,Transport,230005,Contract Hire,08/10/2021,3920975-DCC5SEPT21,"1,099.44",ATLAS TAXIS BISHOP AUCKLAND.
Children and Young Peoples Services,Childrens Services Operational Support,Intangible Assets,917001,Software capitalised licence fees,08/10/2021,3920977-UKINV-179,"421,350.00",AZEUS UK LTD.
Children and Young Peoples Services,Childrens Services Operational Support,Intangible Assets,917001,Software capitalised licence fees,08/10/2021,3920977-UKINV-183,"66,577.50",AZEUS UK LTD.
Children and Young Peoples Services,Head of Education and Skills,Transport,230006,Contract Hire,08/10/2021,3920978-1-C,560.00,B&C YELLOWCAB TAXI`S.
Children and Young Peoples Services,Head of Childrens Social Care,Third Party Payments,425041,Rendered by Voluntary Organisations,08/10/2021,3920980-146021752,"51,714.00",BARNARDO SERVICES LTD.
Children and Young Peoples Services,Head of Childrens Social Care,Third Party Payments,425041,Rendered by Voluntary Organisations,08/10/2021,3920981-146023306,"33,320.00",BARNARDOS BELIEVE IN CHILDREN.
Children and Young Peoples Services,Head of Education and Skills,Transport,230008,Contract Hire,08/10/2021,3920984-970,"2,235.03",BEELINE MINI BUSES.
"Regeneration, Economy and Growth",Transport and Contracted Services,Supplies and Services,304245,Equipment and Materials,08/10/2021,3920986-DHP0115,"1,188.50",BERNICIA GROUP LTD.*
Children and Young Peoples Services,Head of Education and Skills,Transport,230008,Contract Hire,08/10/2021,3920990-4-SEPT21,"1,080.00",BH TRAVEL.
Children and Young Peoples Services,Head of Education and Skills,Transport,230008,Contract Hire,08/10/2021,3920990-6-SEPT21,"1,352.52",BH TRAVEL.
Children and Young Peoples Services,Head of Education and Skills,Transport,230008,Contract Hire,08/10/2021,3920990-2-SEPT21,"1,609.72",BH TRAVEL.
Children and Young Peoples Services,Head of Education and Skills,Transport,230008,Contract Hire,08/10/2021,3920990-3-SEPT21,"1,132.32",BH TRAVEL.
Children and Young Peoples Services,Head of Education and Skills,Transport,230007,Contract Hire,08/10/2021,3920992-INV-504,680.74,BILL SCOTT TAXIS LTD.
Children and Young Peoples Services,Head of Education and Skills,Transport,230008,Contract Hire,08/10/2021,3920992-INV-505,"1,064.00",BILL SCOTT TAXIS LTD.
Children and Young Peoples Services,Head of Education and Skills,Transfer Payments,510034,School Children,08/10/2021,3920993-LACPP-SUMMER21/22OOC,600.00,BISHOP CHADWICK CATHOLIC EDUCATION TRUST (NSCET).
Neighbourhoods and Climate Change,Technical Services CM0300,Supplies and Services,304221,Equipment and Materials,08/10/2021,3920999-20329253,916.88,BREEDON TRADING LTD.
Neighbourhoods and Climate Change,Technical Services CM0300,Third Party Payments,430100,Rendered by Private Contractors,08/10/2021,3921000-49381,"8,576.00",BRIDGEWAY CONSULTING LTD.
Adult and Health Services,Head of Adults,Third Party Payments,470101,Purchase of Care,08/10/2021,3921002-037/22,900.00,BUTTERWICK LTD..
Children and Young Peoples Services,Head of Childrens Social Care,Third Party Payments,425020,Rendered by Voluntary Organisations,08/10/2021,3921002-035/22,"1,110.00",BUTTERWICK LTD..
Children and Young Peoples Services,Head of Childrens Social Care,Third Party Payments,425020,Rendered by Voluntary Organisations,08/10/2021,3921002-036/22,"1,110.00",BUTTERWICK LTD..
Children and Young Peoples Services,Head of Childrens Social Care,Third Party Payments,425020,Rendered by Voluntary Organisations,08/10/2021,3921002-039/22,740.00,BUTTERWICK LTD..
Children and Young Peoples Services,Head of Education and Skills,Transport,230006,Contract Hire,08/10/2021,3921004-S02105,"1,311.00",C & R TAXIS.
Children and Young Peoples Services,Head of Education and Skills,Transport,230008,Contract Hire,08/10/2021,3921004-W112026,"1,800.00",C & R TAXIS.
Children and Young Peoples Services,Head of Education and Skills,Transport,230008,Contract Hire,08/10/2021,3921003-S006023,"1,451.00",C & R TAXIS.
Children and Young Peoples Services,Head of Education and Skills,Transport,230008,Contract Hire,08/10/2021,3921003-W030023,"2,740.92",C & R TAXIS.
Children and Young Peoples Services,Head of Education and Skills,Transport,230008,Contract Hire,08/10/2021,3921003-W046023,"2,824.50",C & R TAXIS.
Children and Young Peoples Services,Head of Education and Skills,Transport,230008,Contract Hire,08/10/2021,3921005-BIL0249,"1,301.58",CA MUSGROVE T/A BILLS TAXIS.
"Regeneration, Economy and Growth",Business Durham CL0850,Premises,106082,Centrally Controlled Rep and Maint,08/10/2021,3921012-8531,"1,091.64",CATHEDRAL LOCK & SAFE SERVICES LTD.
Resources BK0010,Corporate Finance & Commercial Services,Supplies and Services,342051,Computers and Communications,08/10/2021,3921024-C/PE227138,"1,500.00",CIVICA UK LTD.
Resources BK0010,Legal & Democratic Services,Supplies and Services,384199,Miscellaneous Expenses,08/10/2021,3921024-C/IW225070,"5,000.00",CIVICA UK LTD.
Children and Young Peoples Services,Head of Education and Skills,Transport,230008,Contract Hire,08/10/2021,3921025-E058-SP0921,"2,224.05",CJ`S EXECUTIVE TRAVEL LTD.
Children and Young Peoples Services,Head of Education and Skills,Transport,230008,Contract Hire,08/10/2021,3921025-A072-SP0921,"2,024.45",CJ`S EXECUTIVE TRAVEL LTD.
Children and Young Peoples Services,Head of Education and Skills,Transport,230008,Contract Hire,08/10/2021,3921025-E031-KC0921,"3,860.97",CJ`S EXECUTIVE TRAVEL LTD.
Children and Young Peoples Services,Head of Education and Skills,Transport,230008,Contract Hire,08/10/2021,3921025-M011-AA0921,"2,385.18",CJ`S EXECUTIVE TRAVEL LTD.
Neighbourhoods and Climate Change,Technical Services CM0300,Stock A926,926004,Stock,08/10/2021,3921028-400035742,"18,830.00",CLEVELAND POTASH LTD T/A ICL FERTILIZERS.
Neighbourhoods and Climate Change,Technical Services CM0300,Stock A926,926004,Stock,08/10/2021,3921028-400035743,"19,993.40",CLEVELAND POTASH LTD T/A ICL FERTILIZERS.
Neighbourhoods and Climate Change,Technical Services CM0300,Stock A926,926004,Stock,08/10/2021,3921028-400035813,"16,754.50",CLEVELAND POTASH LTD T/A ICL FERTILIZERS.
Neighbourhoods and Climate Change,Technical Services CM0300,Stock A926,926900,Stock in hand-Inventory system,08/10/2021,3921029-922271,699.00,CMT EQUIPMENT LTD.
Resources BK0010,Legal & Democratic Services,Supplies and Services,338025,Services,08/10/2021,3921031-S44954-01646,"1,485.00",CO-OPERATIVE FUNERAL CARE.
Neighbourhoods and Climate Change,Environmental Services,Supplies and Services,304221,Equipment and Materials,08/10/2021,3921037-186899,"1,401.00",DAVID OGILVIE ENGINEERING LTD.
Resources BK0010,Digital and Customer Services,Supplies and Services,342033,Computers and Communications,08/10/2021,3921038-7402748908,"2,486.64",DELL COMPUTER CORPORATION LTD.
Neighbourhoods and Climate Change,Technical Services CM0300,Supplies and Services,304221,Equipment and Materials,08/10/2021,3921041-SM-L-210929-1440,"1,485.00",DHF PRODUCTS LTD.
Neighbourhoods and Climate Change,Environmental Services,Supplies and Services,384199,Miscellaneous Expenses,08/10/2021,3921043-INV-1670,"67,759.55",DINSDALE MOORLAND SPECIALISTS.
Resources BK0010,Legal & Democratic Services,Supplies and Services,340001,Postages E340,08/10/2021,3921050-83263997,"2,500.00",DX NETWORK SERVICES LTD.
Children and Young Peoples Services,Head of Education and Skills,Transport,230009,Contract Hire,08/10/2021,3921054-1163,"2,278.00",EAST DURHAM TAXIS.
Children and Young Peoples Services,Head of Education and Skills,Transport,230006,Contract Hire,08/10/2021,3921054-1164,"2,790.00",EAST DURHAM TAXIS.
Children and Young Peoples Services,Head of Education and Skills,Transport,230006,Contract Hire,08/10/2021,3921054-1170,"3,860.50",EAST DURHAM TAXIS.
Children and Young Peoples Services,Head of Education and Skills,Transport,230006,Contract Hire,08/10/2021,3921054-1159,"3,680.00",EAST DURHAM TAXIS.
Children and Young Peoples Services,Head of Education and Skills,Transport,230006,Contract Hire,08/10/2021,3921054-1165,968.00,EAST DURHAM TAXIS.
Children and Young Peoples Services,Head of Education and Skills,Transport,230008,Contract Hire,08/10/2021,3921054-1156,"2,592.00",EAST DURHAM TAXIS.
Children and Young Peoples Services,Head of Education and Skills,Transport,230008,Contract Hire,08/10/2021,3921054-1166,"2,124.00",EAST DURHAM TAXIS.
Children and Young Peoples Services,Head of Education and Skills,Transport,230008,Contract Hire,08/10/2021,3921053-1158,"3,160.00",EAST DURHAM TAXIS.
Children and Young Peoples Services,Head of Education and Skills,Transport,230008,Contract Hire,08/10/2021,3921054-1157,"2,680.00",EAST DURHAM TAXIS.
Children and Young Peoples Services,Head of Education and Skills,Transport,230008,Contract Hire,08/10/2021,3921054-1162,"3,528.00",EAST DURHAM TAXIS.
Children and Young Peoples Services,Head of Education and Skills,Transport,230008,Contract Hire,08/10/2021,3921053-1160,"3,760.00",EAST DURHAM TAXIS.
Adult and Health Services,Head of Adults,Transport,230005,Contract Hire,08/10/2021,3921054-1167,"1,396.00",EAST DURHAM TAXIS.
"Regeneration, Economy and Growth",Corporate Property and Land,Supplies and Services,304221,Equipment and Materials,08/10/2021,3921057-059-289235,971.25,EDMUNDSON ELECTRICAL LTD.
"Regeneration, Economy and Growth",Corporate Property and Land,Premises,108099,Service Repairs and Maintenance,08/10/2021,3921061-89281,"4,658.00",EIAT UK LTD (ELECTRICAL INSTALLATION & APPLIANCE TESTING UK).
"Regeneration, Economy and Growth",Development and Housing,Supplies and Services,338045,Services,08/10/2021,3921062-16932,900.00,EMG SOLICITORS LTD.
"Regeneration, Economy and Growth",Culture Sport and Tourism,Supplies and Services,338047,Services,08/10/2021,3921063-20214217LB,"5,000.00",ENTERTAINMENT UNLIMITED.
Children and Young Peoples Services,Head of Early Help Inclusion & Vulnerable Children.,Supplies and Services,384199,Miscellaneous Expenses,08/10/2021,3921065-10806,836.00,EXCLUSIVE SECURE CARE SERVICES LTD.
Adult and Health Services,Head of Adults,Supplies and Services,384616,Miscellaneous Expenses,08/10/2021,3921066-FHAVS510,"1,525.50",FALCON HOUSING ASSOCIATION CIC.
Children and Young Peoples Services,Head of Childrens Social Care,Supplies and Services,338045,Services,08/10/2021,3921067-NE20C00676,"1,008.00",FAMILY PSYCHOLOGY UK LTD.
Adult and Health Services,Head of Adults,Transport,230005,Contract Hire,08/10/2021,3921073-102484,"1,292.00",G & P JOHNSON LTD T/A NIGHTINGALE COACHES.
"Regeneration, Economy and Growth",Culture Sport and Tourism,Premises,106083,Centrally Controlled Rep and Maint,08/10/2021,3921077-INV-0759,"18,029.17",GLENFIELD ENERGY SOLUTIONS LTD.
Neighbourhoods and Climate Change,Technical Services CM0300,Supplies and Services,304221,Equipment and Materials,08/10/2021,3921081-06/141014,908.20,GREENHAM TRADING LTD.
Neighbourhoods and Climate Change,Environmental Services,Supplies and Services,328041,Clothing uniforms and laundry E328,08/10/2021,3921082-173730,623.36,GUSTHARTS LTD.
Resources BK0010,Digital and Customer Services,Supplies and Services,304303,Equipment and Materials,08/10/2021,3921083-INV0184117,"1,675.84",GVAV LTD.
"Regeneration, Economy and Growth",Development and Housing,Supplies and Services,372009,Subscriptions E372,08/10/2021,3921085-50204200,871.50,HAYMARKET MEDIA GROUP LTD.
Neighbourhoods and Climate Change,Technical Services CM0300,Third Party Payments,430100,Rendered by Private Contractors,08/10/2021,3921088-3300,"5,236.00",HIGHWAY CONSTRUCTION SERVICES LTD.
"Regeneration, Economy and Growth",Culture Sport and Tourism,Supplies and Services,338047,Services,08/10/2021,3921089-002802,"2,000.00",HILARITY BITES COMEDY CLUB.
Dedicated Schools Grant BG0015,DSG High Needs Block,Supplies and Services,304259,Equipment and Materials,08/10/2021,3921094-CAS-10-2021-029,"19,490.00",HOPE WOOD ACADEMY.
Adult and Health Services,Public Health CC0450,Third Party Payments,460803,Contract Payments,08/10/2021,3921099-272/22/1801,"10,500.00",HUMANKIND CHARITY.
"Regeneration, Economy and Growth",Culture Sport and Tourism,Supplies and Services,304259,Equipment and Materials,08/10/2021,3921100-20115,555.00,HUSSEY SEATWAY LTD.
"Regeneration, Economy and Growth",Corporate Property and Land,Supplies and Services,304221,Equipment and Materials,08/10/2021,3921104-S117765429,524.65,ICI DULUX DECORATOR CENTRES.
Adult and Health Services,Head of Adults,Supplies and Services,304259,Equipment and Materials,08/10/2021,3921105-50828249,"3,000.00",INDEED IRELAND OPERATIONS LTD.
"Regeneration, Economy and Growth",Corporate Property and Land,Third Party Payments,430100,Rendered by Private Contractors,08/10/2021,3921106-11349,"2,871.00",INGLEFORD SCAFFOLDING LTD.
Adult and Health Services,Head of Adults,Third Party Payments,478151,Purchase of Care,08/10/2021,3921123-6GREEN/2021/09,519.85,KARBON HOMES LTD FORMERLY CESTRIA HOUSING ASSOCIATION LTD.
Resources BK0010,Legal & Democratic Services,Construction work A908,908105,Construction work,08/10/2021,3921127-MOUNT-OSWALDMANORHOUSE,"802,133.51",KIER CONSTRUCTION LTD - SCOTLAND
Children and Young Peoples Services,Head of Education and Skills,Transport,230008,Contract Hire,08/10/2021,3921136-001-SEPT21,"4,042.00",LIMASEC LTD T/A LIMA TRANSPORT.
"Regeneration, Economy and Growth",Culture Sport and Tourism,Supplies and Services,338047,Services,08/10/2021,3921137-INV04860,"1,365.60",LIMELIGHT ENTERTAINMENT LTD.
Adult and Health Services,Commissioning inc Supporting People,Third Party Payments,479111,Purchase of Care,08/10/2021,3921142-4994,"11,757.00",MAIN - TAKING AUTISM PERSONALLY.
Children and Young Peoples Services,Head of Early Help Inclusion & Vulnerable Children.,Supplies and Services,344135,Telephones,08/10/2021,3921144-12648454,669.75,MAINTEL EUROPE LTD.
Neighbourhoods and Climate Change,Technical Services CM0300,Fees,901002,Professional fees,08/10/2021,3921154-27072,"3,575.00",MONAGHANS LTD.
Children and Young Peoples Services,Head of Early Help Inclusion & Vulnerable Children.,Supplies and Services,338099,Services,08/10/2021,3921164-00000001/H505424,"2,695.33",NHS PROPERTY SERVICES LTD.
Adult and Health Services,Head of Adults,Third Party Payments,470101,Purchase of Care,08/10/2021,3921167-0000057576,"2,151.78",NORTH EAST AUTISM SOCIETY.
Adult and Health Services,Head of Adults,Third Party Payments,470101,Purchase of Care,08/10/2021,3921167-0000057578,"3,353.20",NORTH EAST AUTISM SOCIETY.
Children and Young Peoples Services,Head of Education and Skills,Transport,230007,Contract Hire,08/10/2021,3921168-INV-6875,"5,662.00",NORTH EAST COACHWAYS LTD.
Children and Young Peoples Services,Head of Education and Skills,Transport,230007,Contract Hire,08/10/2021,3921168-INV-6876,"2,280.00",NORTH EAST COACHWAYS LTD.
Children and Young Peoples Services,Head of Education and Skills,Transport,230007,Contract Hire,08/10/2021,3921168-INV-6877,"2,375.00",NORTH EAST COACHWAYS LTD.
Children and Young Peoples Services,Head of Education and Skills,Transport,230007,Contract Hire,08/10/2021,3921168-INV-6878,"2,546.00",NORTH EAST COACHWAYS LTD.
Children and Young Peoples Services,Head of Education and Skills,Transport,230007,Contract Hire,08/10/2021,3921168-INV-6879,"2,641.00",NORTH EAST COACHWAYS LTD.
Children and Young Peoples Services,Head of Education and Skills,Transport,230007,Contract Hire,08/10/2021,3921168-INV-6873,"3,549.00",NORTH EAST COACHWAYS LTD.
Children and Young Peoples Services,Head of Education and Skills,Transport,230007,Contract Hire,08/10/2021,3921168-INV-6874,"3,129.00",NORTH EAST COACHWAYS LTD.
"Regeneration, Economy and Growth",Culture Sport and Tourism,Supplies and Services,384302,Miscellaneous Expenses,08/10/2021,3921170-0101,500.00,NORTH EXHIBITION SERVICES LTD.
Neighbourhoods and Climate Change,Technical Services CM0300,Third Party Payments,430100,Rendered by Private Contractors,08/10/2021,3921171-DI20356965,770.41,NORTHERN POWERGRID (NORTHEAST) LTD.
Neighbourhoods and Climate Change,Environmental Services,Supplies and Services,304221,Equipment and Materials,08/10/2021,3921173-31220,"3,001.60",NWT SUPPLIES LTD.
"Regeneration, Economy and Growth",Corporate Property and Land,Third Party Payments,430100,Rendered by Private Contractors,08/10/2021,3921176-10979-28,"1,150.30",OPUS BUILDING SERVICES LTD.
"Regeneration, Economy and Growth",Culture Sport and Tourism,Supplies and Services,338066,Services,08/10/2021,3921183-NEI-HCL-10-2021-01,"1,973.00",PAUL EVANS T/A CARNIVAL FUN FAIRS.
Children and Young Peoples Services,Head of Education and Skills,Transport,230034,Contract Hire,08/10/2021,3921189-3422-SEPT,"1,050.00",PETER`S TAXIS.
Children and Young Peoples Services,Head of Education and Skills,Transport,230007,Contract Hire,08/10/2021,3921189-2088-SEPT,950.00,PETER`S TAXIS.
Children and Young Peoples Services,Head of Education and Skills,Supplies and Services,312009,Newspapers books and periodicals E312,08/10/2021,3921188-1860946,631.47,PETERS LTD.
Children and Young Peoples Services,Head of Education and Skills,Construction work A908,908105,Construction work,08/10/2021,3921194-900937268,"22,847.75",PORTAKABIN LTD.
Neighbourhoods and Climate Change,Technical Services CM0300,Fees,901004,Capital - Detailed Design,08/10/2021,3921195-171878,"1,560.00",PREMIER TRAFFIC MANAGEMENT LTD.
"Regeneration, Economy and Growth",Development and Housing,Cap Exp on Grants & Other Financial Assistance (REFCUS),918501,Exp assets not owned by authority,08/10/2021,3921197-RED-10-2021-059,"3,019.00",PROPERTY PROJECTS (NE) LTD.
Dedicated Schools Grant BG0015,DSG High Needs Block,Transport,230009,Contract Hire,08/10/2021,3921034-58,684.00,REDACTED - PAYMENT TO INDIVIDUAL
Children and Young Peoples Services,Head of Education and Skills,Transport,230008,Contract Hire,08/10/2021,3921034-57,"1,602.00",REDACTED - PAYMENT TO INDIVIDUAL
Children and Young Peoples Services,Head of Education and Skills,Transport,230007,Contract Hire,08/10/2021,3921036-SEP21-3080,576.24,REDACTED - PAYMENT TO INDIVIDUAL
Adult and Health Services,Head of Adults,Transport,230005,Contract Hire,08/10/2021,3921036-SEP21-CLS073,840.00,REDACTED - PAYMENT TO INDIVIDUAL
Children and Young Peoples Services,Head of Education and Skills,Transport,230007,Contract Hire,08/10/2021,3921110-6103,"1,544.60",REDACTED - PAYMENT TO INDIVIDUAL
Children and Young Peoples Services,Head of Education and Skills,Transport,230007,Contract Hire,08/10/2021,3921110-6100,961.21,REDACTED - PAYMENT TO INDIVIDUAL
Children and Young Peoples Services,Head of Education and Skills,Transport,230008,Contract Hire,08/10/2021,3921110-6101,"1,152.00",REDACTED - PAYMENT TO INDIVIDUAL
Children and Young Peoples Services,Head of Education and Skills,Transport,230008,Contract Hire,08/10/2021,3921110-6105,"1,487.76",REDACTED - PAYMENT TO INDIVIDUAL
Children and Young Peoples Services,Head of Education and Skills,Transport,230008,Contract Hire,08/10/2021,3921125-SEP21-A026,"2,378.04",REDACTED - PAYMENT TO INDIVIDUAL
Children and Young Peoples Services,Head of Education and Skills,Transport,230009,Contract Hire,08/10/2021,3921155-AT248,"1,353.00",REDACTED - PAYMENT TO INDIVIDUAL
Children and Young Peoples Services,Head of Education and Skills,Transport,230009,Contract Hire,08/10/2021,3921158-191,"2,168.46",REDACTED - PAYMENT TO INDIVIDUAL
Children and Young Peoples Services,Head of Education and Skills,Transport,230012,Contract Hire,08/10/2021,3921158-197,"2,902.45",REDACTED - PAYMENT TO INDIVIDUAL
Children and Young Peoples Services,Head of Education and Skills,Transport,230008,Contract Hire,08/10/2021,3921158-192,"1,666.00",REDACTED - PAYMENT TO INDIVIDUAL
Children and Young Peoples Services,Head of Education and Skills,Transport,230008,Contract Hire,08/10/2021,3921158-193,"1,960.00",REDACTED - PAYMENT TO INDIVIDUAL
Children and Young Peoples Services,Head of Education and Skills,Transport,230008,Contract Hire,08/10/2021,3921158-199,"2,464.44",REDACTED - PAYMENT TO INDIVIDUAL
Children and Young Peoples Services,Head of Education and Skills,Transport,230008,Contract Hire,08/10/2021,3921158-194,"2,200.00",REDACTED - PAYMENT TO INDIVIDUAL
Children and Young Peoples Services,Head of Education and Skills,Transport,230008,Contract Hire,08/10/2021,3921158-195,"1,762.40",REDACTED - PAYMENT TO INDIVIDUAL
Children and Young Peoples Services,Head of Education and Skills,Transport,230008,Contract Hire,08/10/2021,3921158-196,"3,258.72",REDACTED - PAYMENT TO INDIVIDUAL
Adult and Health Services,Head of Adults,Transport,230005,Contract Hire,08/10/2021,3921158-200,640.00,REDACTED - PAYMENT TO INDIVIDUAL
Children and Young Peoples Services,Head of Education and Skills,Transport,230009,Contract Hire,08/10/2021,3921257-4-SEPT21,931.00,REDACTED - PAYMENT TO INDIVIDUAL
Children and Young Peoples Services,Head of Education and Skills,Transport,230006,Contract Hire,08/10/2021,3921257-1-SEPT21,"2,677.29",REDACTED - PAYMENT TO INDIVIDUAL
Adult and Health Services,Head of Adults,Transport,230005,Contract Hire,08/10/2021,3921256-3-SEPT21,"1,126.32",REDACTED - PAYMENT TO INDIVIDUAL
Adult and Health Services,Head of Adults,Transport,230005,Contract Hire,08/10/2021,3921256-2-SEPT21,"1,180.00",REDACTED - PAYMENT TO INDIVIDUAL
"Regeneration, Economy and Growth",Culture Sport and Tourism,Supplies and Services,384199,Miscellaneous Expenses,08/10/2021,3921148-MTMS118,600.00,REDACTED - PAYMENT TO INDIVIDUAL
Neighbourhoods and Climate Change,Environmental Services,Supplies and Services,338099,Services,08/10/2021,3921204-RMHDWR005/01,800.00,REDACTED - PAYMENT TO INDIVIDUAL
Children and Young Peoples Services,Head of Education and Skills,Transport,230034,Contract Hire,08/10/2021,3921020-5208/11,836.00,REDACTED - PAYMENT TO INDIVIDUAL
Children and Young Peoples Services,Head of Education and Skills,Transport,230034,Contract Hire,08/10/2021,3921020-5260/01,"1,302.00",REDACTED - PAYMENT TO INDIVIDUAL
Children and Young Peoples Services,Head of Education and Skills,Transport,230034,Contract Hire,08/10/2021,3921020-5289/01,"1,026.00",REDACTED - PAYMENT TO INDIVIDUAL
Children and Young Peoples Services,Head of Education and Skills,Transport,230007,Contract Hire,08/10/2021,3921020-5409/06,924.00,REDACTED - PAYMENT TO INDIVIDUAL
"Regeneration, Economy and Growth",Corporate Property and Land,Premises,108099,Service Repairs and Maintenance,08/10/2021,3921206-2021-183,"3,575.20",REVINSON FIRE LTD.
"Regeneration, Economy and Growth",Corporate Property and Land,Supplies and Services,304221,Equipment and Materials,08/10/2021,3921209-0000062304,"1,661.00",RINNAI UK LTD.
Children and Young Peoples Services,Head of Early Help Inclusion & Vulnerable Children.,Supplies and Services,384302,Miscellaneous Expenses,08/10/2021,3921214-PL-2021/021,833.33,RUFF N TUMBLE ADVENTURE WORLD LTD.
"Regeneration, Economy and Growth",Development and Housing,Supplies and Services,338066,Services,08/10/2021,3921219-NEW15008,"1,500.00",SANDERSON WEATHERALL LLP.
"Regeneration, Economy and Growth",Culture Sport and Tourism,Supplies and Services,338047,Services,08/10/2021,3921222-INV-1104,"6,625.00",SCENIC PANTOMIMES LTD.
Neighbourhoods and Climate Change,Environmental Services,Third Party Payments,430113,Rendered by Private Contractors,08/10/2021,3921226-176520,"1,805.98",SHOWSEC INTERNATIONAL LTD.
Neighbourhoods and Climate Change,Environmental Services,Third Party Payments,430113,Rendered by Private Contractors,08/10/2021,3921226-176521,"2,004.52",SHOWSEC INTERNATIONAL LTD.
Neighbourhoods and Climate Change,Technical Services CM0300,Construction work A908,908105,Construction work,08/10/2021,3921228-24801,"31,687.47",SOUTHBAY CIVIL ENGINEERING LTD.
"Regeneration, Economy and Growth",Culture Sport and Tourism,Supplies and Services,384199,Miscellaneous Expenses,08/10/2021,3921229-INV-S017572,"1,756.47",SPEKTRIX LTD.
"Regeneration, Economy and Growth",Development and Housing,Supplies and Services,384700,Miscellaneous Expenses,08/10/2021,3921230-RED-10-2021-034,750.00,SPENNYMOOR YOUTH & COMMUNITY ASSOCIATION.
Neighbourhoods and Climate Change,Technical Services CM0300,Supplies and Services,304221,Equipment and Materials,08/10/2021,3921232-7720,"6,011.99",ST ASTIER LTD.
"Regeneration, Economy and Growth",Culture Sport and Tourism,Premises,108099,Service Repairs and Maintenance,08/10/2021,3921234-17842,"1,260.00",STONE TECHNICAL SERVICES LTD.
"Regeneration, Economy and Growth",Transport and Contracted Services,Supplies and Services,336005,Advertising E336,08/10/2021,3921237-510540,"1,288.00",SUN FM LTD.
Adult and Health Services,Commissioning inc Supporting People,Third Party Payments,479101,Purchase of Care,08/10/2021,3921240-2500,"46,682.50",SUPPORTIVE SRC LTD.
Adult and Health Services,Commissioning inc Supporting People,Third Party Payments,442002,Supporting People E442,08/10/2021,3921247-010,"6,281.00",THE HUB OF WISHES.
"Regeneration, Economy and Growth",Culture Sport and Tourism,Supplies and Services,384199,Miscellaneous Expenses,08/10/2021,3921251-INV-0319,"41,925.00",THINKING DIGITAL LTD.
Children and Young Peoples Services,Head of Education and Skills,Transport,230006,Contract Hire,08/10/2021,3921255-0002272,"2,780.00",TONY RIDLEY T/A COLORS TAXIS LTD.
"Regeneration, Economy and Growth",Transport and Contracted Services,Fees,901004,Capital - Detailed Design,08/10/2021,3921260-I21100108T,"2,395.00",TRACSIS TRAFFIC DATA LIMITED.
"Regeneration, Economy and Growth",Transport and Contracted Services,Fees,901004,Capital - Detailed Design,08/10/2021,3921260-I21100109T,"3,250.00",TRACSIS TRAFFIC DATA LIMITED.
Neighbourhoods and Climate Change,Technical Services CM0300,Supplies and Services,304221,Equipment and Materials,08/10/2021,3921268-226531,"1,084.06",TYNEDALE ROADSTONE LTD.
Neighbourhoods and Climate Change,Technical Services CM0300,Supplies and Services,304221,Equipment and Materials,08/10/2021,3921268-226540,"1,384.19",TYNEDALE ROADSTONE LTD.
Neighbourhoods and Climate Change,Technical Services CM0300,Supplies and Services,304221,Equipment and Materials,08/10/2021,3921268-226541,995.95,TYNEDALE ROADSTONE LTD.
Neighbourhoods and Climate Change,Technical Services CM0300,Supplies and Services,304221,Equipment and Materials,08/10/2021,3921268-226545,"1,467.54",TYNEDALE ROADSTONE LTD.
Neighbourhoods and Climate Change,Technical Services CM0300,Supplies and Services,304221,Equipment and Materials,08/10/2021,3921268-226546,756.54,TYNEDALE ROADSTONE LTD.
Neighbourhoods and Climate Change,Technical Services CM0300,Supplies and Services,304221,Equipment and Materials,08/10/2021,3921268-226547,"1,460.38",TYNEDALE ROADSTONE LTD.
Neighbourhoods and Climate Change,Technical Services CM0300,Supplies and Services,304221,Equipment and Materials,08/10/2021,3921268-226642,"1,089.01",TYNEDALE ROADSTONE LTD.
Neighbourhoods and Climate Change,Technical Services CM0300,Supplies and Services,304221,Equipment and Materials,08/10/2021,3921268-226645,604.90,TYNEDALE ROADSTONE LTD.
Children and Young Peoples Services,Head of Education and Skills,Transport,230007,Contract Hire,08/10/2021,3921278-9-3334,"1,100.00",WALTONS TAXIS.
Children and Young Peoples Services,Head of Education and Skills,Transport,230008,Contract Hire,08/10/2021,3921284-0003128,"2,318.40",WATSON OF SPENNYMOOR.
Children and Young Peoples Services,Head of Education and Skills,Transport,230008,Contract Hire,08/10/2021,3921284-0003129,"2,650.20",WATSON OF SPENNYMOOR.
Children and Young Peoples Services,Head of Education and Skills,Transport,230007,Contract Hire,08/10/2021,3921285-16872,"2,790.00",WEARDALE MOTOR SERVICES LTD.
Children and Young Peoples Services,Head of Education and Skills,Transport,230007,Contract Hire,08/10/2021,3921285-16866,"3,480.00",WEARDALE MOTOR SERVICES LTD.
Children and Young Peoples Services,Head of Education and Skills,Transport,230003,Contract Hire,08/10/2021,3921285-16867,"4,000.00",WEARDALE MOTOR SERVICES LTD.
Children and Young Peoples Services,Head of Education and Skills,Transport,230003,Contract Hire,08/10/2021,3921285-16871,"4,122.00",WEARDALE MOTOR SERVICES LTD.
Children and Young Peoples Services,Head of Education and Skills,Transport,230008,Contract Hire,08/10/2021,3921285-16869,"3,291.96",WEARDALE MOTOR SERVICES LTD.
Children and Young Peoples Services,Head of Education and Skills,Transport,230008,Contract Hire,08/10/2021,3921285-16870,"4,678.80",WEARDALE MOTOR SERVICES LTD.
Children and Young Peoples Services,Head of Education and Skills,Transport,230008,Contract Hire,08/10/2021,3921286-1539042,"1,828.47",WENDYS` TAXIS.
Children and Young Peoples Services,Head of Education and Skills,Transport,230008,Contract Hire,08/10/2021,3921286-1539542,"1,264.00",WENDYS` TAXIS.
Children and Young Peoples Services,Head of Education and Skills,Transport,230010,Contract Hire,08/10/2021,3921287-0921,"1,575.00",WEST AUCKLAND TOWN TRAVEL (WATT).
Adult and Health Services,Head of Adults,Third Party Payments,471101,Purchase of Care,08/10/2021,3921288-CAS-10-2021-039,"1,504.64",WEST FARM RESIDENTIAL CARE CENTRE.
Children and Young Peoples Services,Head of Education and Skills,Transport,230006,Contract Hire,08/10/2021,3921289-WESTLEA300921,"1,700.00",WESTLEA TAXIS.
Children and Young Peoples Services,Head of Education and Skills,Transport,230008,Contract Hire,08/10/2021,3921290-01-N029,"3,360.00",WISS TAXIS.
Children and Young Peoples Services,Head of Education and Skills,Transport,230008,Contract Hire,08/10/2021,3921290-01-N324,"2,040.00",WISS TAXIS.
Children and Young Peoples Services,Head of Education and Skills,Transport,230008,Contract Hire,08/10/2021,3921290-01-A020,"3,330.00",WISS TAXIS.
"Regeneration, Economy and Growth",Corporate Property and Land,Supplies and Services,304221,Equipment and Materials,08/10/2021,3921292-76685746,"2,109.86",WOLSELEY UK LTD.
Children and Young Peoples Services,Head of Childrens Social Care,Supplies and Services,384199,Miscellaneous Expenses,08/10/2021,3921293-44799,"1,730.95",WRIXON SECURITY SERVICES LTD T/A WRIXON CARE.
Children and Young Peoples Services,Head of Childrens Social Care,Supplies and Services,384199,Miscellaneous Expenses,08/10/2021,3921293-44888,"1,995.55",WRIXON SECURITY SERVICES LTD T/A WRIXON CARE.
"Regeneration, Economy and Growth",Corporate Property and Land,Supplies and Services,338066,Services,11/10/2021,3921308-APP0000000900,"16,530.00",ALIGN PROPERTY PARTNERS LTD.
"Regeneration, Economy and Growth",Corporate Property and Land,Supplies and Services,338066,Services,11/10/2021,3921308-APP0000001032,"22,184.00",ALIGN PROPERTY PARTNERS LTD.
"Regeneration, Economy and Growth",Corporate Property and Land,Supplies and Services,338066,Services,11/10/2021,3921308-APP0000001033,"5,256.00",ALIGN PROPERTY PARTNERS LTD.
"Regeneration, Economy and Growth",Corporate Property and Land,Supplies and Services,338066,Services,11/10/2021,3921308-APP0000001122,"2,550.00",ALIGN PROPERTY PARTNERS LTD.
"Regeneration, Economy and Growth",Corporate Property and Land,Supplies and Services,338066,Services,11/10/2021,3921308-APP0000001123,"26,218.30",ALIGN PROPERTY PARTNERS LTD.
Children and Young Peoples Services,Head of Childrens Social Care,Supplies and Services,338066,Services,11/10/2021,3921322-18337,500.00,BACKHOUSE SOLICITORS LTD.
Neighbourhoods and Climate Change,Partnerships & Community Engagement Div.,Cap Exp on Grants & Other Financial Assistance (REFCUS),918004,Contributions to other bodies 918004,11/10/2021,3921324-VOUCHER21AB-TEES003,"20,292.00",BARNARD CASTLE CHRISTMAS LIGHTS.
Neighbourhoods and Climate Change,Partnerships & Community Engagement Div.,Cap Exp on Grants & Other Financial Assistance (REFCUS),918004,Contributions to other bodies 918004,11/10/2021,3921325-VOUCHER20NB-TEES020,"4,856.00",BARNARD CASTLE CRICKET CLUB.
"Regeneration, Economy and Growth",Communications Management,Supplies and Services,336005,Advertising E336,11/10/2021,3921327-8044489,875.00,BAUER RADIO LTD.
Neighbourhoods and Climate Change,Environmental Services,Transport,210057,Repair and Maintenance of Vehicles,11/10/2021,3921330-35210044,580.81,BELL TRUCK SALES LTD T/A BELL TRUCK & VAN.
Children and Young Peoples Services,Head of Early Help Inclusion & Vulnerable Children.,Premises,108099,Service Repairs and Maintenance,11/10/2021,3921331-231102,650.00,BELLWOOD REWINDS LTD.
Neighbourhoods and Climate Change,Environmental Services,Transport,210057,Repair and Maintenance of Vehicles,11/10/2021,3921338-62033451,704.36,BUCHER MUNICIPAL LTD.
Neighbourhoods and Climate Change,Technical Services CM0300,Third Party Payments,430100,Rendered by Private Contractors,11/10/2021,3921344-8532,538.93,CATHEDRAL LOCK & SAFE SERVICES LTD.
"Regeneration, Economy and Growth",Corporate Property and Land,Third Party Payments,430100,Rendered by Private Contractors,11/10/2021,3921344-8368,"2,202.63",CATHEDRAL LOCK & SAFE SERVICES LTD.
"Regeneration, Economy and Growth",Development and Housing,Supplies and Services,338094,Services,11/10/2021,3921346-284,500.00,CDC ENTERPRISE AGENCY LTD.
"Regeneration, Economy and Growth",Development and Housing,Supplies and Services,338094,Services,11/10/2021,3921346-286,500.00,CDC ENTERPRISE AGENCY LTD.
Neighbourhoods and Climate Change,Partnerships & Community Engagement Div.,Supplies and Services,384086,Miscellaneous Expenses,11/10/2021,3921347-VOUCHERBAIA06-20,655.30,CHESTER LE STREET TOWN FC.
Neighbourhoods and Climate Change,Partnerships & Community Engagement Div.,Supplies and Services,384086,Miscellaneous Expenses,11/10/2021,3921347-VOUCHERSEXP03-21,780.73,CHESTER LE STREET TOWN FC.
Children and Young Peoples Services,Head of Education and Skills,Transport,230008,Contract Hire,11/10/2021,3921348-CW23,"1,546.56",CHIPPERS TAXIS.
Children and Young Peoples Services,Head of Education and Skills,Transport,230008,Contract Hire,11/10/2021,3921348-SW1-SEP21,"2,023.45",CHIPPERS TAXIS.
Children and Young Peoples Services,Head of Education and Skills,Transport,230007,Contract Hire,11/10/2021,3921357-C/11302,"3,918.00",COCHRANES T/A KELVIN TRAVEL.
Children and Young Peoples Services,Head of Education and Skills,Transport,230007,Contract Hire,11/10/2021,3921357-C/11301,"7,476.00",COCHRANES T/A KELVIN TRAVEL.
Children and Young Peoples Services,Head of Education and Skills,Transport,230003,Contract Hire,11/10/2021,3921357-C/11303,"2,048.00",COCHRANES T/A KELVIN TRAVEL.
Children and Young Peoples Services,Head of Education and Skills,Transport,230003,Contract Hire,11/10/2021,3921357-C/11305,"3,008.00",COCHRANES T/A KELVIN TRAVEL.
"Regeneration, Economy and Growth",Culture Sport and Tourism,Supplies and Services,384999,Miscellaneous Expenses,11/10/2021,3921363-SI-4251,"3,340.00",COUNTY DURHAM SPORT.
Children and Young Peoples Services,Head of Education and Skills,Transport,230006,Contract Hire,11/10/2021,3921370-111250,"4,604.08",CROFT BUSINESS SERVICES LTD T/A CROFT TRAVEL.
Children and Young Peoples Services,Head of Education and Skills,Transport,230006,Contract Hire,11/10/2021,3921370-111261,"1,010.64",CROFT BUSINESS SERVICES LTD T/A CROFT TRAVEL.
Children and Young Peoples Services,Head of Education and Skills,Transport,230016,Contract Hire,11/10/2021,3921370-111263,"3,015.12",CROFT BUSINESS SERVICES LTD T/A CROFT TRAVEL.
Children and Young Peoples Services,Head of Education and Skills,Transport,230008,Contract Hire,11/10/2021,3921370-111252,"2,070.00",CROFT BUSINESS SERVICES LTD T/A CROFT TRAVEL.
Children and Young Peoples Services,Head of Education and Skills,Transport,230008,Contract Hire,11/10/2021,3921370-111266,"2,932.68",CROFT BUSINESS SERVICES LTD T/A CROFT TRAVEL.
Children and Young Peoples Services,Head of Education and Skills,Transport,230008,Contract Hire,11/10/2021,3921370-111267,"2,473.50",CROFT BUSINESS SERVICES LTD T/A CROFT TRAVEL.
Children and Young Peoples Services,Head of Education and Skills,Transport,230008,Contract Hire,11/10/2021,3921370-111271,"2,310.00",CROFT BUSINESS SERVICES LTD T/A CROFT TRAVEL.
Children and Young Peoples Services,Head of Education and Skills,Transport,230008,Contract Hire,11/10/2021,3921376-1742-SEP21,"2,221.82",DA TAXIS.
Children and Young Peoples Services,Head of Education and Skills,Transport,230008,Contract Hire,11/10/2021,3921376-1749,"2,310.00",DA TAXIS.
Children and Young Peoples Services,Head of Education and Skills,Transport,230008,Contract Hire,11/10/2021,3921376-1746,"1,680.00",DA TAXIS.
Children and Young Peoples Services,Head of Education and Skills,Transport,230006,Contract Hire,11/10/2021,3921377-494,"1,012.50",DA TRAVEL.
Children and Young Peoples Services,Head of Education and Skills,Transport,230008,Contract Hire,11/10/2021,3921377-496,"2,563.60",DA TRAVEL.
Children and Young Peoples Services,Head of Education and Skills,Transport,230008,Contract Hire,11/10/2021,3921377-497,"1,700.00",DA TRAVEL.
Children and Young Peoples Services,Head of Education and Skills,Transport,230008,Contract Hire,11/10/2021,3921377-498,"1,498.54",DA TRAVEL.
Children and Young Peoples Services,Head of Education and Skills,Transport,230006,Contract Hire,11/10/2021,3921378-BACSEPT2101,820.00,DALELINK PRIVATE HIRE.
Children and Young Peoples Services,Head of Education and Skills,Transport,230007,Contract Hire,11/10/2021,3921379-3-4227,"3,780.00",DANNY`S TRAVEL.
Children and Young Peoples Services,Head of Education and Skills,Transport,230003,Contract Hire,11/10/2021,3921379-3-4270,"2,151.00",DANNY`S TRAVEL.
Children and Young Peoples Services,Head of Education and Skills,Transport,230008,Contract Hire,11/10/2021,3921382-3657,"2,193.60",DAVES MINIBUSES.
Children and Young Peoples Services,Head of Education and Skills,Transport,230008,Contract Hire,11/10/2021,3921382-3658,"1,915.68",DAVES MINIBUSES.
Children and Young Peoples Services,Head of Education and Skills,Transport,230008,Contract Hire,11/10/2021,3921382-3659,"1,920.00",DAVES MINIBUSES.
Children and Young Peoples Services,Head of Education and Skills,Transport,230008,Contract Hire,11/10/2021,3921382-3660,"2,058.00",DAVES MINIBUSES.
Children and Young Peoples Services,Head of Education and Skills,Transport,230008,Contract Hire,11/10/2021,3921385-0921-001,"2,084.46",DCM TAXIS.
Children and Young Peoples Services,Head of Education and Skills,Third Party Payments,440999,Other third party payments E440,11/10/2021,3921389-KICK5044718INVOICE000276,"1,010.75",DEERNESS VALLEY NURSERY SCHOOL.
Children and Young Peoples Services,Head of Education and Skills,Third Party Payments,440999,Other third party payments E440,11/10/2021,3921389-KICK5044718INVOICE000278,"1,010.75",DEERNESS VALLEY NURSERY SCHOOL.
Resources BK0010,Digital and Customer Services,Stock A926,926900,Stock in hand-Inventory system,11/10/2021,3921390-7402750113,"1,079.84",DELL COMPUTER CORPORATION LTD.
Children and Young Peoples Services,Head of Education and Skills,Transport,230008,Contract Hire,11/10/2021,3921393-23,"1,995.00",DEXTERS PRIVATE HIRE.
"Regeneration, Economy and Growth",Corporate Property and Land,Supplies and Services,304259,Equipment and Materials,11/10/2021,3921394-0000464339,682.45,DIGITAL ID LTD.
Neighbourhoods and Climate Change,Environmental Services,Supplies and Services,384199,Miscellaneous Expenses,11/10/2021,3921401-220259,"4,131.92",DURHAM CATHEDRAL LTD.
Neighbourhoods and Climate Change,Environmental Services,Transport,210057,Repair and Maintenance of Vehicles,11/10/2021,3921405-S208478,"3,006.07",ECON ENGINEERING LTD.
Neighbourhoods and Climate Change,Environmental Services,Transport,210057,Repair and Maintenance of Vehicles,11/10/2021,3921405-S208500,748.08,ECON ENGINEERING LTD.
"Regeneration, Economy and Growth",Business Durham CL0850,Premises,120009,Energy Costs,11/10/2021,3921406-000010685685,"2,900.65",EDF ENERGY CUSTOMERS PLC T/A EDF ENERGY.
"Regeneration, Economy and Growth",Corporate Property and Land,Supplies and Services,304221,Equipment and Materials,11/10/2021,3921407-059-287959,979.15,EDMUNDSON ELECTRICAL LTD.
"Regeneration, Economy and Growth",Corporate Property and Land,Supplies and Services,304221,Equipment and Materials,11/10/2021,3921407-059-288888,"1,250.80",EDMUNDSON ELECTRICAL LTD.
"Regeneration, Economy and Growth",Corporate Property and Land,Premises,108099,Service Repairs and Maintenance,11/10/2021,3921410-89236,"8,058.00",EIAT UK LTD (ELECTRICAL INSTALLATION & APPLIANCE TESTING UK).
Children and Young Peoples Services,Head of Education and Skills,Third Party Payments,440999,Other third party payments E440,11/10/2021,3921411-KICK5044718INVOICE000282,941.16,ELLIOTT & TELFORD GARDEN SERVICES LTD.
Children and Young Peoples Services,Head of Childrens Social Care,Third Party Payments,425021,Rendered by Voluntary Organisations,11/10/2021,3921412-1694,"15,615.01",ENHANCED YOUNG PERSONS` CARE LTD.
Children and Young Peoples Services,Head of Childrens Social Care,Third Party Payments,425021,Rendered by Voluntary Organisations,11/10/2021,3921412-1702,"12,857.10",ENHANCED YOUNG PERSONS` CARE LTD.
Children and Young Peoples Services,Head of Childrens Social Care,Third Party Payments,425021,Rendered by Voluntary Organisations,11/10/2021,3921412-1706,"14,142.60",ENHANCED YOUNG PERSONS` CARE LTD.
Children and Young Peoples Services,Head of Childrens Social Care,Third Party Payments,425021,Rendered by Voluntary Organisations,11/10/2021,3921412-1707,"15,111.30",ENHANCED YOUNG PERSONS` CARE LTD.
"Regeneration, Economy and Growth",Culture Sport and Tourism,Supplies and Services,338047,Services,11/10/2021,3921413-4100741246,"7,205.80",ENTERTAINMENT UNLIMITED.
Adult and Health Services,Head of Adults,Supplies and Services,338365,Services,11/10/2021,3921418-4100733045,875.00,F TIFFEN BUILDING SERVICES.
"Regeneration, Economy and Growth",Culture Sport and Tourism,Supplies and Services,384199,Miscellaneous Expenses,11/10/2021,3921422-INV-16656,"1,030.00",FOOLS PARADISE LTD.
Neighbourhoods and Climate Change,Partnerships & Community Engagement Div.,Supplies and Services,384086,Miscellaneous Expenses,11/10/2021,3921426-VOUCHERRICG05-21,950.00,GAINFORD ART & DESIGN SOCIETY.
Neighbourhoods and Climate Change,Environmental Services,Third Party Payments,430100,Rendered by Private Contractors,11/10/2021,3921433-INV00025584,"1,988.67",GO PLANT FLEET SERVICES LTD.*
Neighbourhoods and Climate Change,Environmental Services,Third Party Payments,430100,Rendered by Private Contractors,11/10/2021,3921433-INV00025586,"1,490.84",GO PLANT FLEET SERVICES LTD.*
Neighbourhoods and Climate Change,Environmental Services,Third Party Payments,430100,Rendered by Private Contractors,11/10/2021,3921433-INV00025588,584.17,GO PLANT FLEET SERVICES LTD.*
"Regeneration, Economy and Growth",Corporate Property and Land,Premises,145023,Cleaning and Domestic Supplies,11/10/2021,3921436-06/141352,"1,184.40",GREENHAM TRADING LTD.
Adult and Health Services,Head of Adults,Transport,230005,Contract Hire,11/10/2021,3921439-112,"1,615.00",HAMLET TAXIS.
Children and Young Peoples Services,Head of Education and Skills,Transport,230007,Contract Hire,11/10/2021,3921440-H1563,"2,520.00",HARRY`S TAXI`S.
Children and Young Peoples Services,Head of Education and Skills,Transport,230007,Contract Hire,11/10/2021,3921440-HT560,"2,155.60",HARRY`S TAXI`S.
Children and Young Peoples Services,Head of Education and Skills,Transport,230006,Contract Hire,11/10/2021,3921440-HT564,"1,080.00",HARRY`S TAXI`S.
Children and Young Peoples Services,Head of Education and Skills,Transport,230016,Contract Hire,11/10/2021,3921440-HT558,"1,430.00",HARRY`S TAXI`S.
Children and Young Peoples Services,Head of Education and Skills,Transport,230008,Contract Hire,11/10/2021,3921440-HT559,"1,520.00",HARRY`S TAXI`S.
Children and Young Peoples Services,Head of Education and Skills,Transport,230007,Contract Hire,11/10/2021,3921443-19164,"2,331.00",HODGSONS COACH OPERATORS LTD.
Children and Young Peoples Services,Head of Education and Skills,Transport,230007,Contract Hire,11/10/2021,3921443-19172,"1,464.33",HODGSONS COACH OPERATORS LTD.
Children and Young Peoples Services,Head of Education and Skills,Transport,230007,Contract Hire,11/10/2021,3921443-19175,735.00,HODGSONS COACH OPERATORS LTD.
Children and Young Peoples Services,Head of Education and Skills,Transport,230007,Contract Hire,11/10/2021,3921443-19171,692.58,HODGSONS COACH OPERATORS LTD.
Children and Young Peoples Services,Head of Education and Skills,Transport,230007,Contract Hire,11/10/2021,3921443-19174,"1,257.27",HODGSONS COACH OPERATORS LTD.
Children and Young Peoples Services,Head of Education and Skills,Transport,230007,Contract Hire,11/10/2021,3921443-19170,929.48,HODGSONS COACH OPERATORS LTD.
Children and Young Peoples Services,Head of Education and Skills,Transport,230007,Contract Hire,11/10/2021,3921443-19162,"3,204.60",HODGSONS COACH OPERATORS LTD.
Children and Young Peoples Services,Head of Education and Skills,Transport,230007,Contract Hire,11/10/2021,3921443-19162A,"3,394.00",HODGSONS COACH OPERATORS LTD.
Children and Young Peoples Services,Head of Education and Skills,Transport,230007,Contract Hire,11/10/2021,3921443-19163,"3,998.60",HODGSONS COACH OPERATORS LTD.
Children and Young Peoples Services,Head of Education and Skills,Transport,230007,Contract Hire,11/10/2021,3921443-19165,"1,874.60",HODGSONS COACH OPERATORS LTD.
Children and Young Peoples Services,Head of Education and Skills,Transport,230007,Contract Hire,11/10/2021,3921443-19166,"1,995.20",HODGSONS COACH OPERATORS LTD.
Children and Young Peoples Services,Head of Education and Skills,Transport,230007,Contract Hire,11/10/2021,3921443-19167,"2,064.20",HODGSONS COACH OPERATORS LTD.
Children and Young Peoples Services,Head of Education and Skills,Transport,230007,Contract Hire,11/10/2021,3921443-19169,"3,900.80",HODGSONS COACH OPERATORS LTD.
Children and Young Peoples Services,Head of Education and Skills,Transport,230007,Contract Hire,11/10/2021,3921443-19178,895.50,HODGSONS COACH OPERATORS LTD.
Children and Young Peoples Services,Head of Education and Skills,Transport,230007,Contract Hire,11/10/2021,3921443-19179,"1,222.20",HODGSONS COACH OPERATORS LTD.
Children and Young Peoples Services,Head of Education and Skills,Transport,230035,Contract Hire,11/10/2021,3921447-3452/SEPT21,904.47,HORNDALE TAXIS LTD.
Neighbourhoods and Climate Change,Partnerships & Community Engagement Div.,Supplies and Services,384086,Miscellaneous Expenses,11/10/2021,3921449-VOUCHERCURM01-21,999.00,HOWDEN LE WEAR LOCAL HISTORY SOCIETY.
Children and Young Peoples Services,Head of Education and Skills,Transport,230008,Contract Hire,11/10/2021,3921451-1002,"2,098.80",I & R EXECUTIVE TRAVEL.
Children and Young Peoples Services,Head of Education and Skills,Transport,230008,Contract Hire,11/10/2021,3921451-1003-3,"1,285.96",I & R EXECUTIVE TRAVEL.
Adult and Health Services,Head of Adults,Transport,230005,Contract Hire,11/10/2021,3921451-1004,"1,805.00",I & R EXECUTIVE TRAVEL.
Neighbourhoods and Climate Change,Technical Services CM0300,Supplies and Services,304358,Equipment and Materials,11/10/2021,3921456-5306284,"1,015.00",JA GILSON (AGRICULTURAL CONTRACTORS) LTD.
Neighbourhoods and Climate Change,Technical Services CM0300,Supplies and Services,304358,Equipment and Materials,11/10/2021,3921456-5306285,"1,037.50",JA GILSON (AGRICULTURAL CONTRACTORS) LTD.
Neighbourhoods and Climate Change,Technical Services CM0300,Supplies and Services,304358,Equipment and Materials,11/10/2021,3921456-5306287,750.00,JA GILSON (AGRICULTURAL CONTRACTORS) LTD.
Neighbourhoods and Climate Change,Environmental Services,Transport,210057,Repair and Maintenance of Vehicles,11/10/2021,3921459-145453,"1,024.15",JG PAXTON & SONS LTD.
Neighbourhoods and Climate Change,Technical Services CM0300,Stock A926,926900,Stock in hand-Inventory system,11/10/2021,3921460-10340,580.00,JG UNIFORMS.
Adult and Health Services,Head of Adults,Transport,230005,Contract Hire,11/10/2021,3921464-67-2021,600.00,JOHN CRAKE & SONS MINI BUSES LTD.
Neighbourhoods and Climate Change,Technical Services CM0300,Supplies and Services,304358,Equipment and Materials,11/10/2021,3921465-745,"1,040.00",JOHN DOBSON PLANT HIRE LTD.
"Regeneration, Economy and Growth",Corporate Property and Land,Supplies and Services,304221,Equipment and Materials,11/10/2021,3921467-0213/00480915,"1,048.54",JT DOVE LTD.
Neighbourhoods and Climate Change,Partnerships & Community Engagement Div.,Cap Exp on Grants & Other Financial Assistance (REFCUS),918004,Contributions to other bodies 918004,11/10/2021,3921468-VOUCHER20NB-STAN037,"13,000.00",JUST FOR WOMEN CENTRE.
Neighbourhoods and Climate Change,Environmental Services,Third Party Payments,430100,Rendered by Private Contractors,11/10/2021,3921470-4100730803,"3,600.00",KEN PEACOCK (BUILDING SERVICES).
"Regeneration, Economy and Growth",Corporate Property and Land,Fees,901002,Professional fees,11/10/2021,3921471-LSUK21-0589,840.00,LABOSPORT LTD.
Children and Young Peoples Services,Head of Education and Skills,Third Party Payments,440999,Other third party payments E440,11/10/2021,3921480-KICK5044718INVOICE000280,716.39,LTC INTERNATIONAL LOGISTICS LTD.
Neighbourhoods and Climate Change,Technical Services CM0300,Supplies and Services,304358,Equipment and Materials,11/10/2021,3921484-MS3137,"1,047.15",M SPENCE SURFACING LTD.
Children and Young Peoples Services,Head of Education and Skills,Third Party Payments,440999,Other third party payments E440,11/10/2021,3921486-KICK5044718INVOICE000281,"1,010.75",MAPLELEAF SHOPFITTERS LTD.
